Publisher Label,Publisher URI,"Body Name","Service Area Categorisation","Service Division Categorisation","Expenses Type","Date","Transaction Number","Amount","Capital or Revenue","Supplier Name","Merchant Category"
"Peterborough","http://opendatacommunities.org/id/unitary-authority/peterborough","Peterborough City Council","Corporate","Corporate","Non Revenue",01/11/2017 00:00:00,30105488,9076.01,"Capital","Serco Ltd","IT Equipment"
"Peterborough","http://opendatacommunities.org/id/unitary-authority/peterborough","Peterborough City Council","Adults","Independent Sector Placements","Services",01/11/2017 00:00:00,30130137,2992.44,"Revenue","Voyage","Residential Care"
"Peterborough","http://opendatacommunities.org/id/unitary-authority/peterborough","Peterborough City Council","Adults","Therapy/Reablement/Community Equipment","Agency Staff",01/11/2017 00:00:00,30145181,5248,"Revenue","Sanctuary Personnel Ltd","External Temporary Staff"
"Peterborough","http://opendatacommunities.org/id/unitary-authority/peterborough","Peterborough City Council","Adults","Independent Sector Placements","Services",01/11/2017 00:00:00,30148425,5124.6,"Revenue","Voyage","Residential Care"
"Peterborough","http://opendatacommunities.org/id/unitary-authority/peterborough","Peterborough City Council","Adults","Independent Sector Placements","Services",01/11/2017 00:00:00,30148426,3985.64,"Revenue","Voyage","Home Care"
"Peterborough","http://opendatacommunities.org/id/unitary-authority/peterborough","Peterborough City Council","Adults","Independent Sector Placements","Services",01/11/2017 00:00:00,30148427,3985.64,"Revenue","Voyage","Home Care"
"Peterborough","http://opendatacommunities.org/id/unitary-authority/peterborough","Peterborough City Council","Adults","Independent Sector Placements","Services",01/11/2017 00:00:00,30148429,3751.08,"Revenue","Voyage","Home Care"
"Peterborough","http://opendatacommunities.org/id/unitary-authority/peterborough","Peterborough City Council","Adults","Independent Sector Placements","Services",01/11/2017 00:00:00,30148430,4354.16,"Revenue","Voyage","Home Care"
"Peterborough","http://opendatacommunities.org/id/unitary-authority/peterborough","Peterborough City Council","Adults","Independent Sector Placements","Services",01/11/2017 00:00:00,30148431,4546.4,"Revenue","Voyage","Residential Care"
"Peterborough","http://opendatacommunities.org/id/unitary-authority/peterborough","Peterborough City Council","Adults","Independent Sector Placements","Services",01/11/2017 00:00:00,30148432,1192.8,"Revenue","Voyage","Home Care"
"Peterborough","http://opendatacommunities.org/id/unitary-authority/peterborough","Peterborough City Council","Adults","Independent Sector Placements","Services",01/11/2017 00:00:00,30148433,6642.2,"Revenue","Voyage","Home Care"
"Peterborough","http://opendatacommunities.org/id/unitary-authority/peterborough","Peterborough City Council","Adults","Independent Sector Placements","Services",01/11/2017 00:00:00,30148434,4334.4,"Revenue","Voyage","Home Care"
"Peterborough","http://opendatacommunities.org/id/unitary-authority/peterborough","Peterborough City Council","Adults","Independent Sector Placements","Services",01/11/2017 00:00:00,30148435,4724.04,"Revenue","Voyage","Home Care"
"Peterborough","http://opendatacommunities.org/id/unitary-authority/peterborough","Peterborough City Council","Adults","Independent Sector Placements","Services",01/11/2017 00:00:00,30148436,4089.6,"Revenue","Voyage","Home Care"
"Peterborough","http://opendatacommunities.org/id/unitary-authority/peterborough","Peterborough City Council","Adults","Independent Sector Placements","Services",01/11/2017 00:00:00,30148437,4334.4,"Revenue","Voyage","Home Care"
"Peterborough","http://opendatacommunities.org/id/unitary-authority/peterborough","Peterborough City Council","Adults","Independent Sector Placements","Services",01/11/2017 00:00:00,30148438,3538.96,"Revenue","Voyage","Home Care"
"Peterborough","http://opendatacommunities.org/id/unitary-authority/peterborough","Peterborough City Council","Adults","Independent Sector Placements","Services",01/11/2017 00:00:00,30148439,1192.8,"Revenue","Voyage","Home Care"
"Peterborough","http://opendatacommunities.org/id/unitary-authority/peterborough","Peterborough City Council","Adults","Independent Sector Placements","Services",01/11/2017 00:00:00,30148441,4724.04,"Revenue","Voyage","Home Care"
"Peterborough","http://opendatacommunities.org/id/unitary-authority/peterborough","Peterborough City Council","Adults","Independent Sector Placements","Services",01/11/2017 00:00:00,30148442,4546.4,"Revenue","Voyage","Residential Care"
"Peterborough","http://opendatacommunities.org/id/unitary-authority/peterborough","Peterborough City Council","Corporate","Corporate","Non Revenue",01/11/2017 00:00:00,30148452,4000,"Capital","NPS Peterborough Ltd","Consultants Fees"
"Peterborough","http://opendatacommunities.org/id/unitary-authority/peterborough","Peterborough City Council","Adults","Independent Sector Placements","Services",01/11/2017 00:00:00,30148454,1192.8,"Revenue","Voyage","Home Care"
"Peterborough","http://opendatacommunities.org/id/unitary-authority/peterborough","Peterborough City Council","Adults","Independent Sector Placements","Services",01/11/2017 00:00:00,30148455,5144.12,"Revenue","Voyage","Residential Care"
"Peterborough","http://opendatacommunities.org/id/unitary-authority/peterborough","Peterborough City Council","Adults","Independent Sector Placements","Services",01/11/2017 00:00:00,30148456,5144.12,"Revenue","Voyage","Residential Care"
"Peterborough","http://opendatacommunities.org/id/unitary-authority/peterborough","Peterborough City Council","Adults","Independent Sector Placements","Services",01/11/2017 00:00:00,30148457,3538.96,"Revenue","Voyage","Home Care"
"Peterborough","http://opendatacommunities.org/id/unitary-authority/peterborough","Peterborough City Council","Adults","Independent Sector Placements","Services",01/11/2017 00:00:00,30148458,4659,"Revenue","Voyage","Residential Care"
"Peterborough","http://opendatacommunities.org/id/unitary-authority/peterborough","Peterborough City Council","Adults","Independent Sector Placements","Services",01/11/2017 00:00:00,30148459,1192.8,"Revenue","Voyage","Home Care"
"Peterborough","http://opendatacommunities.org/id/unitary-authority/peterborough","Peterborough City Council","Adults","Independent Sector Placements","Services",01/11/2017 00:00:00,30148460,3095.6,"Revenue","Voyage","Home Care"
"Peterborough","http://opendatacommunities.org/id/unitary-authority/peterborough","Peterborough City Council","Corporate","Corporate","Non Revenue",01/11/2017 00:00:00,30148461,1554,"Capital","NPS Peterborough Ltd","Consultants Fees"
"Peterborough","http://opendatacommunities.org/id/unitary-authority/peterborough","Peterborough City Council","Adults","Independent Sector Placements","Services",01/11/2017 00:00:00,30148462,4659,"Revenue","Voyage","Residential Care"
"Peterborough","http://opendatacommunities.org/id/unitary-authority/peterborough","Peterborough City Council","Corporate","Corporate","Non Revenue",01/11/2017 00:00:00,30148463,1500,"Capital","NPS Peterborough Ltd","Consultants Fees"
"Peterborough","http://opendatacommunities.org/id/unitary-authority/peterborough","Peterborough City Council","Adults","Independent Sector Placements","Services",01/11/2017 00:00:00,30148464,994,"Revenue","Voyage","Home Care"
"Peterborough","http://opendatacommunities.org/id/unitary-authority/peterborough","Peterborough City Council","Adults","Independent Sector Placements","Services",01/11/2017 00:00:00,30148465,5470.4,"Revenue","Voyage","Home Care"
"Peterborough","http://opendatacommunities.org/id/unitary-authority/peterborough","Peterborough City Council","Adults","Independent Sector Placements","Services",01/11/2017 00:00:00,30148466,4354.04,"Revenue","Voyage","Home Care"
"Peterborough","http://opendatacommunities.org/id/unitary-authority/peterborough","Peterborough City Council","Corporate","Corporate","Non Revenue",01/11/2017 00:00:00,30148467,1554,"Capital","NPS Peterborough Ltd","Consultants Fees"
"Peterborough","http://opendatacommunities.org/id/unitary-authority/peterborough","Peterborough City Council","Adults","Independent Sector Placements","Services",01/11/2017 00:00:00,30148470,4174,"Revenue","Voyage","Home Care"
"Peterborough","http://opendatacommunities.org/id/unitary-authority/peterborough","Peterborough City Council","Adults","Independent Sector Placements","Services",01/11/2017 00:00:00,30148471,4174,"Revenue","Voyage","Home Care"
"Peterborough","http://opendatacommunities.org/id/unitary-authority/peterborough","Peterborough City Council","Adults","Independent Sector Placements","Services",01/11/2017 00:00:00,30148473,1779.12,"Revenue","Voyage","Home Care"
"Peterborough","http://opendatacommunities.org/id/unitary-authority/peterborough","Peterborough City Council","Adults","Independent Sector Placements","Services",01/11/2017 00:00:00,30148476,6484.8,"Revenue","Voyage","Home Care"
"Peterborough","http://opendatacommunities.org/id/unitary-authority/peterborough","Peterborough City Council","Corporate Property","Strategic Projects","Services",01/11/2017 00:00:00,30148504,42400,"Revenue","NPS Peterborough Ltd","Consultants Fees"
"Peterborough","http://opendatacommunities.org/id/unitary-authority/peterborough","Peterborough City Council","Vivacity/Cultural Services","Cultural Services","Energy Costs",01/11/2017 00:00:00,30148512,-910.95,"Revenue","Corona Energy Retail 4 Limited","Gas"
"Peterborough","http://opendatacommunities.org/id/unitary-authority/peterborough","Peterborough City Council","Vivacity/Cultural Services","Cultural Services","Energy Costs",01/11/2017 00:00:00,30148512,845.76,"Revenue","Corona Energy Retail 4 Limited","Gas"
"Peterborough","http://opendatacommunities.org/id/unitary-authority/peterborough","Peterborough City Council","Education","PFI","Energy Costs",01/11/2017 00:00:00,30148512,659.18,"Revenue","Corona Energy Retail 4 Limited","Gas"
"Peterborough","http://opendatacommunities.org/id/unitary-authority/peterborough","Peterborough City Council","Education","PFI","Energy Costs",01/11/2017 00:00:00,30148512,591.94,"Revenue","Corona Energy Retail 4 Limited","Gas"
"Peterborough","http://opendatacommunities.org/id/unitary-authority/peterborough","Peterborough City Council","Vivacity/Cultural Services","Cultural Services","Energy Costs",01/11/2017 00:00:00,30148512,1231.75,"Revenue","Corona Energy Retail 4 Limited","Gas"
"Peterborough","http://opendatacommunities.org/id/unitary-authority/peterborough","Peterborough City Council","Corporate Items","Corporate Services","Agency Staff",01/11/2017 00:00:00,30148644,13090,"Revenue","Penna Plc","External Temporary Staff"
"Peterborough","http://opendatacommunities.org/id/unitary-authority/peterborough","Peterborough City Council","Financial Services","Finance","Agency Staff",01/11/2017 00:00:00,30148645,17920,"Revenue","Penna Plc","External Temporary Staff"
"Peterborough","http://opendatacommunities.org/id/unitary-authority/peterborough","Peterborough City Council","Corporate Items","Corporate Services","Agency Staff",01/11/2017 00:00:00,30148646,9758,"Revenue","Penna Plc","External Temporary Staff"
"Peterborough","http://opendatacommunities.org/id/unitary-authority/peterborough","Peterborough City Council","Amey Peterborough & Waste Management","Waste & Operational Svs Mgmt","Agency Staff",01/11/2017 00:00:00,30148648,13468,"Revenue","Penna Plc","External Temporary Staff"
"Peterborough","http://opendatacommunities.org/id/unitary-authority/peterborough","Peterborough City Council","Director's Office","Director's Office","Agency Staff",01/11/2017 00:00:00,30148650,19057,"Revenue","Penna Plc","External Temporary Staff"
"Peterborough","http://opendatacommunities.org/id/unitary-authority/peterborough","Peterborough City Council","Financial Services","Finance","Agency Staff",01/11/2017 00:00:00,30148652,12390,"Revenue","Penna Plc","External Temporary Staff"
"Peterborough","http://opendatacommunities.org/id/unitary-authority/peterborough","Peterborough City Council","Adults","Independent Sector Placements","Services",01/11/2017 00:00:00,30148832,3053.16,"Revenue","Maison Care Ltd","Residential Care"
"Peterborough","http://opendatacommunities.org/id/unitary-authority/peterborough","Peterborough City Council","HR","HR WFD & Training","Services",01/11/2017 00:00:00,30149172,1828,"Revenue","City College Peterborough","Course Instructors Fees"
"Peterborough","http://opendatacommunities.org/id/unitary-authority/peterborough","Peterborough City Council","Development and Construction","Development Management","Services",01/11/2017 00:00:00,30149181,946,"Revenue","Johnston Press Midlands Division","Advertising"
"Peterborough","http://opendatacommunities.org/id/unitary-authority/peterborough","Peterborough City Council","Peterborough Highway Services","Network and Traffic Management","Services",01/11/2017 00:00:00,30149184,517.27,"Revenue","Johnston Press Midlands Division","Advertising"
"Peterborough","http://opendatacommunities.org/id/unitary-authority/peterborough","Peterborough City Council","Adults","Independent Sector Placements","Services",01/11/2017 00:00:00,30149195,1008.76,"Revenue","GCH (North London) Ltd - Tudors","Residential Care"
"Peterborough","http://opendatacommunities.org/id/unitary-authority/peterborough","Peterborough City Council","Adults","Independent Sector Placements","Services",01/11/2017 00:00:00,30149196,724.24,"Revenue","GCH (North London) Ltd - Tudors","Residential Care"
"Peterborough","http://opendatacommunities.org/id/unitary-authority/peterborough","Peterborough City Council","Adults","Independent Sector Placements","Services",01/11/2017 00:00:00,30149197,1038.44,"Revenue","GCH (North London) Ltd - Tudors","Residential Care"
"Peterborough","http://opendatacommunities.org/id/unitary-authority/peterborough","Peterborough City Council","Adults","Independent Sector Placements","Services",01/11/2017 00:00:00,30149198,1284.08,"Revenue","GCH (North London) Ltd - Tudors","Residential Care"
"Peterborough","http://opendatacommunities.org/id/unitary-authority/peterborough","Peterborough City Council","Adults","Independent Sector Placements","Services",01/11/2017 00:00:00,30149199,1085.72,"Revenue","GCH (North London) Ltd - Tudors","Residential Care"
"Peterborough","http://opendatacommunities.org/id/unitary-authority/peterborough","Peterborough City Council","Adults","Independent Sector Placements","Services",01/11/2017 00:00:00,30149200,1064.8,"Revenue","GCH (North London) Ltd - Tudors","Residential Care"
"Peterborough","http://opendatacommunities.org/id/unitary-authority/peterborough","Peterborough City Council","Adults","Independent Sector Placements","Services",01/11/2017 00:00:00,30149201,1261.4,"Revenue","GCH (North London) Ltd - Tudors","Residential Care"
"Peterborough","http://opendatacommunities.org/id/unitary-authority/peterborough","Peterborough City Council","Adults","Independent Sector Placements","Services",01/11/2017 00:00:00,30149202,1776.24,"Revenue","GCH (North London) Ltd - Tudors","Residential Care"
"Peterborough","http://opendatacommunities.org/id/unitary-authority/peterborough","Peterborough City Council","Adults","Independent Sector Placements","Services",01/11/2017 00:00:00,30149203,1114.68,"Revenue","GCH (North London) Ltd - Tudors","Residential Care"
"Peterborough","http://opendatacommunities.org/id/unitary-authority/peterborough","Peterborough City Council","Adults","Independent Sector Placements","Services",01/11/2017 00:00:00,30149204,1239.6,"Revenue","GCH (North London) Ltd - Tudors","Residential Care"
"Peterborough","http://opendatacommunities.org/id/unitary-authority/peterborough","Peterborough City Council","Adults","Independent Sector Placements","Services",01/11/2017 00:00:00,30149206,1208.8,"Revenue","GCH (North London) Ltd - Tudors","Residential Care"
"Peterborough","http://opendatacommunities.org/id/unitary-authority/peterborough","Peterborough City Council","Adults","Independent Sector Placements","Services",01/11/2017 00:00:00,30149207,2021.88,"Revenue","GCH (North London) Ltd - Tudors","Residential Care"
"Peterborough","http://opendatacommunities.org/id/unitary-authority/peterborough","Peterborough City Council","Adults","Independent Sector Placements","Services",01/11/2017 00:00:00,30149209,1006.12,"Revenue","GCH (North London) Ltd - Tudors","Residential Care"
"Peterborough","http://opendatacommunities.org/id/unitary-authority/peterborough","Peterborough City Council","Adults","Independent Sector Placements","Services",01/11/2017 00:00:00,30149210,1288.08,"Revenue","GCH (North London) Ltd - Tudors","Residential Care"
"Peterborough","http://opendatacommunities.org/id/unitary-authority/peterborough","Peterborough City Council","Adults","Independent Sector Placements","Services",01/11/2017 00:00:00,30149211,972.96,"Revenue","GCH (North London) Ltd - Tudors","Residential Care"
"Peterborough","http://opendatacommunities.org/id/unitary-authority/peterborough","Peterborough City Council","Adults","Independent Sector Placements","Services",01/11/2017 00:00:00,30149212,1721.96,"Revenue","GCH (North London) Ltd - Tudors","Residential Care"
"Peterborough","http://opendatacommunities.org/id/unitary-authority/peterborough","Peterborough City Council","Adults","Independent Sector Placements","Services",01/11/2017 00:00:00,30149213,701.2,"Revenue","GCH (North London) Ltd - Tudors","Residential Care"
"Peterborough","http://opendatacommunities.org/id/unitary-authority/peterborough","Peterborough City Council","Adults","Independent Sector Placements","Services",01/11/2017 00:00:00,30149214,1133.24,"Revenue","GCH (North London) Ltd - Tudors","Residential Care"
"Peterborough","http://opendatacommunities.org/id/unitary-authority/peterborough","Peterborough City Council","Adults","Independent Sector Placements","Services",01/11/2017 00:00:00,30149215,991.12,"Revenue","GCH (North London) Ltd - Tudors","Residential Care"
"Peterborough","http://opendatacommunities.org/id/unitary-authority/peterborough","Peterborough City Council","Adults","Independent Sector Placements","Services",01/11/2017 00:00:00,30149217,1312.08,"Revenue","GCH (North London) Ltd - Tudors","Residential Care"
"Peterborough","http://opendatacommunities.org/id/unitary-authority/peterborough","Peterborough City Council","Adults","Independent Sector Placements","Services",01/11/2017 00:00:00,30149219,1384.08,"Revenue","GCH (North London) Ltd - Tudors","Residential Care"
"Peterborough","http://opendatacommunities.org/id/unitary-authority/peterborough","Peterborough City Council","Adults","Independent Sector Placements","Services",01/11/2017 00:00:00,30149227,1640.28,"Revenue","GCH (North London) Ltd - Tudors","Residential Care"
"Peterborough","http://opendatacommunities.org/id/unitary-authority/peterborough","Peterborough City Council","Adults","Independent Sector Placements","Services",01/11/2017 00:00:00,30149236,1143.92,"Revenue","GCH (North London) Ltd - Tudors","Residential Care"
"Peterborough","http://opendatacommunities.org/id/unitary-authority/peterborough","Peterborough City Council","Adults","Independent Sector Placements","Services",01/11/2017 00:00:00,30149238,1038.44,"Revenue","GCH (North London) Ltd - Tudors","Residential Care"
"Peterborough","http://opendatacommunities.org/id/unitary-authority/peterborough","Peterborough City Council","Corporate Property","Office Accomodation","Cleaning & Domestic Supplies",01/11/2017 00:00:00,30149328,1477.28,"Revenue","Beebys Ltd","Cleaning"
"Peterborough","http://opendatacommunities.org/id/unitary-authority/peterborough","Peterborough City Council","Communities","Targeted Youth Service","Services",01/11/2017 00:00:00,30149339,2305,"Revenue","Peterborough Open Awards Centre CIC","Programmes"
"Peterborough","http://opendatacommunities.org/id/unitary-authority/peterborough","Peterborough City Council","Director, OP & JV","Growth HoS","Services",01/11/2017 00:00:00,30149366,20000,"Revenue","Opportunity Peterborough T/A OP Ltd","Projects"
"Peterborough","http://opendatacommunities.org/id/unitary-authority/peterborough","Peterborough City Council","Director, OP & JV","Growth HoS","Third Party Payments",01/11/2017 00:00:00,30149368,50000,"Revenue","Opportunity Peterborough T/A OP Ltd","Contributions"
"Peterborough","http://opendatacommunities.org/id/unitary-authority/peterborough","Peterborough City Council","Corporate Property","Commercial Propety","Third Party Payments",01/11/2017 00:00:00,30149369,16750,"Revenue","Opportunity Peterborough T/A OP Ltd","Third Party Payments - Contract"
"Peterborough","http://opendatacommunities.org/id/unitary-authority/peterborough","Peterborough City Council","Adults","Independent Sector Placements","Services",01/11/2017 00:00:00,30149402,2300,"Revenue","GCH (North London) Ltd - Tudors","Residential Care"
"Peterborough","http://opendatacommunities.org/id/unitary-authority/peterborough","Peterborough City Council","Adults","Independent Sector Placements","Services",01/11/2017 00:00:00,30149492,4992.32,"Revenue","LEONARD CHESHIRE DISABILITY","Residential Care"
"Peterborough","http://opendatacommunities.org/id/unitary-authority/peterborough","Peterborough City Council","Adults","Independent Sector Placements","Services",01/11/2017 00:00:00,30149493,2703.64,"Revenue","LEONARD CHESHIRE DISABILITY","Residential Care"
"Peterborough","http://opendatacommunities.org/id/unitary-authority/peterborough","Peterborough City Council","Legal & Democratic","Democratic Services","Tools, Equipment, Furniture & Materials",01/11/2017 00:00:00,30149502,865.85,"Revenue","Robert Goddard Ltd","Uniform/Protective Clothing"
"Peterborough","http://opendatacommunities.org/id/unitary-authority/peterborough","Peterborough City Council","Westcombe Engineering","Westcombe Engineering","Tools, Equipment, Furniture & Materials",01/11/2017 00:00:00,30149508,664.56,"Revenue","Perkins Engines Co Ltd","Items For Resale"
"Peterborough","http://opendatacommunities.org/id/unitary-authority/peterborough","Peterborough City Council","Commissioning and Commercial Operations","Clare Lodge","Agency Staff",01/11/2017 00:00:00,30149509,512,"Revenue","Wrixon Care Services","External Temporary Staff"
"Peterborough","http://opendatacommunities.org/id/unitary-authority/peterborough","Peterborough City Council","Education","Pupil Referral Unit","Agency Staff",01/11/2017 00:00:00,30149511,1035,"Revenue","Teaching Personnel Ltd","Supply Teachers"
"Peterborough","http://opendatacommunities.org/id/unitary-authority/peterborough","Peterborough City Council","Peterborough Highway Services","Highway & Drainage Control","Agency Staff",01/11/2017 00:00:00,30149513,1584,"Revenue","Matchtech","External Temporary Staff"
"Peterborough","http://opendatacommunities.org/id/unitary-authority/peterborough","Peterborough City Council","Commissioning and Commercial Operations","Clare Lodge","Agency Staff",01/11/2017 00:00:00,30149515,2000,"Revenue","Wrixon Care Services","External Temporary Staff"
"Peterborough","http://opendatacommunities.org/id/unitary-authority/peterborough","Peterborough City Council","Commissioning and Commercial Operations","Clare Lodge","Agency Staff",01/11/2017 00:00:00,30149516,544,"Revenue","Wrixon Care Services","External Temporary Staff"
"Peterborough","http://opendatacommunities.org/id/unitary-authority/peterborough","Peterborough City Council","Corporate","Corporate","Non Revenue",01/11/2017 00:00:00,30149517,6501.65,"Capital","Virgin Media Ltd","Infrastructure"
"Peterborough","http://opendatacommunities.org/id/unitary-authority/peterborough","Peterborough City Council","Children's & Safeguarding","Adult & Children Safeguarding Board","Services",01/11/2017 00:00:00,30149545,550,"Revenue","Flick Schofield Ltd","Purchased Social Care Services"
"Peterborough","http://opendatacommunities.org/id/unitary-authority/peterborough","Peterborough City Council","Corporate","Corporate","Non Revenue",01/11/2017 00:00:00,30149548,2950,"Capital","Badenoch & Clark Ltd","Consultants Fees"
"Peterborough","http://opendatacommunities.org/id/unitary-authority/peterborough","Peterborough City Council","Vivacity/Cultural Services","Cultural Services","Services",01/11/2017 00:00:00,30149561,3000,"Revenue","Knight, Kavanagh & Page","Hired Services"
"Peterborough","http://opendatacommunities.org/id/unitary-authority/peterborough","Peterborough City Council","Westcombe Engineering","Westcombe Engineering","Tools, Equipment, Furniture & Materials",01/11/2017 00:00:00,30149567,634,"Revenue","AALCO","Items For Resale"
"Peterborough","http://opendatacommunities.org/id/unitary-authority/peterborough","Peterborough City Council","Communities","Targeted Youth Service","Services",01/11/2017 00:00:00,30149570,855,"Revenue","Cambs East Guides Jarman Centre","Programmes"
"Peterborough","http://opendatacommunities.org/id/unitary-authority/peterborough","Peterborough City Council","Amey Peterborough & Waste Management","Waste Management","Services",01/11/2017 00:00:00,30149576,11692.24,"Revenue","AmeyCespa (East) Ltd","Recycling"
"Peterborough","http://opendatacommunities.org/id/unitary-authority/peterborough","Peterborough City Council","Education","Special Educational Needs / Inclusion","Services",01/11/2017 00:00:00,30149579,1461.87,"Revenue","Connevans Ltd","Education Expenses"
"Peterborough","http://opendatacommunities.org/id/unitary-authority/peterborough","Peterborough City Council","Communities","Other Enforcement","Services",01/11/2017 00:00:00,30149589,2892.93,"Revenue","Quadrant Security Group Ltd","Cctv"
"Peterborough","http://opendatacommunities.org/id/unitary-authority/peterborough","Peterborough City Council","Corporate","Corporate","Non Revenue",01/11/2017 00:00:00,30149591,1696,"Capital","NPS Peterborough Ltd","Consultants Fees"
"Peterborough","http://opendatacommunities.org/id/unitary-authority/peterborough","Peterborough City Council","Corporate","Corporate","Non Revenue",01/11/2017 00:00:00,30149592,4628.66,"Capital","NPS Peterborough Ltd","Consultants Fees"
"Peterborough","http://opendatacommunities.org/id/unitary-authority/peterborough","Peterborough City Council","Legal & Democratic","Legal Services","Agency Staff",01/11/2017 00:00:00,30149599,2146,"Revenue","Venn Group Ltd","External Temporary Staff"
"Peterborough","http://opendatacommunities.org/id/unitary-authority/peterborough","Peterborough City Council","Legal & Democratic","Legal Services","Agency Staff",01/11/2017 00:00:00,30149600,1882.98,"Revenue","Venn Group Ltd","External Temporary Staff"
"Peterborough","http://opendatacommunities.org/id/unitary-authority/peterborough","Peterborough City Council","Legal & Democratic","Legal Services","Agency Staff",01/11/2017 00:00:00,30149602,638,"Revenue","Venn Group Ltd","External Temporary Staff"
"Peterborough","http://opendatacommunities.org/id/unitary-authority/peterborough","Peterborough City Council","Legal & Democratic","Legal Services","Agency Staff",01/11/2017 00:00:00,30149603,1702,"Revenue","Venn Group Ltd","External Temporary Staff"
"Peterborough","http://opendatacommunities.org/id/unitary-authority/peterborough","Peterborough City Council","Children's & Safeguarding","Early Help ASC/CSC","Services",01/11/2017 00:00:00,30149664,2960,"Revenue","BDP Social Care Ltd","Purchased Social Care Services"
"Peterborough","http://opendatacommunities.org/id/unitary-authority/peterborough","Peterborough City Council","Commissioning and Commercial Operations","Commissioning","Services",01/11/2017 00:00:00,30149665,640,"Revenue","BDP Social Care Ltd","Purchased Social Care Services"
"Peterborough","http://opendatacommunities.org/id/unitary-authority/peterborough","Peterborough City Council","Children's & Safeguarding","External Education Placements","Services",01/11/2017 00:00:00,30149690,9000,"Revenue","A & T Home Limited","Boarding Out Allowances"
"Peterborough","http://opendatacommunities.org/id/unitary-authority/peterborough","Peterborough City Council","Children's & Safeguarding","External Education Placements","Services",01/11/2017 00:00:00,30149691,9000,"Revenue","A & T Home Limited","Boarding Out Allowances"
"Peterborough","http://opendatacommunities.org/id/unitary-authority/peterborough","Peterborough City Council","Commissioning and Commercial Operations","Commissioning","Services",01/11/2017 00:00:00,30149794,800,"Revenue","BDP Social Care Ltd","Purchased Social Care Services"
"Peterborough","http://opendatacommunities.org/id/unitary-authority/peterborough","Peterborough City Council","Education","PFI","Services",01/11/2017 00:00:00,30149844,622.41,"Revenue","IIC by Education (P'boro) Ltd","Service Charge"
"Peterborough","http://opendatacommunities.org/id/unitary-authority/peterborough","Peterborough City Council","Education","PFI","Services",01/11/2017 00:00:00,30149845,622.41,"Revenue","IIC by Education (P'boro) Ltd","Service Charge"
"Peterborough","http://opendatacommunities.org/id/unitary-authority/peterborough","Peterborough City Council","Peterborough Highway Services","Transport & Infrastructure Commissioning","Services",01/11/2017 00:00:00,30149850,27505.92,"Revenue","Stagecoach in Peterborough","Contractors"
"Peterborough","http://opendatacommunities.org/id/unitary-authority/peterborough","Peterborough City Council","Adults","Independent Sector Placements","Services",01/11/2017 00:00:00,30149934,7966.75,"Revenue","NEW BOUNDARIES COMMUNITY SERVICES LTD","Residential Care"
"Peterborough","http://opendatacommunities.org/id/unitary-authority/peterborough","Peterborough City Council","Adults","Independent Sector Placements","Services",01/11/2017 00:00:00,30149955,571.02,"Revenue","Athena (Ashlynn Grange)","Residential Care"
"Peterborough","http://opendatacommunities.org/id/unitary-authority/peterborough","Peterborough City Council","Legal & Democratic","Legal Services","Services",01/11/2017 00:00:00,30149962,659.46,"Revenue","Blandford Consultancy","Expert Witnesses"
"Peterborough","http://opendatacommunities.org/id/unitary-authority/peterborough","Peterborough City Council","Adults","Independent Sector Placements","Services",01/11/2017 00:00:00,30149966,2440,"Revenue","Thera East Anglia","Day Care"
"Peterborough","http://opendatacommunities.org/id/unitary-authority/peterborough","Peterborough City Council","Adults","Independent Sector Placements","Services",01/11/2017 00:00:00,30149985,1008,"Revenue","Thera East Anglia","Day Care"
"Peterborough","http://opendatacommunities.org/id/unitary-authority/peterborough","Peterborough City Council","Adults","Independent Sector Placements","Services",01/11/2017 00:00:00,30149986,1260,"Revenue","Thera East Anglia","Day Care"
"Peterborough","http://opendatacommunities.org/id/unitary-authority/peterborough","Peterborough City Council","Adults","Independent Sector Placements","Services",01/11/2017 00:00:00,30149987,860,"Revenue","Thera East Anglia","Day Care"
"Peterborough","http://opendatacommunities.org/id/unitary-authority/peterborough","Peterborough City Council","Adults","Independent Sector Placements","Services",01/11/2017 00:00:00,30149988,2440,"Revenue","Thera East Anglia","Day Care"
"Peterborough","http://opendatacommunities.org/id/unitary-authority/peterborough","Peterborough City Council","Adults","Home Services Delivery Model","Services",01/11/2017 00:00:00,30150024,765,"Revenue","Dave Elms Building & Maintenance","Contractors"
"Peterborough","http://opendatacommunities.org/id/unitary-authority/peterborough","Peterborough City Council","Adults","Mental Health","Third Party Payments",01/11/2017 00:00:00,30150025,105114.16,"Revenue","Cambs & P'boro NHS Foundation Trust","Third Party Payments - Contract"
"Peterborough","http://opendatacommunities.org/id/unitary-authority/peterborough","Peterborough City Council","Adults","Independent Sector Placements","Services",01/11/2017 00:00:00,30150036,3515,"Revenue","Thera East Anglia","Day Care"
"Peterborough","http://opendatacommunities.org/id/unitary-authority/peterborough","Peterborough City Council","Adults","Independent Sector Placements","Services",01/11/2017 00:00:00,30150037,2440,"Revenue","Thera East Anglia","Day Care"
"Peterborough","http://opendatacommunities.org/id/unitary-authority/peterborough","Peterborough City Council","Adults","Independent Sector Placements","Services",01/11/2017 00:00:00,30150038,860,"Revenue","Thera East Anglia","Day Care"
"Peterborough","http://opendatacommunities.org/id/unitary-authority/peterborough","Peterborough City Council","Adults","Independent Sector Placements","Services",01/11/2017 00:00:00,30150039,504,"Revenue","Thera East Anglia","Day Care"
"Peterborough","http://opendatacommunities.org/id/unitary-authority/peterborough","Peterborough City Council","Adults","Independent Sector Placements","Services",01/11/2017 00:00:00,30150040,2440,"Revenue","Thera East Anglia","Day Care"
"Peterborough","http://opendatacommunities.org/id/unitary-authority/peterborough","Peterborough City Council","Adults","Independent Sector Placements","Services",01/11/2017 00:00:00,30150041,1464,"Revenue","Thera East Anglia","Day Care"
"Peterborough","http://opendatacommunities.org/id/unitary-authority/peterborough","Peterborough City Council","Adults","Independent Sector Placements","Services",01/11/2017 00:00:00,30150042,549,"Revenue","Thera East Anglia","Day Care"
"Peterborough","http://opendatacommunities.org/id/unitary-authority/peterborough","Peterborough City Council","Adults","Independent Sector Placements","Services",01/11/2017 00:00:00,30150043,2440,"Revenue","Thera East Anglia","Day Care"
"Peterborough","http://opendatacommunities.org/id/unitary-authority/peterborough","Peterborough City Council","Adults","Independent Sector Placements","Services",01/11/2017 00:00:00,30150044,2440,"Revenue","Thera East Anglia","Day Care"
"Peterborough","http://opendatacommunities.org/id/unitary-authority/peterborough","Peterborough City Council","Adults","Independent Sector Placements","Services",01/11/2017 00:00:00,30150045,1952,"Revenue","Thera East Anglia","Day Care"
"Peterborough","http://opendatacommunities.org/id/unitary-authority/peterborough","Peterborough City Council","Adults","Independent Sector Placements","Services",01/11/2017 00:00:00,30150046,1260,"Revenue","Thera East Anglia","Day Care"
"Peterborough","http://opendatacommunities.org/id/unitary-authority/peterborough","Peterborough City Council","Adults","Independent Sector Placements","Services",01/11/2017 00:00:00,30150047,1260,"Revenue","Thera East Anglia","Day Care"
"Peterborough","http://opendatacommunities.org/id/unitary-authority/peterborough","Peterborough City Council","Adults","Independent Sector Placements","Services",01/11/2017 00:00:00,30150048,688,"Revenue","Thera East Anglia","Day Care"
"Peterborough","http://opendatacommunities.org/id/unitary-authority/peterborough","Peterborough City Council","Adults","Independent Sector Placements","Services",01/11/2017 00:00:00,30150049,1260,"Revenue","Thera East Anglia","Day Care"
"Peterborough","http://opendatacommunities.org/id/unitary-authority/peterborough","Peterborough City Council","Adults","Independent Sector Placements","Services",01/11/2017 00:00:00,30150050,2440,"Revenue","Thera East Anglia","Day Care"
"Peterborough","http://opendatacommunities.org/id/unitary-authority/peterborough","Peterborough City Council","Adults","Independent Sector Placements","Services",01/11/2017 00:00:00,30150051,504,"Revenue","Thera East Anglia","Day Care"
"Peterborough","http://opendatacommunities.org/id/unitary-authority/peterborough","Peterborough City Council","Education","Pupil Referral Unit","Agency Staff",01/11/2017 00:00:00,30150095,5203.39,"Revenue","Vision for Education Ltd","Supply Teachers"
"Peterborough","http://opendatacommunities.org/id/unitary-authority/peterborough","Peterborough City Council","Adults","Independent Sector Placements","Services",01/11/2017 00:00:00,30150338,3600,"Revenue","Alysia Caring Ltd T/a Cherry Blossom care Home","Residential Care"
"Peterborough","http://opendatacommunities.org/id/unitary-authority/peterborough","Peterborough City Council","Adults","Independent Sector Placements","Services",01/11/2017 00:00:00,30150339,2909.28,"Revenue","Alysia Caring Ltd T/a Cherry Blossom care Home","Residential Care"
"Peterborough","http://opendatacommunities.org/id/unitary-authority/peterborough","Peterborough City Council","Adults","Independent Sector Placements","Services",01/11/2017 00:00:00,30150340,2739.2,"Revenue","Alysia Caring Ltd T/a Cherry Blossom care Home","Residential Care"
"Peterborough","http://opendatacommunities.org/id/unitary-authority/peterborough","Peterborough City Council","Adults","Independent Sector Placements","Services",01/11/2017 00:00:00,30150342,2467.48,"Revenue","Alysia Caring Ltd T/a Cherry Blossom care Home","Residential Care"
"Peterborough","http://opendatacommunities.org/id/unitary-authority/peterborough","Peterborough City Council","Adults","Independent Sector Placements","Services",01/11/2017 00:00:00,30150343,1900.52,"Revenue","Alysia Caring Ltd T/a Cherry Blossom care Home","Residential Care"
"Peterborough","http://opendatacommunities.org/id/unitary-authority/peterborough","Peterborough City Council","Adults","Independent Sector Placements","Services",01/11/2017 00:00:00,30150344,3100,"Revenue","Alysia Caring Ltd T/a Cherry Blossom care Home","Residential Care"
"Peterborough","http://opendatacommunities.org/id/unitary-authority/peterborough","Peterborough City Council","Adults","Independent Sector Placements","Services",01/11/2017 00:00:00,30150345,2952.8,"Revenue","Alysia Caring Ltd T/a Cherry Blossom care Home","Residential Care"
"Peterborough","http://opendatacommunities.org/id/unitary-authority/peterborough","Peterborough City Council","Adults","Independent Sector Placements","Services",01/11/2017 00:00:00,30150346,1862.2,"Revenue","Alysia Caring Ltd T/a Cherry Blossom care Home","Residential Care"
"Peterborough","http://opendatacommunities.org/id/unitary-authority/peterborough","Peterborough City Council","Adults","Independent Sector Placements","Services",01/11/2017 00:00:00,30150383,2300,"Revenue","GCH (North London) Ltd - Tudors","Residential Care"
"Peterborough","http://opendatacommunities.org/id/unitary-authority/peterborough","Peterborough City Council","Adults","Independent Sector Placements","Services",01/11/2017 00:00:00,30150385,2128.92,"Revenue","Alysia Caring Ltd T/a Cherry Blossom care Home","Residential Care"
"Peterborough","http://opendatacommunities.org/id/unitary-authority/peterborough","Peterborough City Council","Adults","Independent Sector Placements","Services",01/11/2017 00:00:00,30150386,1775.76,"Revenue","Alysia Caring Ltd T/a Cherry Blossom care Home","Residential Care"
"Peterborough","http://opendatacommunities.org/id/unitary-authority/peterborough","Peterborough City Council","Adults","Independent Sector Placements","Services",01/11/2017 00:00:00,30150387,3460.44,"Revenue","Alysia Caring Ltd T/a Cherry Blossom care Home","Residential Care"
"Peterborough","http://opendatacommunities.org/id/unitary-authority/peterborough","Peterborough City Council","Westcombe Engineering","Westcombe Engineering","Tools, Equipment, Furniture & Materials",01/11/2017 00:00:00,30150409,982,"Revenue","Barron Clark Castings Ltd","Items For Resale"
"Peterborough","http://opendatacommunities.org/id/unitary-authority/peterborough","Peterborough City Council","Adults","Block Contracts","Third Party Payments",01/11/2017 00:00:00,30150453,60548.12,"Revenue","HEREWARD CARE SERVICES LIMITED","Third Party Payments - Contract"
"Peterborough","http://opendatacommunities.org/id/unitary-authority/peterborough","Peterborough City Council","Adults","Independent Sector Placements","Services",01/11/2017 00:00:00,30150647,2678.24,"Revenue","HEREWARD CARE SERVICES LIMITED","Residential Care"
"Peterborough","http://opendatacommunities.org/id/unitary-authority/peterborough","Peterborough City Council","Adults","Independent Sector Placements","Services",01/11/2017 00:00:00,30150649,1176.69,"Revenue","HEREWARD CARE SERVICES LIMITED","Residential Care"
"Peterborough","http://opendatacommunities.org/id/unitary-authority/peterborough","Peterborough City Council","Adults","Independent Sector Placements","Services",01/11/2017 00:00:00,30150650,2621.6,"Revenue","HEREWARD CARE SERVICES LIMITED","Residential Care"
"Peterborough","http://opendatacommunities.org/id/unitary-authority/peterborough","Peterborough City Council","Adults","Independent Sector Placements","Services",01/11/2017 00:00:00,30150651,3187.48,"Revenue","HEREWARD CARE SERVICES LIMITED","Residential Care"
"Peterborough","http://opendatacommunities.org/id/unitary-authority/peterborough","Peterborough City Council","Adults","Independent Sector Placements","Services",01/11/2017 00:00:00,30150652,4497.76,"Revenue","HEREWARD CARE SERVICES LIMITED","Residential Care"
"Peterborough","http://opendatacommunities.org/id/unitary-authority/peterborough","Peterborough City Council","Adults","Independent Sector Placements","Services",01/11/2017 00:00:00,30150653,3437.52,"Revenue","HEREWARD CARE SERVICES LIMITED","Residential Care"
"Peterborough","http://opendatacommunities.org/id/unitary-authority/peterborough","Peterborough City Council","Adults","Independent Sector Placements","Services",01/11/2017 00:00:00,30150654,2808.64,"Revenue","HEREWARD CARE SERVICES LIMITED","Residential Care"
"Peterborough","http://opendatacommunities.org/id/unitary-authority/peterborough","Peterborough City Council","Adults","Independent Sector Placements","Services",01/11/2017 00:00:00,30150655,2677.32,"Revenue","HEREWARD CARE SERVICES LIMITED","Residential Care"
"Peterborough","http://opendatacommunities.org/id/unitary-authority/peterborough","Peterborough City Council","Adults","Independent Sector Placements","Services",01/11/2017 00:00:00,30150656,2182.2,"Revenue","HEREWARD CARE SERVICES LIMITED","Residential Care"
"Peterborough","http://opendatacommunities.org/id/unitary-authority/peterborough","Peterborough City Council","Education","Pupil Referral Unit","Services",01/11/2017 00:00:00,30150739,2446.5,"Revenue","Pearson Education","Exam Fees"
"Peterborough","http://opendatacommunities.org/id/unitary-authority/peterborough","Peterborough City Council","Corporate Property","Commercial Propety","Services",01/11/2017 00:00:00,30150899,5000,"Revenue","Wilks Head & Eve","Valuations"
"Peterborough","http://opendatacommunities.org/id/unitary-authority/peterborough","Peterborough City Council","Education","PFI","Energy Costs",01/11/2017 00:00:00,30150916,840.74,"Revenue","Corona Energy Retail 4 Limited","Gas"
"Peterborough","http://opendatacommunities.org/id/unitary-authority/peterborough","Peterborough City Council","Education","PFI","Energy Costs",01/11/2017 00:00:00,30150916,734.75,"Revenue","Corona Energy Retail 4 Limited","Gas"
"Peterborough","http://opendatacommunities.org/id/unitary-authority/peterborough","Peterborough City Council","Education","PFI","Energy Costs",01/11/2017 00:00:00,30150916,559.86,"Revenue","Corona Energy Retail 4 Limited","Gas"
"Peterborough","http://opendatacommunities.org/id/unitary-authority/peterborough","Peterborough City Council","Legal & Democratic","Legal Services","Agency Staff",01/11/2017 00:00:00,30151129,1580.08,"Revenue","Reed Specialist Recruitment Limited","External Temporary Staff"
"Peterborough","http://opendatacommunities.org/id/unitary-authority/peterborough","Peterborough City Council","Corporate","Corporate","Non Revenue",01/11/2017 00:00:00,30151130,2483.6,"Capital","Reed Specialist Recruitment Limited","Consultants Fees"
"Peterborough","http://opendatacommunities.org/id/unitary-authority/peterborough","Peterborough City Council","Adults","Finance","Agency Staff",01/11/2017 00:00:00,30151133,2433.6,"Revenue","Reed Specialist Recruitment Limited","External Temporary Staff"
"Peterborough","http://opendatacommunities.org/id/unitary-authority/peterborough","Peterborough City Council","Legal & Democratic","Legal Services","Agency Staff",01/11/2017 00:00:00,30151136,1014.36,"Revenue","Reed Specialist Recruitment Limited","External Temporary Staff"
"Peterborough","http://opendatacommunities.org/id/unitary-authority/peterborough","Peterborough City Council","Development and Construction","Development Management","Agency Staff",01/11/2017 00:00:00,30151139,1194.38,"Revenue","Reed Specialist Recruitment Limited","External Temporary Staff"
"Peterborough","http://opendatacommunities.org/id/unitary-authority/peterborough","Peterborough City Council","City Servs & Communications","Regulatory Services","Agency Staff",01/11/2017 00:00:00,30151141,1209.53,"Revenue","Reed Specialist Recruitment Limited","External Temporary Staff"
"Peterborough","http://opendatacommunities.org/id/unitary-authority/peterborough","Peterborough City Council","Financial Services","Finance","Agency Staff",01/11/2017 00:00:00,30151145,646.76,"Revenue","Reed Specialist Recruitment Limited","External Temporary Staff"
"Peterborough","http://opendatacommunities.org/id/unitary-authority/peterborough","Peterborough City Council","Commissioning and Commercial Operations","Commissioning Team","Agency Staff",01/11/2017 00:00:00,30151172,1808.35,"Revenue","Reed Specialist Recruitment Limited","External Temporary Staff"
"Peterborough","http://opendatacommunities.org/id/unitary-authority/peterborough","Peterborough City Council","City Servs & Communications","Parking Services","Services",01/11/2017 00:00:00,30151260,888,"Revenue","British Parking Association","Subscriptions"
"Peterborough","http://opendatacommunities.org/id/unitary-authority/peterborough","Peterborough City Council","Adults","Day opportunities - Older People","Agency Staff",01/11/2017 00:00:00,30151430,732.6,"Revenue","Medicare First","External Temporary Staff"
"Peterborough","http://opendatacommunities.org/id/unitary-authority/peterborough","Peterborough City Council","HR","HR WFD & Training","Catering",01/11/2017 00:00:00,30151534,532,"Revenue","Venue Catering Partner Ltd","Hospitality"
"Peterborough","http://opendatacommunities.org/id/unitary-authority/peterborough","Peterborough City Council","Cemeteries, Cremation & Registrars","Bereavement Service","Services",01/11/2017 00:00:00,30151685,716.24,"Revenue","Anglia Co-operative Funerals","Contract Funerals"
"Peterborough","http://opendatacommunities.org/id/unitary-authority/peterborough","Peterborough City Council","Cemeteries, Cremation & Registrars","Bereavement Service","Services",01/11/2017 00:00:00,30151686,1350,"Revenue","Anglia Co-operative Funerals","Contract Funerals"
"Peterborough","http://opendatacommunities.org/id/unitary-authority/peterborough","Peterborough City Council","Cemeteries, Cremation & Registrars","Bereavement Service","Services",01/11/2017 00:00:00,30151687,1597,"Revenue","Anglia Co-operative Funerals","Contract Funerals"
"Peterborough","http://opendatacommunities.org/id/unitary-authority/peterborough","Peterborough City Council","Cemeteries, Cremation & Registrars","Bereavement Service","Services",01/11/2017 00:00:00,30151749,1322.7,"Revenue","Anglia Co-operative Funerals","Contract Funerals"
"Peterborough","http://opendatacommunities.org/id/unitary-authority/peterborough","Peterborough City Council","Cemeteries, Cremation & Registrars","Bereavement Service","Services",01/11/2017 00:00:00,30151751,1679,"Revenue","Anglia Co-operative Funerals","Contract Funerals"
"Peterborough","http://opendatacommunities.org/id/unitary-authority/peterborough","Peterborough City Council","Adults","Independent Sector Placements","Services",01/11/2017 00:00:00,30151825,4077.39,"Revenue","Augusta Care Ltd","Home Care"
"Peterborough","http://opendatacommunities.org/id/unitary-authority/peterborough","Peterborough City Council","Adults","Independent Sector Placements","Services",01/11/2017 00:00:00,30151826,2645.36,"Revenue","Augusta Care Ltd","Home Care"
"Peterborough","http://opendatacommunities.org/id/unitary-authority/peterborough","Peterborough City Council","Adults","Independent Sector Placements","Services",01/11/2017 00:00:00,30151827,2537.04,"Revenue","Augusta Care Ltd","Home Care"
"Peterborough","http://opendatacommunities.org/id/unitary-authority/peterborough","Peterborough City Council","Adults","Independent Sector Placements","Services",01/11/2017 00:00:00,30151828,2645.36,"Revenue","Augusta Care Ltd","Home Care"
"Peterborough","http://opendatacommunities.org/id/unitary-authority/peterborough","Peterborough City Council","Adults","Independent Sector Placements","Services",01/11/2017 00:00:00,30151830,2645.36,"Revenue","Augusta Care Ltd","Home Care"
"Peterborough","http://opendatacommunities.org/id/unitary-authority/peterborough","Peterborough City Council","Adults","Independent Sector Placements","Services",01/11/2017 00:00:00,30151832,2537.04,"Revenue","Augusta Care Ltd","Home Care"
"Peterborough","http://opendatacommunities.org/id/unitary-authority/peterborough","Peterborough City Council","Adults","Independent Sector Placements","Services",01/11/2017 00:00:00,30151835,2645.36,"Revenue","Augusta Care Ltd","Home Care"
"Peterborough","http://opendatacommunities.org/id/unitary-authority/peterborough","Peterborough City Council","Adults","Independent Sector Placements","Services",01/11/2017 00:00:00,30151836,2537.04,"Revenue","Augusta Care Ltd","Home Care"
"Peterborough","http://opendatacommunities.org/id/unitary-authority/peterborough","Peterborough City Council","Adults","Independent Sector Placements","Services",01/11/2017 00:00:00,30151837,3998.56,"Revenue","Augusta Care Ltd","Home Care"
"Peterborough","http://opendatacommunities.org/id/unitary-authority/peterborough","Peterborough City Council","Adults","Independent Sector Placements","Services",01/11/2017 00:00:00,30151840,3998.56,"Revenue","Augusta Care Ltd","Home Care"
"Peterborough","http://opendatacommunities.org/id/unitary-authority/peterborough","Peterborough City Council","Adults","Independent Sector Placements","Services",01/11/2017 00:00:00,30151842,2537.04,"Revenue","Augusta Care Ltd","Home Care"
"Peterborough","http://opendatacommunities.org/id/unitary-authority/peterborough","Peterborough City Council","Adults","Independent Sector Placements","Services",01/11/2017 00:00:00,30151843,2929.36,"Revenue","Augusta Care Ltd","Home Care"
"Peterborough","http://opendatacommunities.org/id/unitary-authority/peterborough","Peterborough City Council","Adults","Independent Sector Placements","Services",01/11/2017 00:00:00,30151844,2645.36,"Revenue","Augusta Care Ltd","Home Care"
"Peterborough","http://opendatacommunities.org/id/unitary-authority/peterborough","Peterborough City Council","Commissioning and Commercial Operations","Commissioning Team","Agency Staff",01/11/2017 00:00:00,30151846,-633.75,"Revenue","Reed Specialist Recruitment Limited","External Temporary Staff"
"Peterborough","http://opendatacommunities.org/id/unitary-authority/peterborough","Peterborough City Council","Adults","Independent Sector Placements","Services",01/11/2017 00:00:00,30151856,10175.92,"Revenue","Augusta Care Ltd","Home Care"
"Peterborough","http://opendatacommunities.org/id/unitary-authority/peterborough","Peterborough City Council","Adults","Independent Sector Placements","Services",01/11/2017 00:00:00,30151857,823.57,"Revenue","Augusta Care Ltd","Home Care"
"Peterborough","http://opendatacommunities.org/id/unitary-authority/peterborough","Peterborough City Council","Adults","Independent Sector Placements","Services",01/11/2017 00:00:00,30151901,708.46,"Revenue","Axiom Housing Association","Home Care"
"Peterborough","http://opendatacommunities.org/id/unitary-authority/peterborough","Peterborough City Council","Adults","Finance","Agency Staff",01/11/2017 00:00:00,30151929,1946.88,"Revenue","Reed Specialist Recruitment Limited","External Temporary Staff"
"Peterborough","http://opendatacommunities.org/id/unitary-authority/peterborough","Peterborough City Council","Commissioning and Commercial Operations","Commissioning Team","Agency Staff",01/11/2017 00:00:00,30151935,1808.35,"Revenue","Reed Specialist Recruitment Limited","External Temporary Staff"
"Peterborough","http://opendatacommunities.org/id/unitary-authority/peterborough","Peterborough City Council","Financial Services","Finance","Agency Staff",01/11/2017 00:00:00,30151940,688.51,"Revenue","Reed Specialist Recruitment Limited","External Temporary Staff"
"Peterborough","http://opendatacommunities.org/id/unitary-authority/peterborough","Peterborough City Council","Development and Construction","Development Management","Agency Staff",01/11/2017 00:00:00,30151943,1161.88,"Revenue","Reed Specialist Recruitment Limited","External Temporary Staff"
"Peterborough","http://opendatacommunities.org/id/unitary-authority/peterborough","Peterborough City Council","Adults","Finance","Agency Staff",01/11/2017 00:00:00,30151944,1308.42,"Revenue","Reed Specialist Recruitment Limited","External Temporary Staff"
"Peterborough","http://opendatacommunities.org/id/unitary-authority/peterborough","Peterborough City Council","Adults","Finance","Agency Staff",01/11/2017 00:00:00,30151951,2433.6,"Revenue","Reed Specialist Recruitment Limited","External Temporary Staff"
"Peterborough","http://opendatacommunities.org/id/unitary-authority/peterborough","Peterborough City Council","Children's & Safeguarding","Early Help ASC/CSC","Agency Staff",01/11/2017 00:00:00,30151958,538.46,"Revenue","Reed Specialist Recruitment Limited","External Temporary Staff"
"Peterborough","http://opendatacommunities.org/id/unitary-authority/peterborough","Peterborough City Council","Peterborough Highway Services","Highway Services - HoS","Agency Staff",01/11/2017 00:00:00,30151961,849.12,"Revenue","Reed Specialist Recruitment Limited","External Temporary Staff"
"Peterborough","http://opendatacommunities.org/id/unitary-authority/peterborough","Peterborough City Council","Education","School Improvement","Services",01/11/2017 00:00:00,30151965,565,"Revenue","Linchfield Community Primary School","Grant Payment"
"Peterborough","http://opendatacommunities.org/id/unitary-authority/peterborough","Peterborough City Council","Adults","Independent Sector Placements","Services",01/11/2017 00:00:00,30151967,2027.44,"Revenue","LAVENDER HOUSE RESIDENTIAL HOME","Residential Care"
"Peterborough","http://opendatacommunities.org/id/unitary-authority/peterborough","Peterborough City Council","Corporate","Corporate","Non Revenue",01/11/2017 00:00:00,30151986,3797,"Capital","A W Morley T/A Morley Building Services","Grant Payment"
"Peterborough","http://opendatacommunities.org/id/unitary-authority/peterborough","Peterborough City Council","Adults","Independent Sector Placements","Services",01/11/2017 00:00:00,30152007,755.65,"Revenue","Axiom Housing Association","Home Care"
"Peterborough","http://opendatacommunities.org/id/unitary-authority/peterborough","Peterborough City Council","Adults","Independent Sector Placements","Services",01/11/2017 00:00:00,30152008,583.1,"Revenue","Axiom Housing Association","Home Care"
"Peterborough","http://opendatacommunities.org/id/unitary-authority/peterborough","Peterborough City Council","Education","Special Educational Needs / Inclusion","Services",01/11/2017 00:00:00,30152011,560,"Revenue","MySign Tuition","Hired Services"
"Peterborough","http://opendatacommunities.org/id/unitary-authority/peterborough","Peterborough City Council","Adults","Independent Sector Placements","Services",01/11/2017 00:00:00,30152013,583.1,"Revenue","Axiom Housing Association","Home Care"
"Peterborough","http://opendatacommunities.org/id/unitary-authority/peterborough","Peterborough City Council","Adults","Independent Sector Placements","Services",01/11/2017 00:00:00,30152014,583.1,"Revenue","Axiom Housing Association","Home Care"
"Peterborough","http://opendatacommunities.org/id/unitary-authority/peterborough","Peterborough City Council","Adults","Independent Sector Placements","Services",01/11/2017 00:00:00,30152017,1780.02,"Revenue","K2 CARE LTD","Home Care"
"Peterborough","http://opendatacommunities.org/id/unitary-authority/peterborough","Peterborough City Council","Adults","Independent Sector Placements","Services",01/11/2017 00:00:00,30152020,917.4,"Revenue","K2 CARE LTD","Home Care"
"Peterborough","http://opendatacommunities.org/id/unitary-authority/peterborough","Peterborough City Council","Adults","Independent Sector Placements","Services",01/11/2017 00:00:00,30152021,2216.28,"Revenue","K2 CARE LTD","Home Care"
"Peterborough","http://opendatacommunities.org/id/unitary-authority/peterborough","Peterborough City Council","Adults","Independent Sector Placements","Services",01/11/2017 00:00:00,30152025,2576.64,"Revenue","K2 CARE LTD","Home Care"
"Peterborough","http://opendatacommunities.org/id/unitary-authority/peterborough","Peterborough City Council","Commissioning and Commercial Operations","Commissioning Team","Agency Staff",01/11/2017 00:00:00,30152028,2243.6,"Revenue","Reed Specialist Recruitment Limited","External Temporary Staff"
"Peterborough","http://opendatacommunities.org/id/unitary-authority/peterborough","Peterborough City Council","Commissioning and Commercial Operations","Commissioning Team","Agency Staff",01/11/2017 00:00:00,30152032,2243.6,"Revenue","Reed Specialist Recruitment Limited","External Temporary Staff"
"Peterborough","http://opendatacommunities.org/id/unitary-authority/peterborough","Peterborough City Council","Adults","Independent Sector Placements","Services",01/11/2017 00:00:00,30152072,2055.92,"Revenue","LAVENDER HOUSE RESIDENTIAL HOME","Residential Care"
"Peterborough","http://opendatacommunities.org/id/unitary-authority/peterborough","Peterborough City Council","Director, OP & JV","Growth HoS","Services",01/11/2017 00:00:00,30152080,7000,"Revenue","Pinsent Masons","Legal Costs"
"Peterborough","http://opendatacommunities.org/id/unitary-authority/peterborough","Peterborough City Council","Adults","Mental Capacity Act & DoLs","Services",01/11/2017 00:00:00,30152085,1709,"Revenue","Raj Medical Consultancy Limited","Hired Services"
"Peterborough","http://opendatacommunities.org/id/unitary-authority/peterborough","Peterborough City Council","Adults","Block Contracts","Rents",01/11/2017 00:00:00,30152087,15192.32,"Revenue","Cross Keys Homes","Rent"
"Peterborough","http://opendatacommunities.org/id/unitary-authority/peterborough","Peterborough City Council","Adults","Independent Sector Placements","Services",01/11/2017 00:00:00,30152089,-669.06,"Revenue","Augusta Care Ltd","Home Care"
"Peterborough","http://opendatacommunities.org/id/unitary-authority/peterborough","Peterborough City Council","Adults","Independent Sector Placements","Services",01/11/2017 00:00:00,30152091,-5112,"Revenue","Augusta Care Ltd","Home Care"
"Peterborough","http://opendatacommunities.org/id/unitary-authority/peterborough","Peterborough City Council","Adults","Independent Sector Placements","Services",01/11/2017 00:00:00,30152092,-1592.42,"Revenue","Augusta Care Ltd","Home Care"
"Peterborough","http://opendatacommunities.org/id/unitary-authority/peterborough","Peterborough City Council","Corporate Items","Corporate Services","Employee Expenses",01/11/2017 00:00:00,30152095,66720.19,"Revenue","LGSS Cambridgeshire Pension Fund","Pensions"
"Peterborough","http://opendatacommunities.org/id/unitary-authority/peterborough","Peterborough City Council","Financial Services","Finance","Services",01/11/2017 00:00:00,30152110,3000,"Revenue","Grant Thornton UK LLP","Professional Services"
"Peterborough","http://opendatacommunities.org/id/unitary-authority/peterborough","Peterborough City Council","Adults","Independent Sector Placements","Services",01/11/2017 00:00:00,30152112,1289.08,"Revenue","Park Vista Care Home","Residential Care"
"Peterborough","http://opendatacommunities.org/id/unitary-authority/peterborough","Peterborough City Council","Adults","Independent Sector Placements","Services",01/11/2017 00:00:00,30152165,761.14,"Revenue","Park Vista Care Home","Residential Care"
"Peterborough","http://opendatacommunities.org/id/unitary-authority/peterborough","Peterborough City Council","Education","Special Educational Needs / Inclusion","Services",01/11/2017 00:00:00,30152167,1500,"Revenue","The National Teaching & Advisory Service","Education Expenses"
"Peterborough","http://opendatacommunities.org/id/unitary-authority/peterborough","Peterborough City Council","Vivacity/Cultural Services","Cultural Services","Energy Costs",01/11/2017 00:00:00,30152169,4318.69,"Revenue","Corona Energy Retail 4 Limited","Gas"
"Peterborough","http://opendatacommunities.org/id/unitary-authority/peterborough","Peterborough City Council","Vivacity/Cultural Services","Cultural Services","Energy Costs",01/11/2017 00:00:00,30152169,1803.56,"Revenue","Corona Energy Retail 4 Limited","Gas"
"Peterborough","http://opendatacommunities.org/id/unitary-authority/peterborough","Peterborough City Council","Vivacity/Cultural Services","Cultural Services","Energy Costs",01/11/2017 00:00:00,30152169,1015.62,"Revenue","Corona Energy Retail 4 Limited","Gas"
"Peterborough","http://opendatacommunities.org/id/unitary-authority/peterborough","Peterborough City Council","Adults","Independent Sector Placements","Services",01/11/2017 00:00:00,30152191,1573.43,"Revenue","Alysia Caring Ltd T/a Cherry Blossom care Home","Residential Care"
"Peterborough","http://opendatacommunities.org/id/unitary-authority/peterborough","Peterborough City Council","Adults","Independent Sector Placements","Services",01/11/2017 00:00:00,30152192,1155.56,"Revenue","Alysia Caring Ltd T/a Cherry Blossom care Home","Residential Care"
"Peterborough","http://opendatacommunities.org/id/unitary-authority/peterborough","Peterborough City Council","Adults","Independent Sector Placements","Services",01/11/2017 00:00:00,30152194,2551.76,"Revenue","Alysia Caring Ltd T/a Cherry Blossom care Home","Residential Care"
"Peterborough","http://opendatacommunities.org/id/unitary-authority/peterborough","Peterborough City Council","Adults","Independent Sector Placements","Services",01/11/2017 00:00:00,30152195,2240.44,"Revenue","Alysia Caring Ltd T/a Cherry Blossom care Home","Residential Care"
"Peterborough","http://opendatacommunities.org/id/unitary-authority/peterborough","Peterborough City Council","Adults","Independent Sector Placements","Services",01/11/2017 00:00:00,30152196,2551.76,"Revenue","Alysia Caring Ltd T/a Cherry Blossom care Home","Residential Care"
"Peterborough","http://opendatacommunities.org/id/unitary-authority/peterborough","Peterborough City Council","Adults","Independent Sector Placements","Services",01/11/2017 00:00:00,30152197,1155.56,"Revenue","Alysia Caring Ltd T/a Cherry Blossom care Home","Residential Care"
"Peterborough","http://opendatacommunities.org/id/unitary-authority/peterborough","Peterborough City Council","Adults","Independent Sector Placements","Services",01/11/2017 00:00:00,30152198,2551.76,"Revenue","Alysia Caring Ltd T/a Cherry Blossom care Home","Residential Care"
"Peterborough","http://opendatacommunities.org/id/unitary-authority/peterborough","Peterborough City Council","Adults","Independent Sector Placements","Services",01/11/2017 00:00:00,30152199,1155.56,"Revenue","Alysia Caring Ltd T/a Cherry Blossom care Home","Residential Care"
"Peterborough","http://opendatacommunities.org/id/unitary-authority/peterborough","Peterborough City Council","Adults","Independent Sector Placements","Services",01/11/2017 00:00:00,30152200,2551.76,"Revenue","Alysia Caring Ltd T/a Cherry Blossom care Home","Residential Care"
"Peterborough","http://opendatacommunities.org/id/unitary-authority/peterborough","Peterborough City Council","Adults","Independent Sector Placements","Services",01/11/2017 00:00:00,30152201,1155.56,"Revenue","Alysia Caring Ltd T/a Cherry Blossom care Home","Residential Care"
"Peterborough","http://opendatacommunities.org/id/unitary-authority/peterborough","Peterborough City Council","Adults","Independent Sector Placements","Services",01/11/2017 00:00:00,30152203,3300.35,"Revenue","Alysia Caring Ltd T/a Cherry Blossom care Home","Residential Care"
"Peterborough","http://opendatacommunities.org/id/unitary-authority/peterborough","Peterborough City Council","Adults","Independent Sector Placements","Services",01/11/2017 00:00:00,30152204,2400,"Revenue","Alysia Caring Ltd T/a Cherry Blossom care Home","Residential Care"
"Peterborough","http://opendatacommunities.org/id/unitary-authority/peterborough","Peterborough City Council","Adults","Independent Sector Placements","Services",01/11/2017 00:00:00,30152205,2551.76,"Revenue","Alysia Caring Ltd T/a Cherry Blossom care Home","Residential Care"
"Peterborough","http://opendatacommunities.org/id/unitary-authority/peterborough","Peterborough City Council","Adults","Independent Sector Placements","Services",01/11/2017 00:00:00,30152207,2051.75,"Revenue","Cambridgeshirehomecare","Home Care"
"Peterborough","http://opendatacommunities.org/id/unitary-authority/peterborough","Peterborough City Council","Children's & Safeguarding","Access to Resources & Specialist Commissioning","Services",01/11/2017 00:00:00,30152235,-521.1,"Revenue","Sixteen Plus Limited","Boarding Out Allowances"
"Peterborough","http://opendatacommunities.org/id/unitary-authority/peterborough","Peterborough City Council","Director","Director","Interview & Training Expenses",01/11/2017 00:00:00,30152253,1290,"Revenue","OXFORD BROOKES ENTERPRISES LTD","Training"
"Peterborough","http://opendatacommunities.org/id/unitary-authority/peterborough","Peterborough City Council","Education","Special Educational Needs / Inclusion","Services",01/11/2017 00:00:00,30152254,950,"Revenue","Bennett, Mr Peter Lloyd","Professional Services"
"Peterborough","http://opendatacommunities.org/id/unitary-authority/peterborough","Peterborough City Council","City Servs & Communications","Marketing & Communications","Interview & Training Expenses",01/11/2017 00:00:00,30152277,1500,"Revenue","Paul Stainton Media Ltd","Training"
"Peterborough","http://opendatacommunities.org/id/unitary-authority/peterborough","Peterborough City Council","City Servs & Communications","Markets, Tourism & Events","Services",01/11/2017 00:00:00,30152278,1500,"Revenue","Paul Stainton Media Ltd","Conferences/Events"
"Peterborough","http://opendatacommunities.org/id/unitary-authority/peterborough","Peterborough City Council","Adults","Therapy/Reablement/Community Equipment","Services",01/11/2017 00:00:00,30152298,6506,"Revenue","Just Checking","Subscriptions"
"Peterborough","http://opendatacommunities.org/id/unitary-authority/peterborough","Peterborough City Council","Commissioning and Commercial Operations","Early Years & Quality Improvement","Services",01/11/2017 00:00:00,30152303,19640.2,"Revenue","Beeches Pre-School","Grant Payment"
"Peterborough","http://opendatacommunities.org/id/unitary-authority/peterborough","Peterborough City Council","Adults","Independent Sector Placements","Services",01/11/2017 00:00:00,8000099537,772.83,"Revenue","Hales Group Ltd","Home Care"
"Peterborough","http://opendatacommunities.org/id/unitary-authority/peterborough","Peterborough City Council","Adults","Independent Sector Placements","Services",01/11/2017 00:00:00,8000099538,573.25,"Revenue","Hales Group Ltd","Home Care"
"Peterborough","http://opendatacommunities.org/id/unitary-authority/peterborough","Peterborough City Council","Adults","Independent Sector Placements","Services",01/11/2017 00:00:00,8000099539,808.05,"Revenue","Hales Group Ltd","Home Care"
"Peterborough","http://opendatacommunities.org/id/unitary-authority/peterborough","Peterborough City Council","Adults","Independent Sector Placements","Services",01/11/2017 00:00:00,8000099541,627.69,"Revenue","Hales Group Ltd","Home Care"
"Peterborough","http://opendatacommunities.org/id/unitary-authority/peterborough","Peterborough City Council","Adults","Independent Sector Placements","Services",01/11/2017 00:00:00,8000099544,910.66,"Revenue","Hales Group Ltd","Home Care"
"Peterborough","http://opendatacommunities.org/id/unitary-authority/peterborough","Peterborough City Council","Adults","Independent Sector Placements","Services",01/11/2017 00:00:00,8000099871,588.75,"Revenue","MEARS GROUP","Home Care"
"Peterborough","http://opendatacommunities.org/id/unitary-authority/peterborough","Peterborough City Council","Adults","Independent Sector Placements","Services",01/11/2017 00:00:00,8000099873,1030.95,"Revenue","MEARS GROUP","Home Care"
"Peterborough","http://opendatacommunities.org/id/unitary-authority/peterborough","Peterborough City Council","Adults","Independent Sector Placements","Services",01/11/2017 00:00:00,8000099874,972.75,"Revenue","MEARS GROUP","Home Care"
"Peterborough","http://opendatacommunities.org/id/unitary-authority/peterborough","Peterborough City Council","Adults","Independent Sector Placements","Services",01/11/2017 00:00:00,8000099876,506.4,"Revenue","MEARS GROUP","Home Care"
"Peterborough","http://opendatacommunities.org/id/unitary-authority/peterborough","Peterborough City Council","Adults","Independent Sector Placements","Services",01/11/2017 00:00:00,8000099877,714,"Revenue","MEARS GROUP","Home Care"
"Peterborough","http://opendatacommunities.org/id/unitary-authority/peterborough","Peterborough City Council","Adults","Independent Sector Placements","Services",01/11/2017 00:00:00,8000099882,524.4,"Revenue","MEARS GROUP","Home Care"
"Peterborough","http://opendatacommunities.org/id/unitary-authority/peterborough","Peterborough City Council","Adults","Independent Sector Placements","Services",01/11/2017 00:00:00,8000099883,2425.65,"Revenue","MEARS GROUP","Home Care"
"Peterborough","http://opendatacommunities.org/id/unitary-authority/peterborough","Peterborough City Council","Adults","Independent Sector Placements","Services",01/11/2017 00:00:00,8000099884,643.95,"Revenue","MEARS GROUP","Home Care"
"Peterborough","http://opendatacommunities.org/id/unitary-authority/peterborough","Peterborough City Council","Adults","Independent Sector Placements","Services",01/11/2017 00:00:00,8000099885,1082.1,"Revenue","MEARS GROUP","Home Care"
"Peterborough","http://opendatacommunities.org/id/unitary-authority/peterborough","Peterborough City Council","Adults","Independent Sector Placements","Services",01/11/2017 00:00:00,8000099887,574.5,"Revenue","MEARS GROUP","Home Care"
"Peterborough","http://opendatacommunities.org/id/unitary-authority/peterborough","Peterborough City Council","Adults","Independent Sector Placements","Services",01/11/2017 00:00:00,8000099888,525,"Revenue","MEARS GROUP","Home Care"
"Peterborough","http://opendatacommunities.org/id/unitary-authority/peterborough","Peterborough City Council","Adults","Independent Sector Placements","Services",01/11/2017 00:00:00,8000099889,627.6,"Revenue","MEARS GROUP","Home Care"
"Peterborough","http://opendatacommunities.org/id/unitary-authority/peterborough","Peterborough City Council","Adults","Independent Sector Placements","Services",01/11/2017 00:00:00,8000099890,1194.3,"Revenue","MEARS GROUP","Home Care"
"Peterborough","http://opendatacommunities.org/id/unitary-authority/peterborough","Peterborough City Council","Adults","Independent Sector Placements","Services",01/11/2017 00:00:00,8000099891,914.1,"Revenue","MEARS GROUP","Home Care"
"Peterborough","http://opendatacommunities.org/id/unitary-authority/peterborough","Peterborough City Council","Adults","Independent Sector Placements","Services",01/11/2017 00:00:00,8000099893,835.65,"Revenue","MEARS GROUP","Home Care"
"Peterborough","http://opendatacommunities.org/id/unitary-authority/peterborough","Peterborough City Council","Adults","Independent Sector Placements","Services",01/11/2017 00:00:00,8000099900,834.9,"Revenue","MEARS GROUP","Home Care"
"Peterborough","http://opendatacommunities.org/id/unitary-authority/peterborough","Peterborough City Council","Adults","Independent Sector Placements","Services",01/11/2017 00:00:00,8000099905,691.8,"Revenue","MEARS GROUP","Home Care"
"Peterborough","http://opendatacommunities.org/id/unitary-authority/peterborough","Peterborough City Council","Adults","Independent Sector Placements","Services",01/11/2017 00:00:00,8000099906,803.55,"Revenue","MEARS GROUP","Home Care"
"Peterborough","http://opendatacommunities.org/id/unitary-authority/peterborough","Peterborough City Council","Adults","Independent Sector Placements","Services",01/11/2017 00:00:00,8000099913,936.3,"Revenue","MEARS GROUP","Home Care"
"Peterborough","http://opendatacommunities.org/id/unitary-authority/peterborough","Peterborough City Council","Adults","Independent Sector Placements","Services",01/11/2017 00:00:00,8000099914,514.8,"Revenue","MEARS GROUP","Home Care"
"Peterborough","http://opendatacommunities.org/id/unitary-authority/peterborough","Peterborough City Council","Adults","Independent Sector Placements","Services",01/11/2017 00:00:00,8000099915,1750.8,"Revenue","MEARS GROUP","Home Care"
"Peterborough","http://opendatacommunities.org/id/unitary-authority/peterborough","Peterborough City Council","Adults","Independent Sector Placements","Services",01/11/2017 00:00:00,8000099918,703.2,"Revenue","MEARS GROUP","Home Care"
"Peterborough","http://opendatacommunities.org/id/unitary-authority/peterborough","Peterborough City Council","Adults","Independent Sector Placements","Services",01/11/2017 00:00:00,8000099921,644.7,"Revenue","MEARS GROUP","Home Care"
"Peterborough","http://opendatacommunities.org/id/unitary-authority/peterborough","Peterborough City Council","Adults","Independent Sector Placements","Services",01/11/2017 00:00:00,8000099922,819.15,"Revenue","MEARS GROUP","Home Care"
"Peterborough","http://opendatacommunities.org/id/unitary-authority/peterborough","Peterborough City Council","Adults","Independent Sector Placements","Services",01/11/2017 00:00:00,8000099924,1450.5,"Revenue","MEARS GROUP","Home Care"
"Peterborough","http://opendatacommunities.org/id/unitary-authority/peterborough","Peterborough City Council","Adults","Independent Sector Placements","Services",01/11/2017 00:00:00,8000099925,507.6,"Revenue","MEARS GROUP","Home Care"
"Peterborough","http://opendatacommunities.org/id/unitary-authority/peterborough","Peterborough City Council","Adults","Independent Sector Placements","Services",01/11/2017 00:00:00,8000099932,979.8,"Revenue","MEARS GROUP","Home Care"
"Peterborough","http://opendatacommunities.org/id/unitary-authority/peterborough","Peterborough City Council","Adults","Independent Sector Placements","Services",01/11/2017 00:00:00,8000099935,1237.2,"Revenue","MEARS GROUP","Home Care"
"Peterborough","http://opendatacommunities.org/id/unitary-authority/peterborough","Peterborough City Council","Adults","Independent Sector Placements","Services",01/11/2017 00:00:00,8000099947,513.15,"Revenue","MEARS GROUP","Home Care"
"Peterborough","http://opendatacommunities.org/id/unitary-authority/peterborough","Peterborough City Council","Adults","Independent Sector Placements","Services",01/11/2017 00:00:00,8000099949,786.6,"Revenue","MEARS GROUP","Home Care"
"Peterborough","http://opendatacommunities.org/id/unitary-authority/peterborough","Peterborough City Council","Adults","Independent Sector Placements","Services",01/11/2017 00:00:00,8000099950,601.05,"Revenue","MEARS GROUP","Home Care"
"Peterborough","http://opendatacommunities.org/id/unitary-authority/peterborough","Peterborough City Council","Adults","Independent Sector Placements","Services",01/11/2017 00:00:00,8000099951,1925.55,"Revenue","MEARS GROUP","Home Care"
"Peterborough","http://opendatacommunities.org/id/unitary-authority/peterborough","Peterborough City Council","Adults","Independent Sector Placements","Services",01/11/2017 00:00:00,8000099952,736.65,"Revenue","MEARS GROUP","Home Care"
"Peterborough","http://opendatacommunities.org/id/unitary-authority/peterborough","Peterborough City Council","Adults","Independent Sector Placements","Services",01/11/2017 00:00:00,8000099955,912.3,"Revenue","MEARS GROUP","Home Care"
"Peterborough","http://opendatacommunities.org/id/unitary-authority/peterborough","Peterborough City Council","Adults","Independent Sector Placements","Services",01/11/2017 00:00:00,8000099958,1798.2,"Revenue","MEARS GROUP","Home Care"
"Peterborough","http://opendatacommunities.org/id/unitary-authority/peterborough","Peterborough City Council","Adults","Independent Sector Placements","Services",01/11/2017 00:00:00,8000099959,842.25,"Revenue","MEARS GROUP","Home Care"
"Peterborough","http://opendatacommunities.org/id/unitary-authority/peterborough","Peterborough City Council","Adults","Independent Sector Placements","Services",01/11/2017 00:00:00,8000099964,862.95,"Revenue","MEARS GROUP","Home Care"
"Peterborough","http://opendatacommunities.org/id/unitary-authority/peterborough","Peterborough City Council","Adults","Independent Sector Placements","Services",01/11/2017 00:00:00,8000099967,2696.85,"Revenue","MEARS GROUP","Home Care"
"Peterborough","http://opendatacommunities.org/id/unitary-authority/peterborough","Peterborough City Council","Adults","Independent Sector Placements","Services",01/11/2017 00:00:00,8000099968,685.65,"Revenue","MEARS GROUP","Home Care"
"Peterborough","http://opendatacommunities.org/id/unitary-authority/peterborough","Peterborough City Council","Adults","Independent Sector Placements","Services",01/11/2017 00:00:00,8000099969,676.35,"Revenue","MEARS GROUP","Home Care"
"Peterborough","http://opendatacommunities.org/id/unitary-authority/peterborough","Peterborough City Council","Adults","Independent Sector Placements","Services",01/11/2017 00:00:00,8000099973,1662.45,"Revenue","MEARS GROUP","Home Care"
"Peterborough","http://opendatacommunities.org/id/unitary-authority/peterborough","Peterborough City Council","Adults","Independent Sector Placements","Services",01/11/2017 00:00:00,8000099975,609.9,"Revenue","MEARS GROUP","Home Care"
"Peterborough","http://opendatacommunities.org/id/unitary-authority/peterborough","Peterborough City Council","Adults","Independent Sector Placements","Services",01/11/2017 00:00:00,8000099977,543.6,"Revenue","MEARS GROUP","Home Care"
"Peterborough","http://opendatacommunities.org/id/unitary-authority/peterborough","Peterborough City Council","Adults","Independent Sector Placements","Services",01/11/2017 00:00:00,8000099979,698.25,"Revenue","MEARS GROUP","Home Care"
"Peterborough","http://opendatacommunities.org/id/unitary-authority/peterborough","Peterborough City Council","Adults","Independent Sector Placements","Services",01/11/2017 00:00:00,8000099981,770.4,"Revenue","MEARS GROUP","Home Care"
"Peterborough","http://opendatacommunities.org/id/unitary-authority/peterborough","Peterborough City Council","Adults","Independent Sector Placements","Services",01/11/2017 00:00:00,8000099988,615,"Revenue","MEARS GROUP","Home Care"
"Peterborough","http://opendatacommunities.org/id/unitary-authority/peterborough","Peterborough City Council","Adults","Independent Sector Placements","Services",01/11/2017 00:00:00,8000099991,730.8,"Revenue","MEARS GROUP","Home Care"
"Peterborough","http://opendatacommunities.org/id/unitary-authority/peterborough","Peterborough City Council","Adults","Independent Sector Placements","Services",01/11/2017 00:00:00,8000101013,2533.28,"Revenue","Atlas Care Services Ltd","Home Care"
"Peterborough","http://opendatacommunities.org/id/unitary-authority/peterborough","Peterborough City Council","Children's & Safeguarding","Commissioning - CSC","Services",01/11/2017 00:00:00,8000101049,851.5,"Revenue","Redacted Personal Data","Financial Assistance"
"Peterborough","http://opendatacommunities.org/id/unitary-authority/peterborough","Peterborough City Council","Children's & Safeguarding","Commissioning - CSC","Services",01/11/2017 00:00:00,8000101049,940.85,"Revenue","Redacted Personal Data","Financial Assistance"
"Peterborough","http://opendatacommunities.org/id/unitary-authority/peterborough","Peterborough City Council","Children's & Safeguarding","Commissioning - CSC","Third Party Payments",01/11/2017 00:00:00,8000102972,560482.97,"Revenue","TACT","Third Party Payments - Contract"
"Peterborough","http://opendatacommunities.org/id/unitary-authority/peterborough","Peterborough City Council","Corporate","Corporate","Non Revenue",03/11/2017 00:00:00,30146898,1500,"Capital","NPS Peterborough Ltd","Consultants Fees"
"Peterborough","http://opendatacommunities.org/id/unitary-authority/peterborough","Peterborough City Council","Adults","Independent Sector Placements","Services",03/11/2017 00:00:00,30147603,2357.14,"Revenue","Linkage Community Trust Limited","Residential Care"
"Peterborough","http://opendatacommunities.org/id/unitary-authority/peterborough","Peterborough City Council","Children's & Safeguarding","Children's Social Care","Rents",03/11/2017 00:00:00,30149071,2768.87,"Revenue","Stor-A-File Ltd","Rent"
"Peterborough","http://opendatacommunities.org/id/unitary-authority/peterborough","Peterborough City Council","City Servs & Communications","Markets, Tourism & Events","Services",03/11/2017 00:00:00,30149535,9225,"Revenue","Traffic Management Services (Retford) Ltd (TMS)","Conferences/Events"
"Peterborough","http://opendatacommunities.org/id/unitary-authority/peterborough","Peterborough City Council","Westcombe Engineering","Westcombe Engineering","Tools, Equipment, Furniture & Materials",03/11/2017 00:00:00,30149541,2109,"Revenue","Purbright Castings Ltd","Items For Resale"
"Peterborough","http://opendatacommunities.org/id/unitary-authority/peterborough","Peterborough City Council","Westcombe Engineering","Westcombe Engineering","Tools, Equipment, Furniture & Materials",03/11/2017 00:00:00,30149550,2979.9,"Revenue","Perkins Engines Co Ltd","Items For Resale"
"Peterborough","http://opendatacommunities.org/id/unitary-authority/peterborough","Peterborough City Council","Adults","Independent Sector Placements","Services",03/11/2017 00:00:00,30149555,1932,"Revenue","SOCIAL CARE SOLUTIONS LTD","Home Care"
"Peterborough","http://opendatacommunities.org/id/unitary-authority/peterborough","Peterborough City Council","Communities","Cohesion","Services",03/11/2017 00:00:00,30149556,1680,"Revenue","M J Greaves","Contractors"
"Peterborough","http://opendatacommunities.org/id/unitary-authority/peterborough","Peterborough City Council","Adults","Independent Sector Placements","Services",03/11/2017 00:00:00,30149557,3211.2,"Revenue","SOCIAL CARE SOLUTIONS LTD","Home Care"
"Peterborough","http://opendatacommunities.org/id/unitary-authority/peterborough","Peterborough City Council","Adults","Independent Sector Placements","Services",03/11/2017 00:00:00,30149558,6674.4,"Revenue","SOCIAL CARE SOLUTIONS LTD","Home Care"
"Peterborough","http://opendatacommunities.org/id/unitary-authority/peterborough","Peterborough City Council","Adults","Independent Sector Placements","Services",03/11/2017 00:00:00,30149559,4463.2,"Revenue","SOCIAL CARE SOLUTIONS LTD","Home Care"
"Peterborough","http://opendatacommunities.org/id/unitary-authority/peterborough","Peterborough City Council","City Servs & Communications","Markets, Tourism & Events","Repair & Maintenance of Buildings",03/11/2017 00:00:00,30149615,3600,"Revenue","ADC (East Anglia) Ltd","Premises Maintenance"
"Peterborough","http://opendatacommunities.org/id/unitary-authority/peterborough","Peterborough City Council","Adults","Finance","Agency Staff",03/11/2017 00:00:00,30149666,3250,"Revenue","Badenoch & Clark Ltd","External Temporary Staff"
"Peterborough","http://opendatacommunities.org/id/unitary-authority/peterborough","Peterborough City Council","Adults","Independent Sector Placements","Services",03/11/2017 00:00:00,30149763,832.32,"Revenue","Avery House (Peterborough) t/a Brighterkind","Residential Care"
"Peterborough","http://opendatacommunities.org/id/unitary-authority/peterborough","Peterborough City Council","Adults","Independent Sector Placements","Services",03/11/2017 00:00:00,30149764,3674.44,"Revenue","Consensus Support Services Ltd","Residential Care"
"Peterborough","http://opendatacommunities.org/id/unitary-authority/peterborough","Peterborough City Council","Adults","Independent Sector Placements","Services",03/11/2017 00:00:00,30149770,8597.96,"Revenue","Consensus Support Services Ltd","Residential Care"
"Peterborough","http://opendatacommunities.org/id/unitary-authority/peterborough","Peterborough City Council","City Servs & Communications","Markets, Tourism & Events","Services",03/11/2017 00:00:00,30149805,6016.8,"Revenue","Show and Events Security Ltd","Conferences/Events"
"Peterborough","http://opendatacommunities.org/id/unitary-authority/peterborough","Peterborough City Council","Adults","Independent Sector Placements","Services",03/11/2017 00:00:00,30149859,979.8,"Revenue","Mencap","Home Care"
"Peterborough","http://opendatacommunities.org/id/unitary-authority/peterborough","Peterborough City Council","Adults","Independent Sector Placements","Services",03/11/2017 00:00:00,30149862,695.8,"Revenue","Mencap","Home Care"
"Peterborough","http://opendatacommunities.org/id/unitary-authority/peterborough","Peterborough City Council","Adults","Independent Sector Placements","Services",03/11/2017 00:00:00,30149863,1674.01,"Revenue","Mencap","Home Care"
"Peterborough","http://opendatacommunities.org/id/unitary-authority/peterborough","Peterborough City Council","Adults","Independent Sector Placements","Services",03/11/2017 00:00:00,30149864,1636.8,"Revenue","Mencap","Home Care"
"Peterborough","http://opendatacommunities.org/id/unitary-authority/peterborough","Peterborough City Council","Adults","Independent Sector Placements","Services",03/11/2017 00:00:00,30149865,6492,"Revenue","Mencap","Home Care"
"Peterborough","http://opendatacommunities.org/id/unitary-authority/peterborough","Peterborough City Council","Adults","Independent Sector Placements","Services",03/11/2017 00:00:00,30149866,852,"Revenue","Mencap","Home Care"
"Peterborough","http://opendatacommunities.org/id/unitary-authority/peterborough","Peterborough City Council","Adults","Independent Sector Placements","Services",03/11/2017 00:00:00,30149869,7425.6,"Revenue","Mencap","Home Care"
"Peterborough","http://opendatacommunities.org/id/unitary-authority/peterborough","Peterborough City Council","Adults","Independent Sector Placements","Services",03/11/2017 00:00:00,30149870,1500.64,"Revenue","Mencap","Home Care"
"Peterborough","http://opendatacommunities.org/id/unitary-authority/peterborough","Peterborough City Council","Adults","Independent Sector Placements","Services",03/11/2017 00:00:00,30149871,6302.2,"Revenue","Mencap","Residential Care"
"Peterborough","http://opendatacommunities.org/id/unitary-authority/peterborough","Peterborough City Council","Adults","Independent Sector Placements","Services",03/11/2017 00:00:00,30149872,3369.24,"Revenue","Mencap","Home Care"
"Peterborough","http://opendatacommunities.org/id/unitary-authority/peterborough","Peterborough City Council","Adults","Independent Sector Placements","Services",03/11/2017 00:00:00,30149875,1542,"Revenue","Mencap","Home Care"
"Peterborough","http://opendatacommunities.org/id/unitary-authority/peterborough","Peterborough City Council","Adults","Independent Sector Placements","Services",03/11/2017 00:00:00,30149877,852,"Revenue","Mencap","Home Care"
"Peterborough","http://opendatacommunities.org/id/unitary-authority/peterborough","Peterborough City Council","Adults","Independent Sector Placements","Services",03/11/2017 00:00:00,30149879,562.4,"Revenue","Mencap","Home Care"
"Peterborough","http://opendatacommunities.org/id/unitary-authority/peterborough","Peterborough City Council","Adults","Independent Sector Placements","Services",03/11/2017 00:00:00,30149880,681.6,"Revenue","Mencap","Home Care"
"Peterborough","http://opendatacommunities.org/id/unitary-authority/peterborough","Peterborough City Council","Adults","Independent Sector Placements","Services",03/11/2017 00:00:00,30149884,2215.2,"Revenue","Mencap","Home Care"
"Peterborough","http://opendatacommunities.org/id/unitary-authority/peterborough","Peterborough City Council","Adults","Independent Sector Placements","Services",03/11/2017 00:00:00,30149886,1306.4,"Revenue","Mencap","Home Care"
"Peterborough","http://opendatacommunities.org/id/unitary-authority/peterborough","Peterborough City Council","Adults","Independent Sector Placements","Services",03/11/2017 00:00:00,30149887,1107.6,"Revenue","Mencap","Home Care"
"Peterborough","http://opendatacommunities.org/id/unitary-authority/peterborough","Peterborough City Council","Adults","Independent Sector Placements","Services",03/11/2017 00:00:00,30149888,568,"Revenue","Mencap","Home Care"
"Peterborough","http://opendatacommunities.org/id/unitary-authority/peterborough","Peterborough City Council","Adults","Independent Sector Placements","Services",03/11/2017 00:00:00,30149889,6548.8,"Revenue","Mencap","Home Care"
"Peterborough","http://opendatacommunities.org/id/unitary-authority/peterborough","Peterborough City Council","Commissioning and Commercial Operations","Commissioning","Services",03/11/2017 00:00:00,30149907,2036,"Revenue","Core Assets Experts Services Ltd T/A Carter Brown The Expert Service","Hired Services"
"Peterborough","http://opendatacommunities.org/id/unitary-authority/peterborough","Peterborough City Council","Energy","Environment Capital","Services",03/11/2017 00:00:00,30149908,1308,"Revenue","Orsis (UK) Ltd","Subscriptions"
"Peterborough","http://opendatacommunities.org/id/unitary-authority/peterborough","Peterborough City Council","Adults","Independent Sector Placements","Services",03/11/2017 00:00:00,30149923,8328.92,"Revenue","Home From Home Care","Residential Care"
"Peterborough","http://opendatacommunities.org/id/unitary-authority/peterborough","Peterborough City Council","Adults","Independent Sector Placements","Services",03/11/2017 00:00:00,30149924,7814.04,"Revenue","Home From Home Care","Residential Care"
"Peterborough","http://opendatacommunities.org/id/unitary-authority/peterborough","Peterborough City Council","Adults","Independent Sector Placements","Services",03/11/2017 00:00:00,30149925,6354.32,"Revenue","Home From Home Care","Residential Care"
"Peterborough","http://opendatacommunities.org/id/unitary-authority/peterborough","Peterborough City Council","Adults","Independent Sector Placements","Services",03/11/2017 00:00:00,30149926,7002.04,"Revenue","Home From Home Care","Residential Care"
"Peterborough","http://opendatacommunities.org/id/unitary-authority/peterborough","Peterborough City Council","Adults","Independent Sector Placements","Services",03/11/2017 00:00:00,30149929,3429.92,"Revenue","Sanctuary Home Care Ltd (Southwood House)","Residential Care"
"Peterborough","http://opendatacommunities.org/id/unitary-authority/peterborough","Peterborough City Council","Adults","Independent Sector Placements","Services",03/11/2017 00:00:00,30149930,3400,"Revenue","EXCELCARE GLENNFIELD HOUSE","Residential Care"
"Peterborough","http://opendatacommunities.org/id/unitary-authority/peterborough","Peterborough City Council","Adults","Independent Sector Placements","Services",03/11/2017 00:00:00,30149931,1811.24,"Revenue","Excelcare Aliwal Manor","Residential Care"
"Peterborough","http://opendatacommunities.org/id/unitary-authority/peterborough","Peterborough City Council","Adults","Independent Sector Placements","Services",03/11/2017 00:00:00,30149933,2017.08,"Revenue","Bestcare Ltd","Residential Care"
"Peterborough","http://opendatacommunities.org/id/unitary-authority/peterborough","Peterborough City Council","Adults","Independent Sector Placements","Services",03/11/2017 00:00:00,30149956,6966.72,"Revenue","Autism Care (UK) Ltd","Residential Care"
"Peterborough","http://opendatacommunities.org/id/unitary-authority/peterborough","Peterborough City Council","Amey Peterborough & Waste Management","Waste Management","Services",03/11/2017 00:00:00,30150009,13708.26,"Revenue","AmeyCespa (East) Ltd","Recycling"
"Peterborough","http://opendatacommunities.org/id/unitary-authority/peterborough","Peterborough City Council","Commissioning and Commercial Operations","Clare Lodge","Agency Staff",03/11/2017 00:00:00,30150073,1032,"Revenue","Wrixon Care Services","External Temporary Staff"
"Peterborough","http://opendatacommunities.org/id/unitary-authority/peterborough","Peterborough City Council","Commissioning and Commercial Operations","Clare Lodge","Agency Staff",03/11/2017 00:00:00,30150074,1376,"Revenue","Wrixon Care Services","External Temporary Staff"
"Peterborough","http://opendatacommunities.org/id/unitary-authority/peterborough","Peterborough City Council","Commissioning and Commercial Operations","Clare Lodge","Agency Staff",03/11/2017 00:00:00,30150075,1904,"Revenue","Wrixon Care Services","External Temporary Staff"
"Peterborough","http://opendatacommunities.org/id/unitary-authority/peterborough","Peterborough City Council","Commissioning and Commercial Operations","Clare Lodge","Agency Staff",03/11/2017 00:00:00,30150076,1328,"Revenue","Wrixon Care Services","External Temporary Staff"
"Peterborough","http://opendatacommunities.org/id/unitary-authority/peterborough","Peterborough City Council","Education","Pupil Referral Unit","Services",03/11/2017 00:00:00,30150107,15000,"Revenue","WCL Group Limited","Ict Services"
"Peterborough","http://opendatacommunities.org/id/unitary-authority/peterborough","Peterborough City Council","Adults","Independent Sector Placements","Services",03/11/2017 00:00:00,30150211,14588,"Revenue","Decoy Farm","Residential Care"
"Peterborough","http://opendatacommunities.org/id/unitary-authority/peterborough","Peterborough City Council","Adults","Independent Sector Placements","Services",03/11/2017 00:00:00,30150388,3200,"Revenue","EXCELCARE GLENNFIELD HOUSE","Residential Care"
"Peterborough","http://opendatacommunities.org/id/unitary-authority/peterborough","Peterborough City Council","Adults","Independent Sector Placements","Services",03/11/2017 00:00:00,30150389,3720,"Revenue","EXCELCARE GLENNFIELD HOUSE","Residential Care"
"Peterborough","http://opendatacommunities.org/id/unitary-authority/peterborough","Peterborough City Council","Adults","Independent Sector Placements","Services",03/11/2017 00:00:00,30150390,1680,"Revenue","EXCELCARE GLENNFIELD HOUSE","Residential Care"
"Peterborough","http://opendatacommunities.org/id/unitary-authority/peterborough","Peterborough City Council","Adults","Independent Sector Placements","Services",03/11/2017 00:00:00,30150395,5199.8,"Revenue","Mencap","Home Care"
"Peterborough","http://opendatacommunities.org/id/unitary-authority/peterborough","Peterborough City Council","Adults","Independent Sector Placements","Services",03/11/2017 00:00:00,30150397,1317.88,"Revenue","Barchester Wood Grange","Residential Care"
"Peterborough","http://opendatacommunities.org/id/unitary-authority/peterborough","Peterborough City Council","Adults","Therapy/Reablement/Community Equipment","Tools, Equipment, Furniture & Materials",03/11/2017 00:00:00,30150447,112495.28,"Revenue","NRS Healthcare","Occupational Therapy Equipment"
"Peterborough","http://opendatacommunities.org/id/unitary-authority/peterborough","Peterborough City Council","Adults","Independent Sector Placements","Contract Hire and Operating Leases",03/11/2017 00:00:00,30150567,595,"Revenue","Peterborough Cars","Hired Transport"
"Peterborough","http://opendatacommunities.org/id/unitary-authority/peterborough","Peterborough City Council","Adults","Independent Sector Placements","Services",03/11/2017 00:00:00,30150568,781.38,"Revenue","Deafblind Enablement Ltd","Home Care"
"Peterborough","http://opendatacommunities.org/id/unitary-authority/peterborough","Peterborough City Council","Various","Various","Services",03/11/2017 00:00:00,30150599,2390.67,"Revenue","Whistl UK Ltd","Postage"
"Peterborough","http://opendatacommunities.org/id/unitary-authority/peterborough","Peterborough City Council","Adults","Independent Sector Placements","Services",03/11/2017 00:00:00,30150766,2424,"Revenue","The Regard Partnership Limited","Residential Care"
"Peterborough","http://opendatacommunities.org/id/unitary-authority/peterborough","Peterborough City Council","Adults","Independent Sector Placements","Agency Staff",03/11/2017 00:00:00,30150794,6685.92,"Revenue","Swim Recruitment","External Temporary Staff"
"Peterborough","http://opendatacommunities.org/id/unitary-authority/peterborough","Peterborough City Council","Adults","Independent Sector Placements","Services",03/11/2017 00:00:00,30150907,1292.08,"Revenue","Avery House (Peterborough) t/a Brighterkind","Residential Care"
"Peterborough","http://opendatacommunities.org/id/unitary-authority/peterborough","Peterborough City Council","Adults","Independent Sector Placements","Services",03/11/2017 00:00:00,30150914,1097.88,"Revenue","Avery House (Peterborough) t/a Brighterkind","Residential Care"
"Peterborough","http://opendatacommunities.org/id/unitary-authority/peterborough","Peterborough City Council","Adults","Independent Sector Placements","Services",03/11/2017 00:00:00,30150915,1284.08,"Revenue","Avery House (Peterborough) t/a Brighterkind","Residential Care"
"Peterborough","http://opendatacommunities.org/id/unitary-authority/peterborough","Peterborough City Council","Adults","Independent Sector Placements","Services",03/11/2017 00:00:00,30150917,939.16,"Revenue","Avery House (Peterborough) t/a Brighterkind","Residential Care"
"Peterborough","http://opendatacommunities.org/id/unitary-authority/peterborough","Peterborough City Council","Adults","Independent Sector Placements","Services",03/11/2017 00:00:00,30150918,977.68,"Revenue","Avery House (Peterborough) t/a Brighterkind","Residential Care"
"Peterborough","http://opendatacommunities.org/id/unitary-authority/peterborough","Peterborough City Council","Adults","Independent Sector Placements","Services",03/11/2017 00:00:00,30150919,1463.65,"Revenue","Avery House (Peterborough) t/a Brighterkind","Residential Care"
"Peterborough","http://opendatacommunities.org/id/unitary-authority/peterborough","Peterborough City Council","Adults","Independent Sector Placements","Services",03/11/2017 00:00:00,30150945,2210.6,"Revenue","Avery House (Peterborough) t/a Brighterkind","Residential Care"
"Peterborough","http://opendatacommunities.org/id/unitary-authority/peterborough","Peterborough City Council","Adults","Independent Sector Placements","Services",03/11/2017 00:00:00,30150953,1612.64,"Revenue","Avery House (Peterborough) t/a Brighterkind","Residential Care"
"Peterborough","http://opendatacommunities.org/id/unitary-authority/peterborough","Peterborough City Council","Adults","Independent Sector Placements","Services",03/11/2017 00:00:00,30150956,1235.8,"Revenue","Avery House (Peterborough) t/a Brighterkind","Residential Care"
"Peterborough","http://opendatacommunities.org/id/unitary-authority/peterborough","Peterborough City Council","Adults","Independent Sector Placements","Services",03/11/2017 00:00:00,30150957,1299.08,"Revenue","Avery House (Peterborough) t/a Brighterkind","Residential Care"
"Peterborough","http://opendatacommunities.org/id/unitary-authority/peterborough","Peterborough City Council","Adults","Independent Sector Placements","Services",03/11/2017 00:00:00,30150975,999.36,"Revenue","Avery House (Peterborough) t/a Brighterkind","Residential Care"
"Peterborough","http://opendatacommunities.org/id/unitary-authority/peterborough","Peterborough City Council","Adults","Independent Sector Placements","Services",03/11/2017 00:00:00,30150984,2450.24,"Revenue","Avery House (Peterborough) t/a Brighterkind","Residential Care"
"Peterborough","http://opendatacommunities.org/id/unitary-authority/peterborough","Peterborough City Council","Communities","Housing","Services",03/11/2017 00:00:00,30150998,507.5,"Revenue","Eastfield Guesthouse","Homelessness Bed & Breakfast Costs"
"Peterborough","http://opendatacommunities.org/id/unitary-authority/peterborough","Peterborough City Council","Adults","Independent Sector Placements","Services",03/11/2017 00:00:00,30151003,2176.24,"Revenue","Avery House (Peterborough) t/a Brighterkind","Residential Care"
"Peterborough","http://opendatacommunities.org/id/unitary-authority/peterborough","Peterborough City Council","Adults","Independent Sector Placements","Services",03/11/2017 00:00:00,30151004,910.94,"Revenue","Avery House (Peterborough) t/a Brighterkind","Residential Care"
"Peterborough","http://opendatacommunities.org/id/unitary-authority/peterborough","Peterborough City Council","Adults","Independent Sector Placements","Services",03/11/2017 00:00:00,30151013,1407.36,"Revenue","Avery House (Peterborough) t/a Brighterkind","Residential Care"
"Peterborough","http://opendatacommunities.org/id/unitary-authority/peterborough","Peterborough City Council","Adults","Independent Sector Placements","Services",03/11/2017 00:00:00,30151017,3787.76,"Revenue","Avery House (Peterborough) t/a Brighterkind","Residential Care"
"Peterborough","http://opendatacommunities.org/id/unitary-authority/peterborough","Peterborough City Council","Adults","Independent Sector Placements","Services",03/11/2017 00:00:00,30151018,1820.96,"Revenue","Avery House (Peterborough) t/a Brighterkind","Residential Care"
"Peterborough","http://opendatacommunities.org/id/unitary-authority/peterborough","Peterborough City Council","Adults","Independent Sector Placements","Services",03/11/2017 00:00:00,30151019,1195.64,"Revenue","Avery House (Peterborough) t/a Brighterkind","Residential Care"
"Peterborough","http://opendatacommunities.org/id/unitary-authority/peterborough","Peterborough City Council","Communities","Housing","Services",03/11/2017 00:00:00,30151022,507.5,"Revenue","Eastfield Guesthouse","Homelessness Bed & Breakfast Costs"
"Peterborough","http://opendatacommunities.org/id/unitary-authority/peterborough","Peterborough City Council","Adults","Independent Sector Placements","Services",03/11/2017 00:00:00,30151024,838.64,"Revenue","Avery House (Peterborough) t/a Brighterkind","Residential Care"
"Peterborough","http://opendatacommunities.org/id/unitary-authority/peterborough","Peterborough City Council","Adults","Independent Sector Placements","Services",03/11/2017 00:00:00,30151025,3700,"Revenue","Avery House (Peterborough) t/a Brighterkind","Residential Care"
"Peterborough","http://opendatacommunities.org/id/unitary-authority/peterborough","Peterborough City Council","Adults","Independent Sector Placements","Services",03/11/2017 00:00:00,30151026,1284.08,"Revenue","Avery House (Peterborough) t/a Brighterkind","Residential Care"
"Peterborough","http://opendatacommunities.org/id/unitary-authority/peterborough","Peterborough City Council","Adults","Independent Sector Placements","Services",03/11/2017 00:00:00,30151028,1501.32,"Revenue","Avery House (Peterborough) t/a Brighterkind","Residential Care"
"Peterborough","http://opendatacommunities.org/id/unitary-authority/peterborough","Peterborough City Council","Adults","Independent Sector Placements","Services",03/11/2017 00:00:00,30151029,1821.88,"Revenue","Avery House (Peterborough) t/a Brighterkind","Residential Care"
"Peterborough","http://opendatacommunities.org/id/unitary-authority/peterborough","Peterborough City Council","Communities","Housing","Services",03/11/2017 00:00:00,30151030,507.5,"Revenue","Eastfield Guesthouse","Homelessness Bed & Breakfast Costs"
"Peterborough","http://opendatacommunities.org/id/unitary-authority/peterborough","Peterborough City Council","Adults","Independent Sector Placements","Services",03/11/2017 00:00:00,30151031,1884.08,"Revenue","Avery House (Peterborough) t/a Brighterkind","Residential Care"
"Peterborough","http://opendatacommunities.org/id/unitary-authority/peterborough","Peterborough City Council","Adults","Independent Sector Placements","Services",03/11/2017 00:00:00,30151034,2421.88,"Revenue","Avery House (Peterborough) t/a Brighterkind","Residential Care"
"Peterborough","http://opendatacommunities.org/id/unitary-authority/peterborough","Peterborough City Council","Communities","Housing","Services",03/11/2017 00:00:00,30151037,525,"Revenue","Eastfield Guesthouse","Homelessness Bed & Breakfast Costs"
"Peterborough","http://opendatacommunities.org/id/unitary-authority/peterborough","Peterborough City Council","Communities","Housing","Services",03/11/2017 00:00:00,30151038,525,"Revenue","Eastfield Guesthouse","Homelessness Bed & Breakfast Costs"
"Peterborough","http://opendatacommunities.org/id/unitary-authority/peterborough","Peterborough City Council","Communities","Housing","Services",03/11/2017 00:00:00,30151039,525,"Revenue","Eastfield Guesthouse","Homelessness Bed & Breakfast Costs"
"Peterborough","http://opendatacommunities.org/id/unitary-authority/peterborough","Peterborough City Council","Communities","Housing","Services",03/11/2017 00:00:00,30151040,525,"Revenue","Eastfield Guesthouse","Homelessness Bed & Breakfast Costs"
"Peterborough","http://opendatacommunities.org/id/unitary-authority/peterborough","Peterborough City Council","Communities","Housing","Services",03/11/2017 00:00:00,30151041,525,"Revenue","Eastfield Guesthouse","Homelessness Bed & Breakfast Costs"
"Peterborough","http://opendatacommunities.org/id/unitary-authority/peterborough","Peterborough City Council","Communities","Housing","Services",03/11/2017 00:00:00,30151042,525,"Revenue","Eastfield Guesthouse","Homelessness Bed & Breakfast Costs"
"Peterborough","http://opendatacommunities.org/id/unitary-authority/peterborough","Peterborough City Council","Communities","Housing","Services",03/11/2017 00:00:00,30151045,525,"Revenue","Eastfield Guesthouse","Homelessness Bed & Breakfast Costs"
"Peterborough","http://opendatacommunities.org/id/unitary-authority/peterborough","Peterborough City Council","Commissioning and Commercial Operations","Clare Lodge","Agency Staff",03/11/2017 00:00:00,30151046,1024,"Revenue","Wrixon Care Services","External Temporary Staff"
"Peterborough","http://opendatacommunities.org/id/unitary-authority/peterborough","Peterborough City Council","Communities","Housing","Services",03/11/2017 00:00:00,30151047,525,"Revenue","Eastfield Guesthouse","Homelessness Bed & Breakfast Costs"
"Peterborough","http://opendatacommunities.org/id/unitary-authority/peterborough","Peterborough City Council","Communities","Housing","Services",03/11/2017 00:00:00,30151071,525,"Revenue","Eastfield Guesthouse","Homelessness Bed & Breakfast Costs"
"Peterborough","http://opendatacommunities.org/id/unitary-authority/peterborough","Peterborough City Council","Communities","Housing","Services",03/11/2017 00:00:00,30151076,525,"Revenue","Eastfield Guesthouse","Homelessness Bed & Breakfast Costs"
"Peterborough","http://opendatacommunities.org/id/unitary-authority/peterborough","Peterborough City Council","Communities","Housing","Services",03/11/2017 00:00:00,30151077,525,"Revenue","Eastfield Guesthouse","Homelessness Bed & Breakfast Costs"
"Peterborough","http://opendatacommunities.org/id/unitary-authority/peterborough","Peterborough City Council","Communities","Housing","Services",03/11/2017 00:00:00,30151080,507.5,"Revenue","Eastfield Guesthouse","Homelessness Bed & Breakfast Costs"
"Peterborough","http://opendatacommunities.org/id/unitary-authority/peterborough","Peterborough City Council","Adults","Independent Sector Placements","Services",03/11/2017 00:00:00,30151183,1942.4,"Revenue","Benell Care Services Ltd","Residential Care"
"Peterborough","http://opendatacommunities.org/id/unitary-authority/peterborough","Peterborough City Council","Adults","Independent Sector Placements","Services",03/11/2017 00:00:00,30151234,1884.08,"Revenue","The Cedars Bourne Care Home","Residential Care"
"Peterborough","http://opendatacommunities.org/id/unitary-authority/peterborough","Peterborough City Council","Adults","Independent Sector Placements","Services",03/11/2017 00:00:00,30151350,3785.4,"Revenue","Community Care Solutions Ltd","Residential Care"
"Peterborough","http://opendatacommunities.org/id/unitary-authority/peterborough","Peterborough City Council","Education","Pupil Referral Unit","Tools, Equipment, Furniture & Materials",03/11/2017 00:00:00,30151435,1356,"Revenue","Eastern Shires Purchasing Organisation","Educational Equipment"
"Peterborough","http://opendatacommunities.org/id/unitary-authority/peterborough","Peterborough City Council","Education","Pupil Referral Unit","Repair & Maintenance of Buildings",03/11/2017 00:00:00,30151477,840.81,"Revenue","Garfield Builders Ltd","Premises Maintenance"
"Peterborough","http://opendatacommunities.org/id/unitary-authority/peterborough","Peterborough City Council","Corporate","Corporate","Non Revenue",03/11/2017 00:00:00,30151480,1914,"Capital","Garfield Builders Ltd","Building And Site Works"
"Peterborough","http://opendatacommunities.org/id/unitary-authority/peterborough","Peterborough City Council","City Servs & Communications","Markets, Tourism & Events","Services",03/11/2017 00:00:00,30151508,800,"Revenue","R J Mason Blacksmith & Farrier","Conferences/Events"
"Peterborough","http://opendatacommunities.org/id/unitary-authority/peterborough","Peterborough City Council","Vivacity/Cultural Services","Cultural Services","Repair & Maintenance of Buildings",03/11/2017 00:00:00,30151525,1636.66,"Revenue","Honeywell Control Systems Ltd","Premises Maintenance"
"Peterborough","http://opendatacommunities.org/id/unitary-authority/peterborough","Peterborough City Council","Corporate","Corporate","Non Revenue",03/11/2017 00:00:00,30151531,2382,"Capital","Garfield Builders Ltd","Building And Site Works"
"Peterborough","http://opendatacommunities.org/id/unitary-authority/peterborough","Peterborough City Council","City Servs & Communications","Markets, Tourism & Events","Repair & Maintenance of Buildings",03/11/2017 00:00:00,30151616,1831.7,"Revenue","The K A Wing Group Ltd","Premises Maintenance"
"Peterborough","http://opendatacommunities.org/id/unitary-authority/peterborough","Peterborough City Council","Corporate","Corporate","Non Revenue",03/11/2017 00:00:00,30151712,510526.02,"Capital","Carillion Construction Limited","Building And Site Works"
"Peterborough","http://opendatacommunities.org/id/unitary-authority/peterborough","Peterborough City Council","Corporate","Corporate","Non Revenue",03/11/2017 00:00:00,30151714,133777,"Capital","Carillion Construction Limited","Building And Site Works"
"Peterborough","http://opendatacommunities.org/id/unitary-authority/peterborough","Peterborough City Council","Public Health","PH Commissioning","Third Party Payments",03/11/2017 00:00:00,30151772,3316,"Revenue","Boroughbury Medical Centre","Third Party Payments - Contract"
"Peterborough","http://opendatacommunities.org/id/unitary-authority/peterborough","Peterborough City Council","Public Health","PH Commissioning","Third Party Payments",03/11/2017 00:00:00,30151780,1062,"Revenue","Hodgson Medical Centre","Third Party Payments - Contract"
"Peterborough","http://opendatacommunities.org/id/unitary-authority/peterborough","Peterborough City Council","Public Health","PH Commissioning","Third Party Payments",03/11/2017 00:00:00,30151797,3042,"Revenue","Paston Health Centre","Third Party Payments - Contract"
"Peterborough","http://opendatacommunities.org/id/unitary-authority/peterborough","Peterborough City Council","Adults","Independent Sector Placements","Services",03/11/2017 00:00:00,30151885,528,"Revenue","K2 CARE LTD","Home Care"
"Peterborough","http://opendatacommunities.org/id/unitary-authority/peterborough","Peterborough City Council","Adults","Independent Sector Placements","Services",03/11/2017 00:00:00,30151886,1002.76,"Revenue","K2 CARE LTD","Home Care"
"Peterborough","http://opendatacommunities.org/id/unitary-authority/peterborough","Peterborough City Council","Adults","Independent Sector Placements","Services",03/11/2017 00:00:00,30151894,3256,"Revenue","K2 CARE LTD","Home Care"
"Peterborough","http://opendatacommunities.org/id/unitary-authority/peterborough","Peterborough City Council","Adults","Independent Sector Placements","Services",03/11/2017 00:00:00,30151896,1039.06,"Revenue","K2 CARE LTD","Home Care"
"Peterborough","http://opendatacommunities.org/id/unitary-authority/peterborough","Peterborough City Council","Adults","Independent Sector Placements","Services",03/11/2017 00:00:00,30151897,1353.86,"Revenue","K2 CARE LTD","Home Care"
"Peterborough","http://opendatacommunities.org/id/unitary-authority/peterborough","Peterborough City Council","Adults","Independent Sector Placements","Services",03/11/2017 00:00:00,30151898,812.28,"Revenue","K2 CARE LTD","Home Care"
"Peterborough","http://opendatacommunities.org/id/unitary-authority/peterborough","Peterborough City Council","Children's & Safeguarding","Early Help ASC/CSC","Agency Staff",03/11/2017 00:00:00,30151932,533.77,"Revenue","Reed Specialist Recruitment Limited","External Temporary Staff"
"Peterborough","http://opendatacommunities.org/id/unitary-authority/peterborough","Peterborough City Council","Legal & Democratic","Legal Services","Agency Staff",03/11/2017 00:00:00,30151933,1751.4,"Revenue","Reed Specialist Recruitment Limited","External Temporary Staff"
"Peterborough","http://opendatacommunities.org/id/unitary-authority/peterborough","Peterborough City Council","City Servs & Communications","Regulatory Services","Agency Staff",03/11/2017 00:00:00,30151934,1209.53,"Revenue","Reed Specialist Recruitment Limited","External Temporary Staff"
"Peterborough","http://opendatacommunities.org/id/unitary-authority/peterborough","Peterborough City Council","Legal & Democratic","Legal Services","Agency Staff",03/11/2017 00:00:00,30151937,1274.2,"Revenue","Reed Specialist Recruitment Limited","External Temporary Staff"
"Peterborough","http://opendatacommunities.org/id/unitary-authority/peterborough","Peterborough City Council","Corporate","Corporate","Non Revenue",03/11/2017 00:00:00,30151938,2583.6,"Capital","Reed Specialist Recruitment Limited","Consultants Fees"
"Peterborough","http://opendatacommunities.org/id/unitary-authority/peterborough","Peterborough City Council","Peterborough Highway Services","Highway Services - HoS","Agency Staff",03/11/2017 00:00:00,30151948,606.99,"Revenue","Reed Specialist Recruitment Limited","External Temporary Staff"
"Peterborough","http://opendatacommunities.org/id/unitary-authority/peterborough","Peterborough City Council","Peterborough Highway Services","Highway Services - HoS","Agency Staff",03/11/2017 00:00:00,30151953,822.19,"Revenue","Reed Specialist Recruitment Limited","External Temporary Staff"
"Peterborough","http://opendatacommunities.org/id/unitary-authority/peterborough","Peterborough City Council","Adults","Independent Sector Placements","Services",03/11/2017 00:00:00,30152027,2216.28,"Revenue","K2 CARE LTD","Home Care"
"Peterborough","http://opendatacommunities.org/id/unitary-authority/peterborough","Peterborough City Council","Adults","Independent Sector Placements","Services",03/11/2017 00:00:00,30152029,922.24,"Revenue","K2 CARE LTD","Home Care"
"Peterborough","http://opendatacommunities.org/id/unitary-authority/peterborough","Peterborough City Council","Adults","Block Contracts","Third Party Payments",03/11/2017 00:00:00,30152113,1366.41,"Revenue","Park Vista Care Home","Third Party Payments - Contract"
"Peterborough","http://opendatacommunities.org/id/unitary-authority/peterborough","Peterborough City Council","Corporate","Corporate","Non Revenue",03/11/2017 00:00:00,30152190,500,"Capital","Oundle Road Baptist Church","Grant Payment"
"Peterborough","http://opendatacommunities.org/id/unitary-authority/peterborough","Peterborough City Council","Energy","Environment Capital","Services",03/11/2017 00:00:00,30152279,1950,"Revenue","Paul Stainton Media Ltd","Hired Services"
"Peterborough","http://opendatacommunities.org/id/unitary-authority/peterborough","Peterborough City Council","Adults","Independent Sector Placements","Services",03/11/2017 00:00:00,30152280,738.21,"Revenue","Barchester Healthcare (Werrington Lodge)","Residential Care"
"Peterborough","http://opendatacommunities.org/id/unitary-authority/peterborough","Peterborough City Council","Adults","Independent Sector Placements","Services",03/11/2017 00:00:00,30152281,988.25,"Revenue","Barchester Healthcare (Werrington Lodge)","Residential Care"
"Peterborough","http://opendatacommunities.org/id/unitary-authority/peterborough","Peterborough City Council","Adults","Independent Sector Placements","Services",03/11/2017 00:00:00,30152282,922.75,"Revenue","Allied Healthcare (UK) Ltd","Home Care"
"Peterborough","http://opendatacommunities.org/id/unitary-authority/peterborough","Peterborough City Council","Adults","Independent Sector Placements","Services",03/11/2017 00:00:00,30152283,1852.85,"Revenue","Allied Healthcare (UK) Ltd","Home Care"
"Peterborough","http://opendatacommunities.org/id/unitary-authority/peterborough","Peterborough City Council","Education","HTS & CSC Transport","Contract Hire and Operating Leases",03/11/2017 00:00:00,30152297,3780,"Revenue","Grettons Coaches","Hired Transport"
"Peterborough","http://opendatacommunities.org/id/unitary-authority/peterborough","Peterborough City Council","Education","HTS & CSC Transport","Contract Hire and Operating Leases",03/11/2017 00:00:00,30152299,2472.75,"Revenue","Goldstar Cabs Ltd","Hired Transport"
"Peterborough","http://opendatacommunities.org/id/unitary-authority/peterborough","Peterborough City Council","Education","HTS & CSC Transport","Contract Hire and Operating Leases",03/11/2017 00:00:00,30152301,543.66,"Revenue","Peterborough Cars","Hired Transport"
"Peterborough","http://opendatacommunities.org/id/unitary-authority/peterborough","Peterborough City Council","Cemeteries, Cremation & Registrars","Bereavement Service","Energy Costs",03/11/2017 00:00:00,30152308,2442.27,"Revenue","Corona Energy Retail 4 Limited","Gas"
"Peterborough","http://opendatacommunities.org/id/unitary-authority/peterborough","Peterborough City Council","Vivacity/Cultural Services","Cultural Services","Energy Costs",03/11/2017 00:00:00,30152308,1279.56,"Revenue","Corona Energy Retail 4 Limited","Gas"
"Peterborough","http://opendatacommunities.org/id/unitary-authority/peterborough","Peterborough City Council","Communities","Cohesion","Other Establishments",03/11/2017 00:00:00,30152324,13270.35,"Revenue","PARCA","Grant-Third Party"
"Peterborough","http://opendatacommunities.org/id/unitary-authority/peterborough","Peterborough City Council","Adults","Independent Sector Placements","Services",03/11/2017 00:00:00,30152350,1540.88,"Revenue","K2 CARE LTD","Home Care"
"Peterborough","http://opendatacommunities.org/id/unitary-authority/peterborough","Peterborough City Council","Adults","Independent Sector Placements","Services",03/11/2017 00:00:00,30152358,1884.08,"Revenue","The Cedars Bourne Care Home","Residential Care"
"Peterborough","http://opendatacommunities.org/id/unitary-authority/peterborough","Peterborough City Council","Adults","Independent Sector Placements","Services",03/11/2017 00:00:00,30152366,1567.71,"Revenue","Barchester Healthcare (Werrington Lodge)","Residential Care"
"Peterborough","http://opendatacommunities.org/id/unitary-authority/peterborough","Peterborough City Council","Adults","Independent Sector Placements","Services",03/11/2017 00:00:00,30152370,741,"Revenue","MEARS GROUP","Home Care"
"Peterborough","http://opendatacommunities.org/id/unitary-authority/peterborough","Peterborough City Council","Adults","Independent Sector Placements","Services",03/11/2017 00:00:00,30152371,792.98,"Revenue","PRESTIGE NURSING LIMITED","Home Care"
"Peterborough","http://opendatacommunities.org/id/unitary-authority/peterborough","Peterborough City Council","Children's & Safeguarding","Early Help ASC/CSC","Agency Staff",03/11/2017 00:00:00,30152405,4079.25,"Revenue","Liquid Personnel","External Temporary Staff"
"Peterborough","http://opendatacommunities.org/id/unitary-authority/peterborough","Peterborough City Council","Adults","Independent Sector Placements","Services",03/11/2017 00:00:00,30152415,1013.3,"Revenue","Alysia Caring Ltd T/a Cherry Blossom care Home","Residential Care"
"Peterborough","http://opendatacommunities.org/id/unitary-authority/peterborough","Peterborough City Council","Adults","Independent Sector Placements","Services",03/11/2017 00:00:00,30152417,1576.24,"Revenue","Alysia Caring Ltd T/a Cherry Blossom care Home","Residential Care"
"Peterborough","http://opendatacommunities.org/id/unitary-authority/peterborough","Peterborough City Council","Adults","Independent Sector Placements","Services",03/11/2017 00:00:00,30152421,3380,"Revenue","Alysia Caring Ltd T/a Cherry Blossom care Home","Residential Care"
"Peterborough","http://opendatacommunities.org/id/unitary-authority/peterborough","Peterborough City Council","Adults","Independent Sector Placements","Services",03/11/2017 00:00:00,30152422,3380,"Revenue","Alysia Caring Ltd T/a Cherry Blossom care Home","Residential Care"
"Peterborough","http://opendatacommunities.org/id/unitary-authority/peterborough","Peterborough City Council","Adults","Independent Sector Placements","Services",03/11/2017 00:00:00,30152423,3380,"Revenue","Alysia Caring Ltd T/a Cherry Blossom care Home","Residential Care"
"Peterborough","http://opendatacommunities.org/id/unitary-authority/peterborough","Peterborough City Council","Adults","Independent Sector Placements","Services",03/11/2017 00:00:00,30152424,3380,"Revenue","Alysia Caring Ltd T/a Cherry Blossom care Home","Residential Care"
"Peterborough","http://opendatacommunities.org/id/unitary-authority/peterborough","Peterborough City Council","Adults","Independent Sector Placements","Services",03/11/2017 00:00:00,30152425,630.68,"Revenue","Hales Group Ltd","Home Care"
"Peterborough","http://opendatacommunities.org/id/unitary-authority/peterborough","Peterborough City Council","Commissioning and Commercial Operations","Commissioning Team","Services",03/11/2017 00:00:00,30152453,2750,"Revenue","Cross Keys Homes","Consultants Fees"
"Peterborough","http://opendatacommunities.org/id/unitary-authority/peterborough","Peterborough City Council","Communities","Housing","Services",03/11/2017 00:00:00,30152474,525,"Revenue","Eastfield Guesthouse","Homelessness Bed & Breakfast Costs"
"Peterborough","http://opendatacommunities.org/id/unitary-authority/peterborough","Peterborough City Council","Communities","Housing","Services",03/11/2017 00:00:00,30152479,525,"Revenue","Eastfield Guesthouse","Homelessness Bed & Breakfast Costs"
"Peterborough","http://opendatacommunities.org/id/unitary-authority/peterborough","Peterborough City Council","Corporate Property","Strategic Projects","Services",03/11/2017 00:00:00,30152496,3685,"Revenue","NPS Peterborough Ltd","Professional Services"
"Peterborough","http://opendatacommunities.org/id/unitary-authority/peterborough","Peterborough City Council","Corporate Property","Strategic Projects","Services",03/11/2017 00:00:00,30152498,627.5,"Revenue","NPS Peterborough Ltd","Professional Services"
"Peterborough","http://opendatacommunities.org/id/unitary-authority/peterborough","Peterborough City Council","Corporate Property","Strategic Projects","Services",03/11/2017 00:00:00,30152499,10000,"Revenue","NPS Peterborough Ltd","Professional Services"
"Peterborough","http://opendatacommunities.org/id/unitary-authority/peterborough","Peterborough City Council","Education","Special Educational Needs / Inclusion","Services",03/11/2017 00:00:00,30152505,4802.46,"Revenue","Sense","Consultants Fees"
"Peterborough","http://opendatacommunities.org/id/unitary-authority/peterborough","Peterborough City Council","Adults","Mental Capacity Act & DoLs","Services",03/11/2017 00:00:00,30152541,2819.4,"Revenue","Dr Nauman Khalil Ltd","Hired Services"
"Peterborough","http://opendatacommunities.org/id/unitary-authority/peterborough","Peterborough City Council","Corporate","Corporate","Non Revenue",03/11/2017 00:00:00,30152579,803442.26,"Balance Sheet","Teachers Pensions","Pensions"
"Peterborough","http://opendatacommunities.org/id/unitary-authority/peterborough","Peterborough City Council","Adults","Therapy/Reablement/Community Equipment","Services",03/11/2017 00:00:00,30152609,1370,"Revenue","Park House School","Professional Services"
"Peterborough","http://opendatacommunities.org/id/unitary-authority/peterborough","Peterborough City Council","Adults","Mental Health","Third Party Payments",03/11/2017 00:00:00,30152627,20000,"Revenue","Cambs & P'boro NHS Foundation Trust","Contributions"
"Peterborough","http://opendatacommunities.org/id/unitary-authority/peterborough","Peterborough City Council","HR","HR WFD & Training","Services",03/11/2017 00:00:00,30152661,775,"Revenue","Do the Write Thing Ltd","Course Instructors Fees"
"Peterborough","http://opendatacommunities.org/id/unitary-authority/peterborough","Peterborough City Council","Children's & Safeguarding","Children's Social Care","Agency Staff",03/11/2017 00:00:00,30153823,-1140,"Revenue","NonStop Care","External Temporary Staff"
"Peterborough","http://opendatacommunities.org/id/unitary-authority/peterborough","Peterborough City Council","Children's & Safeguarding","Children's Social Care","Agency Staff",03/11/2017 00:00:00,30153854,-1406,"Revenue","NonStop Care","External Temporary Staff"
"Peterborough","http://opendatacommunities.org/id/unitary-authority/peterborough","Peterborough City Council","Children's & Safeguarding","Children's Social Care","Agency Staff",03/11/2017 00:00:00,30153856,-1406,"Revenue","NonStop Care","External Temporary Staff"
"Peterborough","http://opendatacommunities.org/id/unitary-authority/peterborough","Peterborough City Council","Adults","Independent Sector Placements","Services",03/11/2017 00:00:00,8000100158,1676.45,"Revenue","Allied Healthcare (UK) Ltd","Home Care"
"Peterborough","http://opendatacommunities.org/id/unitary-authority/peterborough","Peterborough City Council","Adults","Independent Sector Placements","Services",03/11/2017 00:00:00,8000100161,683.57,"Revenue","Allied Healthcare (UK) Ltd","Home Care"
"Peterborough","http://opendatacommunities.org/id/unitary-authority/peterborough","Peterborough City Council","Adults","Independent Sector Placements","Services",03/11/2017 00:00:00,8000100163,744.77,"Revenue","Allied Healthcare (UK) Ltd","Home Care"
"Peterborough","http://opendatacommunities.org/id/unitary-authority/peterborough","Peterborough City Council","Adults","Independent Sector Placements","Services",03/11/2017 00:00:00,8000100164,1412.06,"Revenue","Allied Healthcare (UK) Ltd","Home Care"
"Peterborough","http://opendatacommunities.org/id/unitary-authority/peterborough","Peterborough City Council","Adults","Independent Sector Placements","Services",03/11/2017 00:00:00,8000100168,1680.91,"Revenue","Allied Healthcare (UK) Ltd","Home Care"
"Peterborough","http://opendatacommunities.org/id/unitary-authority/peterborough","Peterborough City Council","Adults","Independent Sector Placements","Services",03/11/2017 00:00:00,8000100169,607.1,"Revenue","Allied Healthcare (UK) Ltd","Home Care"
"Peterborough","http://opendatacommunities.org/id/unitary-authority/peterborough","Peterborough City Council","Adults","Independent Sector Placements","Services",03/11/2017 00:00:00,8000100170,502.42,"Revenue","Allied Healthcare (UK) Ltd","Home Care"
"Peterborough","http://opendatacommunities.org/id/unitary-authority/peterborough","Peterborough City Council","Adults","Independent Sector Placements","Services",03/11/2017 00:00:00,8000100174,689.47,"Revenue","Allied Healthcare (UK) Ltd","Home Care"
"Peterborough","http://opendatacommunities.org/id/unitary-authority/peterborough","Peterborough City Council","Adults","Independent Sector Placements","Services",03/11/2017 00:00:00,8000100175,622.37,"Revenue","Allied Healthcare (UK) Ltd","Home Care"
"Peterborough","http://opendatacommunities.org/id/unitary-authority/peterborough","Peterborough City Council","Adults","Independent Sector Placements","Services",03/11/2017 00:00:00,8000100176,594,"Revenue","Allied Healthcare (UK) Ltd","Home Care"
"Peterborough","http://opendatacommunities.org/id/unitary-authority/peterborough","Peterborough City Council","Adults","Independent Sector Placements","Services",03/11/2017 00:00:00,8000100177,654.34,"Revenue","Allied Healthcare (UK) Ltd","Home Care"
"Peterborough","http://opendatacommunities.org/id/unitary-authority/peterborough","Peterborough City Council","Adults","Independent Sector Placements","Services",03/11/2017 00:00:00,8000100180,508.61,"Revenue","Allied Healthcare (UK) Ltd","Home Care"
"Peterborough","http://opendatacommunities.org/id/unitary-authority/peterborough","Peterborough City Council","Adults","Independent Sector Placements","Services",03/11/2017 00:00:00,8000100181,580.46,"Revenue","Allied Healthcare (UK) Ltd","Home Care"
"Peterborough","http://opendatacommunities.org/id/unitary-authority/peterborough","Peterborough City Council","Adults","Independent Sector Placements","Services",03/11/2017 00:00:00,8000100185,2883.6,"Revenue","Allied Healthcare (UK) Ltd","Home Care"
"Peterborough","http://opendatacommunities.org/id/unitary-authority/peterborough","Peterborough City Council","Adults","Independent Sector Placements","Services",03/11/2017 00:00:00,8000100244,823.2,"Revenue","Axiom Housing Association","Home Care"
"Peterborough","http://opendatacommunities.org/id/unitary-authority/peterborough","Peterborough City Council","Adults","Independent Sector Placements","Services",03/11/2017 00:00:00,8000100245,823.2,"Revenue","Axiom Housing Association","Home Care"
"Peterborough","http://opendatacommunities.org/id/unitary-authority/peterborough","Peterborough City Council","Adults","Independent Sector Placements","Services",03/11/2017 00:00:00,8000100247,529.2,"Revenue","Axiom Housing Association","Home Care"
"Peterborough","http://opendatacommunities.org/id/unitary-authority/peterborough","Peterborough City Council","Adults","Independent Sector Placements","Services",03/11/2017 00:00:00,8000100254,617.4,"Revenue","Axiom Housing Association","Home Care"
"Peterborough","http://opendatacommunities.org/id/unitary-authority/peterborough","Peterborough City Council","Adults","Independent Sector Placements","Services",03/11/2017 00:00:00,8000100268,588,"Revenue","Axiom Housing Association","Home Care"
"Peterborough","http://opendatacommunities.org/id/unitary-authority/peterborough","Peterborough City Council","Adults","Independent Sector Placements","Services",03/11/2017 00:00:00,8000100273,737.94,"Revenue","Axiom Housing Association","Home Care"
"Peterborough","http://opendatacommunities.org/id/unitary-authority/peterborough","Peterborough City Council","Adults","Independent Sector Placements","Services",03/11/2017 00:00:00,8000101072,1036.65,"Revenue","MEARS GROUP","Home Care"
"Peterborough","http://opendatacommunities.org/id/unitary-authority/peterborough","Peterborough City Council","Adults","Independent Sector Placements","Services",03/11/2017 00:00:00,8000101073,945.75,"Revenue","MEARS GROUP","Home Care"
"Peterborough","http://opendatacommunities.org/id/unitary-authority/peterborough","Peterborough City Council","Adults","Independent Sector Placements","Services",03/11/2017 00:00:00,8000101076,963.9,"Revenue","Axiom Care Ltd","Home Care"
"Peterborough","http://opendatacommunities.org/id/unitary-authority/peterborough","Peterborough City Council","Adults","Independent Sector Placements","Services",03/11/2017 00:00:00,8000101088,530.37,"Revenue","Atlas Care Services Ltd","Home Care"
"Peterborough","http://opendatacommunities.org/id/unitary-authority/peterborough","Peterborough City Council","Adults","Independent Sector Placements","Services",03/11/2017 00:00:00,8000101089,1226.17,"Revenue","Atlas Care Services Ltd","Home Care"
"Peterborough","http://opendatacommunities.org/id/unitary-authority/peterborough","Peterborough City Council","Adults","Independent Sector Placements","Services",03/11/2017 00:00:00,8000101134,937.5,"Revenue","Cambridgeshirehomecare","Home Care"
"Peterborough","http://opendatacommunities.org/id/unitary-authority/peterborough","Peterborough City Council","Adults","Independent Sector Placements","Services",03/11/2017 00:00:00,8000101135,600,"Revenue","Atlas Care Services Ltd","Home Care"
"Peterborough","http://opendatacommunities.org/id/unitary-authority/peterborough","Peterborough City Council","Adults","Independent Sector Placements","Services",03/11/2017 00:00:00,8000101137,607.2,"Revenue","Cozy Care","Home Care"
"Peterborough","http://opendatacommunities.org/id/unitary-authority/peterborough","Peterborough City Council","Adults","Independent Sector Placements","Services",03/11/2017 00:00:00,8000101138,865.95,"Revenue","Cozy Care","Home Care"
"Peterborough","http://opendatacommunities.org/id/unitary-authority/peterborough","Peterborough City Council","Adults","Independent Sector Placements","Services",03/11/2017 00:00:00,8000101143,1697.4,"Revenue","Cozy Care","Home Care"
"Peterborough","http://opendatacommunities.org/id/unitary-authority/peterborough","Peterborough City Council","Adults","Independent Sector Placements","Services",03/11/2017 00:00:00,8000101144,924.6,"Revenue","Cozy Care","Home Care"
"Peterborough","http://opendatacommunities.org/id/unitary-authority/peterborough","Peterborough City Council","Adults","Independent Sector Placements","Services",03/11/2017 00:00:00,8000101150,562.35,"Revenue","Cozy Care","Home Care"
"Peterborough","http://opendatacommunities.org/id/unitary-authority/peterborough","Peterborough City Council","Adults","Independent Sector Placements","Services",03/11/2017 00:00:00,8000101152,869.4,"Revenue","Cozy Care","Home Care"
"Peterborough","http://opendatacommunities.org/id/unitary-authority/peterborough","Peterborough City Council","Adults","Independent Sector Placements","Services",03/11/2017 00:00:00,8000101153,2094.15,"Revenue","Cozy Care","Home Care"
"Peterborough","http://opendatacommunities.org/id/unitary-authority/peterborough","Peterborough City Council","Adults","Independent Sector Placements","Services",03/11/2017 00:00:00,8000101158,1028.1,"Revenue","Cozy Care","Home Care"
"Peterborough","http://opendatacommunities.org/id/unitary-authority/peterborough","Peterborough City Council","Adults","Independent Sector Placements","Services",03/11/2017 00:00:00,8000101159,662.4,"Revenue","Cozy Care","Home Care"
"Peterborough","http://opendatacommunities.org/id/unitary-authority/peterborough","Peterborough City Council","Adults","Independent Sector Placements","Services",03/11/2017 00:00:00,8000101160,558.9,"Revenue","Cozy Care","Home Care"
"Peterborough","http://opendatacommunities.org/id/unitary-authority/peterborough","Peterborough City Council","Adults","Independent Sector Placements","Services",03/11/2017 00:00:00,8000101162,538.2,"Revenue","Cozy Care","Home Care"
"Peterborough","http://opendatacommunities.org/id/unitary-authority/peterborough","Peterborough City Council","Adults","Independent Sector Placements","Services",03/11/2017 00:00:00,8000101166,552,"Revenue","Cozy Care","Home Care"
"Peterborough","http://opendatacommunities.org/id/unitary-authority/peterborough","Peterborough City Council","Adults","Independent Sector Placements","Services",03/11/2017 00:00:00,8000101167,883.2,"Revenue","Cozy Care","Home Care"
"Peterborough","http://opendatacommunities.org/id/unitary-authority/peterborough","Peterborough City Council","Adults","Independent Sector Placements","Services",03/11/2017 00:00:00,8000101168,607.2,"Revenue","Cozy Care","Home Care"
"Peterborough","http://opendatacommunities.org/id/unitary-authority/peterborough","Peterborough City Council","Adults","Independent Sector Placements","Services",03/11/2017 00:00:00,8000101171,962.55,"Revenue","Cozy Care","Home Care"
"Peterborough","http://opendatacommunities.org/id/unitary-authority/peterborough","Peterborough City Council","Adults","Independent Sector Placements","Services",03/11/2017 00:00:00,8000101172,1252.5,"Revenue","MEARS GROUP","Home Care"
"Peterborough","http://opendatacommunities.org/id/unitary-authority/peterborough","Peterborough City Council","Adults","Independent Sector Placements","Services",03/11/2017 00:00:00,8000101173,942.7,"Revenue","PRESTIGE NURSING LIMITED","Home Care"
"Peterborough","http://opendatacommunities.org/id/unitary-authority/peterborough","Peterborough City Council","Communities","Housing","Services",03/11/2017 00:00:00,8000102972,1500,"Revenue","JRD Property","Financial Assistance"
"Peterborough","http://opendatacommunities.org/id/unitary-authority/peterborough","Peterborough City Council","Adults","Community Team","Contract Hire and Operating Leases",06/11/2017 00:00:00,30131472,3139.14,"Revenue","Northumbria Healthcare NHS Foundation Trust","Leasing Charges"
"Peterborough","http://opendatacommunities.org/id/unitary-authority/peterborough","Peterborough City Council","Adults","Community Team","Contract Hire and Operating Leases",06/11/2017 00:00:00,30131682,2982.5,"Revenue","Northumbria Healthcare NHS Foundation Trust","Leasing Charges"
"Peterborough","http://opendatacommunities.org/id/unitary-authority/peterborough","Peterborough City Council","Adults","Community Team","Contract Hire and Operating Leases",06/11/2017 00:00:00,30145775,4166.57,"Revenue","Northumbria Healthcare NHS Foundation Trust","Leasing Charges"
"Peterborough","http://opendatacommunities.org/id/unitary-authority/peterborough","Peterborough City Council","Communities","Cohesion","Services",06/11/2017 00:00:00,30149596,928,"Revenue","PARCA","Financial Assistance"
"Peterborough","http://opendatacommunities.org/id/unitary-authority/peterborough","Peterborough City Council","City Servs & Communications","Marketing & Communications","Services",06/11/2017 00:00:00,30149676,1025,"Revenue","TLC Signs and Banners LTD","Hired Services"
"Peterborough","http://opendatacommunities.org/id/unitary-authority/peterborough","Peterborough City Council","Corporate Property","Commercial Propety","Services",06/11/2017 00:00:00,30149687,5500,"Revenue","Serco Ltd","Hired Services"
"Peterborough","http://opendatacommunities.org/id/unitary-authority/peterborough","Peterborough City Council","Adults","Independent Sector Placements","Services",06/11/2017 00:00:00,30149761,4405.4,"Revenue","OAKFIELD (EASTON MAUDIT) LTD","Residential Care"
"Peterborough","http://opendatacommunities.org/id/unitary-authority/peterborough","Peterborough City Council","Education","Pupil Referral Unit","Agency Staff",06/11/2017 00:00:00,30149797,590,"Revenue","Grade A Recruitment Ltd","Supply Teachers"
"Peterborough","http://opendatacommunities.org/id/unitary-authority/peterborough","Peterborough City Council","Education","Pupil Referral Unit","Agency Staff",06/11/2017 00:00:00,30149798,1872.7,"Revenue","Grade A Recruitment Ltd","Supply Teachers"
"Peterborough","http://opendatacommunities.org/id/unitary-authority/peterborough","Peterborough City Council","Commissioning and Commercial Operations","Clare Lodge","Services",06/11/2017 00:00:00,30149893,4112.04,"Revenue","Stanley Security Solutions","Hired Services"
"Peterborough","http://opendatacommunities.org/id/unitary-authority/peterborough","Peterborough City Council","Communities","Community Capacity","Tools, Equipment, Furniture & Materials",06/11/2017 00:00:00,30150082,5456,"Revenue","Flowstore Systems Ltd T/a Modular Stage Systems","Equipment"
"Peterborough","http://opendatacommunities.org/id/unitary-authority/peterborough","Peterborough City Council","Corporate Items","Corporate Services","Services",06/11/2017 00:00:00,30150083,2987.65,"Revenue","East of England LGA","Publicity"
"Peterborough","http://opendatacommunities.org/id/unitary-authority/peterborough","Peterborough City Council","Legal & Democratic","Elections","Services",06/11/2017 00:00:00,30150087,514.12,"Revenue","CFH Docmail","Postage"
"Peterborough","http://opendatacommunities.org/id/unitary-authority/peterborough","Peterborough City Council","Peterborough Highway Services","Network and Traffic Management","Members Allowances",06/11/2017 00:00:00,30150100,3200,"Revenue","Siemens Plc","Computer Software"
"Peterborough","http://opendatacommunities.org/id/unitary-authority/peterborough","Peterborough City Council","Adults","Independent Sector Placements","Services",06/11/2017 00:00:00,30150497,980.1,"Revenue","Carewatch Care Services Ltd","Home Care"
"Peterborough","http://opendatacommunities.org/id/unitary-authority/peterborough","Peterborough City Council","Adults","Independent Sector Placements","Services",06/11/2017 00:00:00,30150502,1636.8,"Revenue","Carewatch Care Services Ltd","Home Care"
"Peterborough","http://opendatacommunities.org/id/unitary-authority/peterborough","Peterborough City Council","Adults","Independent Sector Placements","Services",06/11/2017 00:00:00,30150503,1663.2,"Revenue","Carewatch Care Services Ltd","Home Care"
"Peterborough","http://opendatacommunities.org/id/unitary-authority/peterborough","Peterborough City Council","Adults","Independent Sector Placements","Services",06/11/2017 00:00:00,30150505,739.2,"Revenue","Carewatch Care Services Ltd","Home Care"
"Peterborough","http://opendatacommunities.org/id/unitary-authority/peterborough","Peterborough City Council","Adults","Independent Sector Placements","Services",06/11/2017 00:00:00,30150506,953.7,"Revenue","Carewatch Care Services Ltd","Home Care"
"Peterborough","http://opendatacommunities.org/id/unitary-authority/peterborough","Peterborough City Council","Adults","Independent Sector Placements","Services",06/11/2017 00:00:00,30150510,785.4,"Revenue","Carewatch Care Services Ltd","Home Care"
"Peterborough","http://opendatacommunities.org/id/unitary-authority/peterborough","Peterborough City Council","Adults","Independent Sector Placements","Services",06/11/2017 00:00:00,30150512,1148.4,"Revenue","Carewatch Care Services Ltd","Home Care"
"Peterborough","http://opendatacommunities.org/id/unitary-authority/peterborough","Peterborough City Council","Adults","Independent Sector Placements","Services",06/11/2017 00:00:00,30150515,831.6,"Revenue","Carewatch Care Services Ltd","Home Care"
"Peterborough","http://opendatacommunities.org/id/unitary-authority/peterborough","Peterborough City Council","Adults","Independent Sector Placements","Services",06/11/2017 00:00:00,30150517,633.8,"Revenue","Carewatch Care Services Ltd","Home Care"
"Peterborough","http://opendatacommunities.org/id/unitary-authority/peterborough","Peterborough City Council","Adults","Independent Sector Placements","Services",06/11/2017 00:00:00,30150518,792,"Revenue","Carewatch Care Services Ltd","Home Care"
"Peterborough","http://opendatacommunities.org/id/unitary-authority/peterborough","Peterborough City Council","Adults","Independent Sector Placements","Services",06/11/2017 00:00:00,30150519,1656.6,"Revenue","Carewatch Care Services Ltd","Home Care"
"Peterborough","http://opendatacommunities.org/id/unitary-authority/peterborough","Peterborough City Council","Adults","Independent Sector Placements","Services",06/11/2017 00:00:00,30150521,749.1,"Revenue","Carewatch Care Services Ltd","Home Care"
"Peterborough","http://opendatacommunities.org/id/unitary-authority/peterborough","Peterborough City Council","Adults","Independent Sector Placements","Services",06/11/2017 00:00:00,30150523,772.2,"Revenue","Carewatch Care Services Ltd","Home Care"
"Peterborough","http://opendatacommunities.org/id/unitary-authority/peterborough","Peterborough City Council","Adults","Independent Sector Placements","Services",06/11/2017 00:00:00,30150524,1848,"Revenue","Carewatch Care Services Ltd","Home Care"
"Peterborough","http://opendatacommunities.org/id/unitary-authority/peterborough","Peterborough City Council","Adults","Independent Sector Placements","Services",06/11/2017 00:00:00,30150527,831.6,"Revenue","Carewatch Care Services Ltd","Home Care"
"Peterborough","http://opendatacommunities.org/id/unitary-authority/peterborough","Peterborough City Council","Adults","Independent Sector Placements","Services",06/11/2017 00:00:00,30150530,1663.2,"Revenue","Carewatch Care Services Ltd","Home Care"
"Peterborough","http://opendatacommunities.org/id/unitary-authority/peterborough","Peterborough City Council","Adults","Independent Sector Placements","Services",06/11/2017 00:00:00,30150534,1108.8,"Revenue","Carewatch Care Services Ltd","Home Care"
"Peterborough","http://opendatacommunities.org/id/unitary-authority/peterborough","Peterborough City Council","Adults","Independent Sector Placements","Services",06/11/2017 00:00:00,30150537,580.8,"Revenue","Carewatch Care Services Ltd","Home Care"
"Peterborough","http://opendatacommunities.org/id/unitary-authority/peterborough","Peterborough City Council","Adults","Independent Sector Placements","Services",06/11/2017 00:00:00,30150539,1108.8,"Revenue","Carewatch Care Services Ltd","Home Care"
"Peterborough","http://opendatacommunities.org/id/unitary-authority/peterborough","Peterborough City Council","Adults","Independent Sector Placements","Services",06/11/2017 00:00:00,30150540,1848,"Revenue","Carewatch Care Services Ltd","Home Care"
"Peterborough","http://opendatacommunities.org/id/unitary-authority/peterborough","Peterborough City Council","Adults","Independent Sector Placements","Services",06/11/2017 00:00:00,30150542,1115.4,"Revenue","Carewatch Care Services Ltd","Home Care"
"Peterborough","http://opendatacommunities.org/id/unitary-authority/peterborough","Peterborough City Council","Adults","Independent Sector Placements","Services",06/11/2017 00:00:00,30150544,524.7,"Revenue","Carewatch Care Services Ltd","Home Care"
"Peterborough","http://opendatacommunities.org/id/unitary-authority/peterborough","Peterborough City Council","Adults","Independent Sector Placements","Services",06/11/2017 00:00:00,30150546,561,"Revenue","Carewatch Care Services Ltd","Home Care"
"Peterborough","http://opendatacommunities.org/id/unitary-authority/peterborough","Peterborough City Council","Adults","Independent Sector Placements","Services",06/11/2017 00:00:00,30150548,660,"Revenue","Carewatch Care Services Ltd","Home Care"
"Peterborough","http://opendatacommunities.org/id/unitary-authority/peterborough","Peterborough City Council","Adults","Independent Sector Placements","Services",06/11/2017 00:00:00,30150560,2181,"Revenue","Southwark Park Nursing Homes - Blenheim Care Centre","Residential Care"
"Peterborough","http://opendatacommunities.org/id/unitary-authority/peterborough","Peterborough City Council","ICT","ICT","Members Allowances",06/11/2017 00:00:00,30150715,5562.93,"Revenue","Capita Business Services Ltd","Computer Software"
"Peterborough","http://opendatacommunities.org/id/unitary-authority/peterborough","Peterborough City Council","Children's & Safeguarding","External Education Placements","Services",06/11/2017 00:00:00,30150769,15500,"Revenue","Barford Children's Services","Boarding Out Allowances"
"Peterborough","http://opendatacommunities.org/id/unitary-authority/peterborough","Peterborough City Council","Children's & Safeguarding","External Education Placements","Services",06/11/2017 00:00:00,30150770,16828.57,"Revenue","Barford Children's Services","Boarding Out Allowances"
"Peterborough","http://opendatacommunities.org/id/unitary-authority/peterborough","Peterborough City Council","Children's & Safeguarding","External Education Placements","Services",06/11/2017 00:00:00,30150771,15500,"Revenue","Barford Children's Services","Boarding Out Allowances"
"Peterborough","http://opendatacommunities.org/id/unitary-authority/peterborough","Peterborough City Council","Adults","Independent Sector Placements","Services",06/11/2017 00:00:00,30150959,554.4,"Revenue","Carewatch Care Services Ltd","Home Care"
"Peterborough","http://opendatacommunities.org/id/unitary-authority/peterborough","Peterborough City Council","Adults","Independent Sector Placements","Services",06/11/2017 00:00:00,30150966,805.2,"Revenue","Carewatch Care Services Ltd","Home Care"
"Peterborough","http://opendatacommunities.org/id/unitary-authority/peterborough","Peterborough City Council","Adults","Independent Sector Placements","Services",06/11/2017 00:00:00,30150967,1039.5,"Revenue","Carewatch Care Services Ltd","Home Care"
"Peterborough","http://opendatacommunities.org/id/unitary-authority/peterborough","Peterborough City Council","Adults","Independent Sector Placements","Services",06/11/2017 00:00:00,30150972,1221,"Revenue","Carewatch Care Services Ltd","Home Care"
"Peterborough","http://opendatacommunities.org/id/unitary-authority/peterborough","Peterborough City Council","Adults","Independent Sector Placements","Services",06/11/2017 00:00:00,30150974,1848,"Revenue","Carewatch Care Services Ltd","Home Care"
"Peterborough","http://opendatacommunities.org/id/unitary-authority/peterborough","Peterborough City Council","Adults","Independent Sector Placements","Services",06/11/2017 00:00:00,30150977,831.6,"Revenue","Carewatch Care Services Ltd","Home Care"
"Peterborough","http://opendatacommunities.org/id/unitary-authority/peterborough","Peterborough City Council","Adults","Independent Sector Placements","Services",06/11/2017 00:00:00,30150978,514.8,"Revenue","Carewatch Care Services Ltd","Home Care"
"Peterborough","http://opendatacommunities.org/id/unitary-authority/peterborough","Peterborough City Council","Adults","Independent Sector Placements","Services",06/11/2017 00:00:00,30151416,1958.52,"Revenue","GARDEN LODGE","Residential Care"
"Peterborough","http://opendatacommunities.org/id/unitary-authority/peterborough","Peterborough City Council","Adults","Independent Sector Placements","Services",06/11/2017 00:00:00,30151417,1958.52,"Revenue","GARDEN LODGE","Residential Care"
"Peterborough","http://opendatacommunities.org/id/unitary-authority/peterborough","Peterborough City Council","Adults","Independent Sector Placements","Services",06/11/2017 00:00:00,30151418,1958.52,"Revenue","GARDEN LODGE","Residential Care"
"Peterborough","http://opendatacommunities.org/id/unitary-authority/peterborough","Peterborough City Council","Adults","Independent Sector Placements","Services",06/11/2017 00:00:00,30151419,1958.52,"Revenue","GARDEN LODGE","Residential Care"
"Peterborough","http://opendatacommunities.org/id/unitary-authority/peterborough","Peterborough City Council","Adults","Independent Sector Placements","Services",06/11/2017 00:00:00,30151420,1958.52,"Revenue","GARDEN LODGE","Residential Care"
"Peterborough","http://opendatacommunities.org/id/unitary-authority/peterborough","Peterborough City Council","Adults","Independent Sector Placements","Services",06/11/2017 00:00:00,30151421,1958.52,"Revenue","GARDEN LODGE","Residential Care"
"Peterborough","http://opendatacommunities.org/id/unitary-authority/peterborough","Peterborough City Council","Adults","Independent Sector Placements","Services",06/11/2017 00:00:00,30151422,1958.52,"Revenue","GARDEN LODGE","Residential Care"
"Peterborough","http://opendatacommunities.org/id/unitary-authority/peterborough","Peterborough City Council","Adults","Independent Sector Placements","Services",06/11/2017 00:00:00,30151423,1958.52,"Revenue","GARDEN LODGE","Residential Care"
"Peterborough","http://opendatacommunities.org/id/unitary-authority/peterborough","Peterborough City Council","Adults","Independent Sector Placements","Services",06/11/2017 00:00:00,30151424,1958.52,"Revenue","GARDEN LODGE","Residential Care"
"Peterborough","http://opendatacommunities.org/id/unitary-authority/peterborough","Peterborough City Council","Adults","Independent Sector Placements","Services",06/11/2017 00:00:00,30151425,1958.52,"Revenue","GARDEN LODGE","Residential Care"
"Peterborough","http://opendatacommunities.org/id/unitary-authority/peterborough","Peterborough City Council","Adults","Independent Sector Placements","Services",06/11/2017 00:00:00,30151426,1958.52,"Revenue","GARDEN LODGE","Residential Care"
"Peterborough","http://opendatacommunities.org/id/unitary-authority/peterborough","Peterborough City Council","Adults","Independent Sector Placements","Services",06/11/2017 00:00:00,30151427,1958.52,"Revenue","GARDEN LODGE","Residential Care"
"Peterborough","http://opendatacommunities.org/id/unitary-authority/peterborough","Peterborough City Council","Adults","Independent Sector Placements","Services",06/11/2017 00:00:00,30151596,-961.09,"Revenue","GARDEN LODGE","Residential Care"
"Peterborough","http://opendatacommunities.org/id/unitary-authority/peterborough","Peterborough City Council","Peterborough Highway Services","Transport & Infrastructure Commissioning","Services",06/11/2017 00:00:00,30151619,1251.63,"Revenue","Cyclescheme Ltd","Cycling"
"Peterborough","http://opendatacommunities.org/id/unitary-authority/peterborough","Peterborough City Council","Communities","Housing","Services",06/11/2017 00:00:00,30151853,743.33,"Revenue","Redacted Personal Data","Financial Assistance"
"Peterborough","http://opendatacommunities.org/id/unitary-authority/peterborough","Peterborough City Council","Education","Service Director Education","Employee Expenses",06/11/2017 00:00:00,30152580,26947.3,"Revenue","Teachers Pensions","Pensions"
"Peterborough","http://opendatacommunities.org/id/unitary-authority/peterborough","Peterborough City Council","ICT","ICT","Tools, Equipment, Furniture & Materials",06/11/2017 00:00:00,30152603,-2293.32,"Revenue","Serco Ltd","Computer Hardware"
"Peterborough","http://opendatacommunities.org/id/unitary-authority/peterborough","Peterborough City Council","ICT","ICT","Tools, Equipment, Furniture & Materials",06/11/2017 00:00:00,30152604,-1841.88,"Revenue","Serco Ltd","Computer Hardware"
"Peterborough","http://opendatacommunities.org/id/unitary-authority/peterborough","Peterborough City Council","Corporate","Corporate","Non Revenue",06/11/2017 00:00:00,30152671,4143.28,"Capital","NPS Peterborough Ltd","Consultants Fees"
"Peterborough","http://opendatacommunities.org/id/unitary-authority/peterborough","Peterborough City Council","HR","HR","Services",06/11/2017 00:00:00,30152711,21760.68,"Revenue","Edenred","Childcare"
"Peterborough","http://opendatacommunities.org/id/unitary-authority/peterborough","Peterborough City Council","ICT","ICT","Members Allowances",06/11/2017 00:00:00,30152867,1800,"Revenue","Capita Business Services Ltd","Computer Software"
"Peterborough","http://opendatacommunities.org/id/unitary-authority/peterborough","Peterborough City Council","Commissioning and Commercial Operations","Early Years & Quality Improvement","Services",06/11/2017 00:00:00,30152880,4374.3,"Revenue","Bright Bambini  Montessori","Grant Payment"
"Peterborough","http://opendatacommunities.org/id/unitary-authority/peterborough","Peterborough City Council","Children's & Safeguarding","Children's Social Care","Contract Hire and Operating Leases",06/11/2017 00:00:00,30152884,5457.78,"Revenue","Northumbria Healthcare NHS Foundation Trust","Leasing Charges"
"Peterborough","http://opendatacommunities.org/id/unitary-authority/peterborough","Peterborough City Council","Commissioning and Commercial Operations","Early Years & Quality Improvement","Services",06/11/2017 00:00:00,30152886,36877.13,"Revenue","Blackberry House Day Nursery","Grant Payment"
"Peterborough","http://opendatacommunities.org/id/unitary-authority/peterborough","Peterborough City Council","Commissioning and Commercial Operations","Early Years & Quality Improvement","Services",06/11/2017 00:00:00,30152889,10885.95,"Revenue","Castor & Ailsworth Pre School","Grant Payment"
"Peterborough","http://opendatacommunities.org/id/unitary-authority/peterborough","Peterborough City Council","Commissioning and Commercial Operations","Early Years & Quality Improvement","Services",06/11/2017 00:00:00,30152892,7442.72,"Revenue","Family Action ,  Birchtree Pre- School","Grant Payment"
"Peterborough","http://opendatacommunities.org/id/unitary-authority/peterborough","Peterborough City Council","Commissioning and Commercial Operations","Early Years & Quality Improvement","Services",06/11/2017 00:00:00,30152894,23961.87,"Revenue","PSLA","Grant Payment"
"Peterborough","http://opendatacommunities.org/id/unitary-authority/peterborough","Peterborough City Council","Commissioning and Commercial Operations","Early Years & Quality Improvement","Services",06/11/2017 00:00:00,30152896,11268.48,"Revenue","Duke Of Bedford Pre-School","Grant Payment"
"Peterborough","http://opendatacommunities.org/id/unitary-authority/peterborough","Peterborough City Council","Commissioning and Commercial Operations","Early Years & Quality Improvement","Services",06/11/2017 00:00:00,30152898,11245.08,"Revenue","Dogsthorpe Community Pre-School","Grant Payment"
"Peterborough","http://opendatacommunities.org/id/unitary-authority/peterborough","Peterborough City Council","Commissioning and Commercial Operations","Early Years & Quality Improvement","Services",06/11/2017 00:00:00,30152902,17171.7,"Revenue","Pakistan Comm Ass of PBoro Pre- School","Grant Payment"
"Peterborough","http://opendatacommunities.org/id/unitary-authority/peterborough","Peterborough City Council","Commissioning and Commercial Operations","Early Years & Quality Improvement","Services",06/11/2017 00:00:00,30152904,4040.4,"Revenue","Happy Days Playgroup","Grant Payment"
"Peterborough","http://opendatacommunities.org/id/unitary-authority/peterborough","Peterborough City Council","Commissioning and Commercial Operations","Early Years & Quality Improvement","Services",06/11/2017 00:00:00,30152906,7994.1,"Revenue","Husaini Pre-School","Grant Payment"
"Peterborough","http://opendatacommunities.org/id/unitary-authority/peterborough","Peterborough City Council","Communities","Targeted Youth Service","Interview & Training Expenses",06/11/2017 00:00:00,30152907,650,"Revenue","Tony Lucas Training","Training"
"Peterborough","http://opendatacommunities.org/id/unitary-authority/peterborough","Peterborough City Council","Commissioning and Commercial Operations","Early Years & Quality Improvement","Services",06/11/2017 00:00:00,30152909,8808.36,"Revenue","Helpston Playhouse & Under Fives","Grant Payment"
"Peterborough","http://opendatacommunities.org/id/unitary-authority/peterborough","Peterborough City Council","Commissioning and Commercial Operations","Early Years & Quality Improvement","Services",06/11/2017 00:00:00,30152911,10646.16,"Revenue","Paston & Gunthorpe Pre-School","Grant Payment"
"Peterborough","http://opendatacommunities.org/id/unitary-authority/peterborough","Peterborough City Council","Commissioning and Commercial Operations","Early Years & Quality Improvement","Services",06/11/2017 00:00:00,30152912,24858.31,"Revenue","Orton Longueville Playgroup","Grant Payment"
"Peterborough","http://opendatacommunities.org/id/unitary-authority/peterborough","Peterborough City Council","Commissioning and Commercial Operations","Early Years & Quality Improvement","Services",06/11/2017 00:00:00,30152915,11884.45,"Revenue","Orton Wistow Under Fives","Grant Payment"
"Peterborough","http://opendatacommunities.org/id/unitary-authority/peterborough","Peterborough City Council","Commissioning and Commercial Operations","Early Years & Quality Improvement","Services",06/11/2017 00:00:00,30152916,5755.94,"Revenue","Little Blossoms","Grant Payment"
"Peterborough","http://opendatacommunities.org/id/unitary-authority/peterborough","Peterborough City Council","Commissioning and Commercial Operations","Early Years & Quality Improvement","Services",06/11/2017 00:00:00,30152918,4418.78,"Revenue","Little Angels","Grant Payment"
"Peterborough","http://opendatacommunities.org/id/unitary-authority/peterborough","Peterborough City Council","Commissioning and Commercial Operations","Early Years & Quality Improvement","Services",06/11/2017 00:00:00,30152920,5505.5,"Revenue","Newborough Pre-School Playgroup","Grant Payment"
"Peterborough","http://opendatacommunities.org/id/unitary-authority/peterborough","Peterborough City Council","Commissioning and Commercial Operations","Early Years & Quality Improvement","Services",06/11/2017 00:00:00,30152921,9019.05,"Revenue","Millfield Pre-School","Grant Payment"
"Peterborough","http://opendatacommunities.org/id/unitary-authority/peterborough","Peterborough City Council","Commissioning and Commercial Operations","Early Years & Quality Improvement","Services",06/11/2017 00:00:00,30152923,9933.83,"Revenue","Little Poppets Day Nursery","Grant Payment"
"Peterborough","http://opendatacommunities.org/id/unitary-authority/peterborough","Peterborough City Council","Commissioning and Commercial Operations","Early Years & Quality Improvement","Services",06/11/2017 00:00:00,30152926,24399.94,"Revenue","Smart Start Nursery Peterborough Ltd","Grant Payment"
"Peterborough","http://opendatacommunities.org/id/unitary-authority/peterborough","Peterborough City Council","Commissioning and Commercial Operations","Early Years & Quality Improvement","Services",06/11/2017 00:00:00,30152928,15387.38,"Revenue","Smiley Faces Day Nursery","Grant Payment"
"Peterborough","http://opendatacommunities.org/id/unitary-authority/peterborough","Peterborough City Council","Commissioning and Commercial Operations","Early Years & Quality Improvement","Services",06/11/2017 00:00:00,30152931,7397.73,"Revenue","Family Action","Grant Payment"
"Peterborough","http://opendatacommunities.org/id/unitary-authority/peterborough","Peterborough City Council","Commissioning and Commercial Operations","Early Years & Quality Improvement","Services",06/11/2017 00:00:00,30152932,3869.1,"Revenue","Rainbow Pre-School","Grant Payment"
"Peterborough","http://opendatacommunities.org/id/unitary-authority/peterborough","Peterborough City Council","Commissioning and Commercial Operations","Early Years & Quality Improvement","Services",06/11/2017 00:00:00,30152934,3813.73,"Revenue","Rise & Shine Day Nursery","Grant Payment"
"Peterborough","http://opendatacommunities.org/id/unitary-authority/peterborough","Peterborough City Council","Commissioning and Commercial Operations","Early Years & Quality Improvement","Services",06/11/2017 00:00:00,30152935,6532.8,"Revenue","Shiny Stars Pre-School","Grant Payment"
"Peterborough","http://opendatacommunities.org/id/unitary-authority/peterborough","Peterborough City Council","Commissioning and Commercial Operations","Early Years & Quality Improvement","Services",06/11/2017 00:00:00,30152938,28963.4,"Revenue","Stars Pre-School Dogsthorpe","Grant Payment"
"Peterborough","http://opendatacommunities.org/id/unitary-authority/peterborough","Peterborough City Council","Commissioning and Commercial Operations","Early Years & Quality Improvement","Services",06/11/2017 00:00:00,30152944,43404.62,"Revenue","Peterborough Regional College","Grant Payment"
"Peterborough","http://opendatacommunities.org/id/unitary-authority/peterborough","Peterborough City Council","Commissioning and Commercial Operations","Early Years & Quality Improvement","Services",06/11/2017 00:00:00,30152951,5425.78,"Revenue","Stepping Stones Day Nursery","Grant Payment"
"Peterborough","http://opendatacommunities.org/id/unitary-authority/peterborough","Peterborough City Council","Commissioning and Commercial Operations","Early Years & Quality Improvement","Services",06/11/2017 00:00:00,30152952,7425.6,"Revenue","Southfields Pre-School Playgroup","Grant Payment"
"Peterborough","http://opendatacommunities.org/id/unitary-authority/peterborough","Peterborough City Council","Commissioning and Commercial Operations","Early Years & Quality Improvement","Services",06/11/2017 00:00:00,30152953,29493.6,"Revenue","Stars Pre-School Parnwell","Grant Payment"
"Peterborough","http://opendatacommunities.org/id/unitary-authority/peterborough","Peterborough City Council","Commissioning and Commercial Operations","Early Years & Quality Improvement","Services",06/11/2017 00:00:00,30152954,30187.5,"Revenue","St Thomas More Catholic Nursery","Grant Payment"
"Peterborough","http://opendatacommunities.org/id/unitary-authority/peterborough","Peterborough City Council","Commissioning and Commercial Operations","Early Years & Quality Improvement","Services",06/11/2017 00:00:00,30152955,22455.75,"Revenue","Stars Preschool Woodston","Grant Payment"
"Peterborough","http://opendatacommunities.org/id/unitary-authority/peterborough","Peterborough City Council","Commissioning and Commercial Operations","Early Years & Quality Improvement","Services",06/11/2017 00:00:00,30152956,22720.35,"Revenue","Stars Pre-School Ravensthorpe","Grant Payment"
"Peterborough","http://opendatacommunities.org/id/unitary-authority/peterborough","Peterborough City Council","Commissioning and Commercial Operations","Early Years & Quality Improvement","Services",06/11/2017 00:00:00,30152957,11994.6,"Revenue","St Michaels Playgroup","Grant Payment"
"Peterborough","http://opendatacommunities.org/id/unitary-authority/peterborough","Peterborough City Council","Commissioning and Commercial Operations","Early Years & Quality Improvement","Services",06/11/2017 00:00:00,30152958,29018.38,"Revenue","The Day Nursery Peterborough Ltd","Grant Payment"
"Peterborough","http://opendatacommunities.org/id/unitary-authority/peterborough","Peterborough City Council","Commissioning and Commercial Operations","Early Years & Quality Improvement","Services",06/11/2017 00:00:00,30152959,9485.7,"Revenue","The Peterborough School Ltd","Grant Payment"
"Peterborough","http://opendatacommunities.org/id/unitary-authority/peterborough","Peterborough City Council","Commissioning and Commercial Operations","Early Years & Quality Improvement","Services",06/11/2017 00:00:00,30152962,16078.38,"Revenue","The Teddy Bears inn Day Nursery Ltd","Grant Payment"
"Peterborough","http://opendatacommunities.org/id/unitary-authority/peterborough","Peterborough City Council","Commissioning and Commercial Operations","Early Years & Quality Improvement","Services",06/11/2017 00:00:00,30152963,10665.06,"Revenue","The Owls' Nest Pre-School","Grant Payment"
"Peterborough","http://opendatacommunities.org/id/unitary-authority/peterborough","Peterborough City Council","Commissioning and Commercial Operations","Early Years & Quality Improvement","Services",06/11/2017 00:00:00,30152964,44755.27,"Revenue","ZigZag Day Nursery Ltd","Grant Payment"
"Peterborough","http://opendatacommunities.org/id/unitary-authority/peterborough","Peterborough City Council","Commissioning and Commercial Operations","Early Years & Quality Improvement","Services",06/11/2017 00:00:00,30152969,11388.59,"Revenue","Family Action","Grant Payment"
"Peterborough","http://opendatacommunities.org/id/unitary-authority/peterborough","Peterborough City Council","Commissioning and Commercial Operations","Early Years & Quality Improvement","Services",06/11/2017 00:00:00,30152972,16869.66,"Revenue","Winyates Pre School","Grant Payment"
"Peterborough","http://opendatacommunities.org/id/unitary-authority/peterborough","Peterborough City Council","Adults","Finance","Agency Staff",06/11/2017 00:00:00,30153006,4995,"Revenue","Sanctuary Personnel Ltd","External Temporary Staff"
"Peterborough","http://opendatacommunities.org/id/unitary-authority/peterborough","Peterborough City Council","Communities","Performance & Information","Services",06/11/2017 00:00:00,30153256,3181.5,"Revenue","Act Now Training Ltd","Hired Services"
"Peterborough","http://opendatacommunities.org/id/unitary-authority/peterborough","Peterborough City Council","City Servs & Communications","Markets, Tourism & Events","Services",07/11/2017 00:00:00,30153359,14266.58,"Revenue","F R Systems Ltd","Conferences/Events"
"Peterborough","http://opendatacommunities.org/id/unitary-authority/peterborough","Peterborough City Council","Children's & Safeguarding","Access to Resources & Specialist Commissioning","Services",08/11/2017 00:00:00,30122001,3055.5,"Revenue","National Fostering Agency","Boarding Out Allowances"
"Peterborough","http://opendatacommunities.org/id/unitary-authority/peterborough","Peterborough City Council","Adults","Finance","Agency Staff",08/11/2017 00:00:00,30144429,3043.8,"Revenue","Eden Brown Ltd","External Temporary Staff"
"Peterborough","http://opendatacommunities.org/id/unitary-authority/peterborough","Peterborough City Council","Children's & Safeguarding","Children's Social Care","Agency Staff",08/11/2017 00:00:00,30148764,5463.29,"Revenue","Sanctuary Personnel Ltd","External Temporary Staff"
"Peterborough","http://opendatacommunities.org/id/unitary-authority/peterborough","Peterborough City Council","Communities","Community Capacity","Tools, Equipment, Furniture & Materials",08/11/2017 00:00:00,30149675,9163.66,"Revenue","Trent Pottery Leicester Ltd","Equipment"
"Peterborough","http://opendatacommunities.org/id/unitary-authority/peterborough","Peterborough City Council","Education","School Improvement","Services",08/11/2017 00:00:00,30149786,600,"Revenue","The Holbeach William Stukeley Primary School","Grant Payment"
"Peterborough","http://opendatacommunities.org/id/unitary-authority/peterborough","Peterborough City Council","Education","School Improvement","Services",08/11/2017 00:00:00,30149791,890,"Revenue","The Park Lane Primary School","Grant Payment"
"Peterborough","http://opendatacommunities.org/id/unitary-authority/peterborough","Peterborough City Council","City Servs & Communications","Markets, Tourism & Events","Services",08/11/2017 00:00:00,30149895,5159,"Revenue","Pearce Hire","Civic Events"
"Peterborough","http://opendatacommunities.org/id/unitary-authority/peterborough","Peterborough City Council","City Servs & Communications","Markets, Tourism & Events","Services",08/11/2017 00:00:00,30149910,859,"Revenue","Direct Comms Radio Services Ltd","Conferences/Events"
"Peterborough","http://opendatacommunities.org/id/unitary-authority/peterborough","Peterborough City Council","Adults","Therapy/Reablement/Community Equipment","Agency Staff",08/11/2017 00:00:00,30149912,5860.8,"Revenue","HCL Social Care","External Temporary Staff"
"Peterborough","http://opendatacommunities.org/id/unitary-authority/peterborough","Peterborough City Council","HR","HR WFD & Training","Interview & Training Expenses",08/11/2017 00:00:00,30149917,550,"Revenue","Fay Training Consultants","Training"
"Peterborough","http://opendatacommunities.org/id/unitary-authority/peterborough","Peterborough City Council","Corporate","Corporate","Non Revenue",08/11/2017 00:00:00,30149921,60000,"Capital","Arcus Global ltd","Computer Software"
"Peterborough","http://opendatacommunities.org/id/unitary-authority/peterborough","Peterborough City Council","Education","Pupil Referral Unit","Agency Staff",08/11/2017 00:00:00,30149944,1035,"Revenue","Teaching Personnel Ltd","Supply Teachers"
"Peterborough","http://opendatacommunities.org/id/unitary-authority/peterborough","Peterborough City Council","Children's & Safeguarding","Children's Social Care","Services",08/11/2017 00:00:00,30149945,800,"Revenue","In-Trac Training & Consultancy Services","Course Instructors Fees"
"Peterborough","http://opendatacommunities.org/id/unitary-authority/peterborough","Peterborough City Council","HR","HR WFD & Training","Services",08/11/2017 00:00:00,30149946,1600,"Revenue","In-Trac Training & Consultancy Services","Course Instructors Fees"
"Peterborough","http://opendatacommunities.org/id/unitary-authority/peterborough","Peterborough City Council","Westcombe Engineering","Westcombe Engineering","Tools, Equipment, Furniture & Materials",08/11/2017 00:00:00,30150022,994,"Revenue","AALCO","Items For Resale"
"Peterborough","http://opendatacommunities.org/id/unitary-authority/peterborough","Peterborough City Council","Peterborough Highway Services","Network and Traffic Management","Services",08/11/2017 00:00:00,30150062,1207.08,"Revenue","Johnston Press Midlands Division","Advertising"
"Peterborough","http://opendatacommunities.org/id/unitary-authority/peterborough","Peterborough City Council","Development and Construction","Development Management","Services",08/11/2017 00:00:00,30150068,860,"Revenue","Johnston Press Midlands Division","Advertising"
"Peterborough","http://opendatacommunities.org/id/unitary-authority/peterborough","Peterborough City Council","Commissioning and Commercial Operations","Clare Lodge","Agency Staff",08/11/2017 00:00:00,30150070,944,"Revenue","Wrixon Care Services","External Temporary Staff"
"Peterborough","http://opendatacommunities.org/id/unitary-authority/peterborough","Peterborough City Council","Adults","Home Services Delivery Model","Services",08/11/2017 00:00:00,30150088,905.25,"Revenue","Handyman Steve","Contractors"
"Peterborough","http://opendatacommunities.org/id/unitary-authority/peterborough","Peterborough City Council","Adults","Therapy/Reablement/Community Equipment","Tools, Equipment, Furniture & Materials",08/11/2017 00:00:00,30150102,793.48,"Revenue","Action on Hearing Loss","Occupational Therapy Equipment"
"Peterborough","http://opendatacommunities.org/id/unitary-authority/peterborough","Peterborough City Council","Peterborough Highway Services","Highway & Drainage Control","Agency Staff",08/11/2017 00:00:00,30150103,1465.2,"Revenue","Matchtech","External Temporary Staff"
"Peterborough","http://opendatacommunities.org/id/unitary-authority/peterborough","Peterborough City Council","Corporate Property","Commercial Propety","Repair & Maintenance of Buildings",08/11/2017 00:00:00,30150106,1355,"Revenue","Tesam Distribution Ltd","Premises Repairs"
"Peterborough","http://opendatacommunities.org/id/unitary-authority/peterborough","Peterborough City Council","Adults","Mental Capacity Act & DoLs","Services",08/11/2017 00:00:00,30150114,1343,"Revenue","Raj Medical Consultancy Limited","Hired Services"
"Peterborough","http://opendatacommunities.org/id/unitary-authority/peterborough","Peterborough City Council","Communities","Targeted Youth Service","Services",08/11/2017 00:00:00,30150115,9000,"Revenue","Peterborough Open Awards Centre CIC","Programmes"
"Peterborough","http://opendatacommunities.org/id/unitary-authority/peterborough","Peterborough City Council","Adults","Finance","Services",08/11/2017 00:00:00,30150123,6250,"Revenue","NHS Cambs & P'boro CCG (Clinical Commissioning Group)","Hired Services"
"Peterborough","http://opendatacommunities.org/id/unitary-authority/peterborough","Peterborough City Council","Adults","Finance","Third Party Payments",08/11/2017 00:00:00,30150124,1820,"Revenue","NHS Cambs & P'boro CCG (Clinical Commissioning Group)","Contributions"
"Peterborough","http://opendatacommunities.org/id/unitary-authority/peterborough","Peterborough City Council","Corporate","Corporate","Non Revenue",08/11/2017 00:00:00,30150128,1221,"Capital","UK Power Networks (operations) Ltd","Infrastructure"
"Peterborough","http://opendatacommunities.org/id/unitary-authority/peterborough","Peterborough City Council","Public Health","PH Commissioning","Third Party Payments",08/11/2017 00:00:00,30150173,641564.15,"Revenue","CGL - Change, Grow, Live","Third Party Payments - Contract"
"Peterborough","http://opendatacommunities.org/id/unitary-authority/peterborough","Peterborough City Council","Communities","Community Capacity","Services",08/11/2017 00:00:00,30150180,648,"Revenue","Mindbody Ltd","Ict Services"
"Peterborough","http://opendatacommunities.org/id/unitary-authority/peterborough","Peterborough City Council","Legal & Democratic","Legal Services","Agency Staff",08/11/2017 00:00:00,30150212,1604.32,"Revenue","Venn Group Ltd","External Temporary Staff"
"Peterborough","http://opendatacommunities.org/id/unitary-authority/peterborough","Peterborough City Council","Legal & Democratic","Legal Services","Agency Staff",08/11/2017 00:00:00,30150213,594,"Revenue","Venn Group Ltd","External Temporary Staff"
"Peterborough","http://opendatacommunities.org/id/unitary-authority/peterborough","Peterborough City Council","Legal & Democratic","Legal Services","Agency Staff",08/11/2017 00:00:00,30150214,1648.08,"Revenue","Venn Group Ltd","External Temporary Staff"
"Peterborough","http://opendatacommunities.org/id/unitary-authority/peterborough","Peterborough City Council","Legal & Democratic","Legal Services","Agency Staff",08/11/2017 00:00:00,30150215,1027.83,"Revenue","Venn Group Ltd","External Temporary Staff"
"Peterborough","http://opendatacommunities.org/id/unitary-authority/peterborough","Peterborough City Council","Legal & Democratic","Legal Services","Agency Staff",08/11/2017 00:00:00,30150216,1003.91,"Revenue","Venn Group Ltd","External Temporary Staff"
"Peterborough","http://opendatacommunities.org/id/unitary-authority/peterborough","Peterborough City Council","Legal & Democratic","Legal Services","Agency Staff",08/11/2017 00:00:00,30150217,1039.55,"Revenue","Venn Group Ltd","External Temporary Staff"
"Peterborough","http://opendatacommunities.org/id/unitary-authority/peterborough","Peterborough City Council","Legal & Democratic","Legal Services","Agency Staff",08/11/2017 00:00:00,30150218,1047.05,"Revenue","Venn Group Ltd","External Temporary Staff"
"Peterborough","http://opendatacommunities.org/id/unitary-authority/peterborough","Peterborough City Council","Legal & Democratic","Legal Services","Agency Staff",08/11/2017 00:00:00,30150219,1050.8,"Revenue","Venn Group Ltd","External Temporary Staff"
"Peterborough","http://opendatacommunities.org/id/unitary-authority/peterborough","Peterborough City Council","Legal & Democratic","Legal Services","Agency Staff",08/11/2017 00:00:00,30150220,2146,"Revenue","Venn Group Ltd","External Temporary Staff"
"Peterborough","http://opendatacommunities.org/id/unitary-authority/peterborough","Peterborough City Council","Legal & Democratic","Legal Services","Agency Staff",08/11/2017 00:00:00,30150222,1702,"Revenue","Venn Group Ltd","External Temporary Staff"
"Peterborough","http://opendatacommunities.org/id/unitary-authority/peterborough","Peterborough City Council","Children's & Safeguarding","Commissioning - CSC","Services",08/11/2017 00:00:00,30150236,7500,"Revenue","Better Communication CIC","Hired Services"
"Peterborough","http://opendatacommunities.org/id/unitary-authority/peterborough","Peterborough City Council","Children's & Safeguarding","Commissioning - CSC","Services",08/11/2017 00:00:00,30150237,8000,"Revenue","Better Communication CIC","Hired Services"
"Peterborough","http://opendatacommunities.org/id/unitary-authority/peterborough","Peterborough City Council","City Servs & Communications","Marketing & Communications","Services",08/11/2017 00:00:00,30150238,1200,"Revenue","ALSOprint","Printing"
"Peterborough","http://opendatacommunities.org/id/unitary-authority/peterborough","Peterborough City Council","Development and Construction","Building Control","Services",08/11/2017 00:00:00,30150240,616.25,"Revenue","Ruck Consultancy Limited","Contract Services"
"Peterborough","http://opendatacommunities.org/id/unitary-authority/peterborough","Peterborough City Council","Commissioning and Commercial Operations","Early Years & Quality Improvement","Third Party Payments",08/11/2017 00:00:00,30150252,9200,"Revenue","Barnardo Services Limited","Third Party Payments - Contract"
"Peterborough","http://opendatacommunities.org/id/unitary-authority/peterborough","Peterborough City Council","Corporate","Corporate","Non Revenue",08/11/2017 00:00:00,30150252,52000,"Capital","Barnardo Services Limited","Building And Site Works"
"Peterborough","http://opendatacommunities.org/id/unitary-authority/peterborough","Peterborough City Council","Adults","Independent Sector Placements","Services",08/11/2017 00:00:00,30150428,1946.08,"Revenue","GARDEN LODGE","Residential Care"
"Peterborough","http://opendatacommunities.org/id/unitary-authority/peterborough","Peterborough City Council","Adults","Independent Sector Placements","Services",08/11/2017 00:00:00,30150429,1946.08,"Revenue","GARDEN LODGE","Residential Care"
"Peterborough","http://opendatacommunities.org/id/unitary-authority/peterborough","Peterborough City Council","Adults","Independent Sector Placements","Services",08/11/2017 00:00:00,30150430,1946.08,"Revenue","GARDEN LODGE","Residential Care"
"Peterborough","http://opendatacommunities.org/id/unitary-authority/peterborough","Peterborough City Council","Adults","Independent Sector Placements","Services",08/11/2017 00:00:00,30150431,1943.44,"Revenue","GARDEN LODGE","Residential Care"
"Peterborough","http://opendatacommunities.org/id/unitary-authority/peterborough","Peterborough City Council","Adults","Independent Sector Placements","Services",08/11/2017 00:00:00,30150432,1946.08,"Revenue","GARDEN LODGE","Residential Care"
"Peterborough","http://opendatacommunities.org/id/unitary-authority/peterborough","Peterborough City Council","City Servs & Communications","Markets, Tourism & Events","Services",08/11/2017 00:00:00,30150449,1855,"Revenue","Jane Tomlinson Appeal","Conferences/Events"
"Peterborough","http://opendatacommunities.org/id/unitary-authority/peterborough","Peterborough City Council","Peterborough Highway Services","Transport & Infrastructure Commissioning","Other Establishments",08/11/2017 00:00:00,30150558,2273,"Revenue","Royal Voluntary Service","Grant-Third Party"
"Peterborough","http://opendatacommunities.org/id/unitary-authority/peterborough","Peterborough City Council","City Servs & Communications","Markets, Tourism & Events","Services",08/11/2017 00:00:00,30150561,6835,"Revenue","Landsman's Ltd","Conferences/Events"
"Peterborough","http://opendatacommunities.org/id/unitary-authority/peterborough","Peterborough City Council","Adults","Home Services Delivery Model","Other Establishments",08/11/2017 00:00:00,30150562,2933.36,"Revenue","NACRO","Grant-Third Party"
"Peterborough","http://opendatacommunities.org/id/unitary-authority/peterborough","Peterborough City Council","Commissioning and Commercial Operations","Clare Lodge","Services",08/11/2017 00:00:00,30150565,507.52,"Revenue","Excell Network Solutions Ltd","Telephones"
"Peterborough","http://opendatacommunities.org/id/unitary-authority/peterborough","Peterborough City Council","Adults","Independent Sector Placements","Services",08/11/2017 00:00:00,30150576,2015,"Revenue","Klair House Residential Care Homes","Residential Care"
"Peterborough","http://opendatacommunities.org/id/unitary-authority/peterborough","Peterborough City Council","Peterborough Highway Services","Transport & Infrastructure Commissioning","Services",08/11/2017 00:00:00,30150597,7348.42,"Revenue","Stagecoach in Peterborough","Contractors"
"Peterborough","http://opendatacommunities.org/id/unitary-authority/peterborough","Peterborough City Council","Performance & Information","Coroners Service","Third Party Payments",08/11/2017 00:00:00,30150698,102706.8,"Revenue","Cambridgeshire County Council","Third Party Payments - Contract"
"Peterborough","http://opendatacommunities.org/id/unitary-authority/peterborough","Peterborough City Council","Adults","Independent Sector Placements","Services",08/11/2017 00:00:00,30150759,1821.88,"Revenue","Maxey House Res Home","Residential Care"
"Peterborough","http://opendatacommunities.org/id/unitary-authority/peterborough","Peterborough City Council","Adults","Independent Sector Placements","Services",08/11/2017 00:00:00,30150760,1676.24,"Revenue","Maxey House Res Home","Residential Care"
"Peterborough","http://opendatacommunities.org/id/unitary-authority/peterborough","Peterborough City Council","Adults","Independent Sector Placements","Services",08/11/2017 00:00:00,30150761,1027.36,"Revenue","Maxey House Res Home","Residential Care"
"Peterborough","http://opendatacommunities.org/id/unitary-authority/peterborough","Peterborough City Council","Adults","Independent Sector Placements","Services",08/11/2017 00:00:00,30150762,995.8,"Revenue","Maxey House Res Home","Residential Care"
"Peterborough","http://opendatacommunities.org/id/unitary-authority/peterborough","Peterborough City Council","Adults","Independent Sector Placements","Services",08/11/2017 00:00:00,30150777,1184.6,"Revenue","Maxey House Res Home","Residential Care"
"Peterborough","http://opendatacommunities.org/id/unitary-authority/peterborough","Peterborough City Council","Adults","Independent Sector Placements","Services",08/11/2017 00:00:00,30150780,1244.68,"Revenue","Maxey House Res Home","Residential Care"
"Peterborough","http://opendatacommunities.org/id/unitary-authority/peterborough","Peterborough City Council","Adults","Independent Sector Placements","Services",08/11/2017 00:00:00,30150782,1279.56,"Revenue","Maxey House Res Home","Residential Care"
"Peterborough","http://opendatacommunities.org/id/unitary-authority/peterborough","Peterborough City Council","Adults","Independent Sector Placements","Services",08/11/2017 00:00:00,30150786,1123.68,"Revenue","Maxey House Res Home","Residential Care"
"Peterborough","http://opendatacommunities.org/id/unitary-authority/peterborough","Peterborough City Council","Corporate Property","Commercial Propety","Repair & Maintenance of Buildings",08/11/2017 00:00:00,30150791,7510,"Revenue","Bull & Co Ltd","Premises Repairs"
"Peterborough","http://opendatacommunities.org/id/unitary-authority/peterborough","Peterborough City Council","Adults","Independent Sector Placements","Services",08/11/2017 00:00:00,30150812,1324.86,"Revenue","ABOUT ME CARE AND SUPPORT LTD","Home Care"
"Peterborough","http://opendatacommunities.org/id/unitary-authority/peterborough","Peterborough City Council","Adults","Independent Sector Placements","Services",08/11/2017 00:00:00,30150814,2412.18,"Revenue","ABOUT ME CARE AND SUPPORT LTD","Home Care"
"Peterborough","http://opendatacommunities.org/id/unitary-authority/peterborough","Peterborough City Council","Adults","Independent Sector Placements","Services",08/11/2017 00:00:00,30150832,680.2,"Revenue","ABOUT ME CARE AND SUPPORT LTD","Home Care"
"Peterborough","http://opendatacommunities.org/id/unitary-authority/peterborough","Peterborough City Council","Adults","Independent Sector Placements","Services",08/11/2017 00:00:00,30150834,859.2,"Revenue","ABOUT ME CARE AND SUPPORT LTD","Home Care"
"Peterborough","http://opendatacommunities.org/id/unitary-authority/peterborough","Peterborough City Council","Adults","Independent Sector Placements","Services",08/11/2017 00:00:00,30150835,2577.62,"Revenue","ABOUT ME CARE AND SUPPORT LTD","Home Care"
"Peterborough","http://opendatacommunities.org/id/unitary-authority/peterborough","Peterborough City Council","Adults","Independent Sector Placements","Services",08/11/2017 00:00:00,30150836,2148,"Revenue","ABOUT ME CARE AND SUPPORT LTD","Home Care"
"Peterborough","http://opendatacommunities.org/id/unitary-authority/peterborough","Peterborough City Council","Adults","Independent Sector Placements","Services",08/11/2017 00:00:00,30150837,1619.97,"Revenue","ABOUT ME CARE AND SUPPORT LTD","Home Care"
"Peterborough","http://opendatacommunities.org/id/unitary-authority/peterborough","Peterborough City Council","Peterborough Highway Services","Transport & Infrastructure Commissioning","Services",08/11/2017 00:00:00,30150858,15384.62,"Revenue","Stagecoach in Peterborough","Contractors"
"Peterborough","http://opendatacommunities.org/id/unitary-authority/peterborough","Peterborough City Council","Adults","Independent Sector Placements","Services",08/11/2017 00:00:00,30150861,1284.08,"Revenue","Maxey House Res Home","Residential Care"
"Peterborough","http://opendatacommunities.org/id/unitary-authority/peterborough","Peterborough City Council","Legal & Democratic","Elections","Services",08/11/2017 00:00:00,30150872,63668.45,"Revenue","Huntingdonshire District Council","Election Administration"
"Peterborough","http://opendatacommunities.org/id/unitary-authority/peterborough","Peterborough City Council","Adults","Independent Sector Placements","Services",08/11/2017 00:00:00,30150875,590.7,"Revenue","ABOUT ME CARE AND SUPPORT LTD","Home Care"
"Peterborough","http://opendatacommunities.org/id/unitary-authority/peterborough","Peterborough City Council","Adults","Independent Sector Placements","Services",08/11/2017 00:00:00,30150876,1852.67,"Revenue","ABOUT ME CARE AND SUPPORT LTD","Home Care"
"Peterborough","http://opendatacommunities.org/id/unitary-authority/peterborough","Peterborough City Council","Communities","Community Safety","Services",08/11/2017 00:00:00,30150902,1050,"Revenue","Colan Ltd","Road Safety"
"Peterborough","http://opendatacommunities.org/id/unitary-authority/peterborough","Peterborough City Council","Adults","Independent Sector Placements","Services",08/11/2017 00:00:00,30150906,1825.82,"Revenue","ABOUT ME CARE AND SUPPORT LTD","Home Care"
"Peterborough","http://opendatacommunities.org/id/unitary-authority/peterborough","Peterborough City Council","Peterborough Highway Services","Transport & Infrastructure Commissioning","Services",08/11/2017 00:00:00,30150942,185197.99,"Revenue","Stagecoach in Peterborough","Contractors"
"Peterborough","http://opendatacommunities.org/id/unitary-authority/peterborough","Peterborough City Council","Commissioning and Commercial Operations","Clare Lodge","Agency Staff",08/11/2017 00:00:00,30151048,976,"Revenue","Wrixon Care Services","External Temporary Staff"
"Peterborough","http://opendatacommunities.org/id/unitary-authority/peterborough","Peterborough City Council","Commissioning and Commercial Operations","Clare Lodge","Agency Staff",08/11/2017 00:00:00,30151049,512,"Revenue","Wrixon Care Services","External Temporary Staff"
"Peterborough","http://opendatacommunities.org/id/unitary-authority/peterborough","Peterborough City Council","Commissioning and Commercial Operations","Clare Lodge","Agency Staff",08/11/2017 00:00:00,30151050,928,"Revenue","Wrixon Care Services","External Temporary Staff"
"Peterborough","http://opendatacommunities.org/id/unitary-authority/peterborough","Peterborough City Council","Commissioning and Commercial Operations","Clare Lodge","Agency Staff",08/11/2017 00:00:00,30151051,944,"Revenue","Wrixon Care Services","External Temporary Staff"
"Peterborough","http://opendatacommunities.org/id/unitary-authority/peterborough","Peterborough City Council","Commissioning and Commercial Operations","Clare Lodge","Agency Staff",08/11/2017 00:00:00,30151055,1400,"Revenue","Wrixon Care Services","External Temporary Staff"
"Peterborough","http://opendatacommunities.org/id/unitary-authority/peterborough","Peterborough City Council","Commissioning and Commercial Operations","Clare Lodge","Agency Staff",08/11/2017 00:00:00,30151112,512,"Revenue","Wrixon Care Services","External Temporary Staff"
"Peterborough","http://opendatacommunities.org/id/unitary-authority/peterborough","Peterborough City Council","Commissioning and Commercial Operations","Clare Lodge","Agency Staff",08/11/2017 00:00:00,30151114,520,"Revenue","Wrixon Care Services","External Temporary Staff"
"Peterborough","http://opendatacommunities.org/id/unitary-authority/peterborough","Peterborough City Council","City Servs & Communications","Markets, Tourism & Events","Services",08/11/2017 00:00:00,30151291,1250,"Revenue","Redacted Personal Data","Conferences/Events"
"Peterborough","http://opendatacommunities.org/id/unitary-authority/peterborough","Peterborough City Council","City Servs & Communications","Markets, Tourism & Events","Services",08/11/2017 00:00:00,30151292,600,"Revenue","Redacted Personal Data","Conferences/Events"
"Peterborough","http://opendatacommunities.org/id/unitary-authority/peterborough","Peterborough City Council","Adults","Independent Sector Placements","Services",08/11/2017 00:00:00,30151318,1171.21,"Revenue","Maxey House Res Home","Residential Care"
"Peterborough","http://opendatacommunities.org/id/unitary-authority/peterborough","Peterborough City Council","Adults","Independent Sector Placements","Services",08/11/2017 00:00:00,30151320,1011.84,"Revenue","Maxey House Res Home","Residential Care"
"Peterborough","http://opendatacommunities.org/id/unitary-authority/peterborough","Peterborough City Council","Legal & Democratic","Legal Services","Services",08/11/2017 00:00:00,30151348,848,"Revenue","Mr Paul Greatorex","Legal Costs"
"Peterborough","http://opendatacommunities.org/id/unitary-authority/peterborough","Peterborough City Council","Legal & Democratic","Legal Services","Advertising",08/11/2017 00:00:00,30151380,4695,"Revenue","The Law Society","Recruitment Advertising"
"Peterborough","http://opendatacommunities.org/id/unitary-authority/peterborough","Peterborough City Council","Adults","Day opportunities - Older People","Agency Staff",08/11/2017 00:00:00,30151465,1221,"Revenue","Medicare First","External Temporary Staff"
"Peterborough","http://opendatacommunities.org/id/unitary-authority/peterborough","Peterborough City Council","Adults","Independent Sector Placements","Services",08/11/2017 00:00:00,30151888,901.32,"Revenue","K2 CARE LTD","Home Care"
"Peterborough","http://opendatacommunities.org/id/unitary-authority/peterborough","Peterborough City Council","Adults","Independent Sector Placements","Services",08/11/2017 00:00:00,30151893,947.1,"Revenue","K2 CARE LTD","Home Care"
"Peterborough","http://opendatacommunities.org/id/unitary-authority/peterborough","Peterborough City Council","Corporate","Corporate","Non Revenue",08/11/2017 00:00:00,30151928,5000,"Balance Sheet","Redacted Personal Data","Insurance Claims"
"Peterborough","http://opendatacommunities.org/id/unitary-authority/peterborough","Peterborough City Council","Financial Services","Finance","Agency Staff",08/11/2017 00:00:00,30151946,1387.85,"Revenue","Reed Specialist Recruitment Limited","External Temporary Staff"
"Peterborough","http://opendatacommunities.org/id/unitary-authority/peterborough","Peterborough City Council","Education","Pupil Referral Unit","Services",08/11/2017 00:00:00,30151973,-675,"Revenue","NACRO","Courses And Seminars"
"Peterborough","http://opendatacommunities.org/id/unitary-authority/peterborough","Peterborough City Council","Adults","Home Services Delivery Model","Services",08/11/2017 00:00:00,30152064,862.75,"Revenue","Nightingale Services","Contractors"
"Peterborough","http://opendatacommunities.org/id/unitary-authority/peterborough","Peterborough City Council","Legal & Democratic","Legal Services","Services",08/11/2017 00:00:00,30152114,600,"Revenue","Mr Garfield Braithwaite","Legal Costs"
"Peterborough","http://opendatacommunities.org/id/unitary-authority/peterborough","Peterborough City Council","Education","PFI","Services",08/11/2017 00:00:00,30152160,8685.63,"Revenue","IIC by Education (P'boro) Ltd","Service Charge"
"Peterborough","http://opendatacommunities.org/id/unitary-authority/peterborough","Peterborough City Council","Education","PFI","Services",08/11/2017 00:00:00,30152161,16602.5,"Revenue","IIC by Education (P'boro) Ltd","Service Charge"
"Peterborough","http://opendatacommunities.org/id/unitary-authority/peterborough","Peterborough City Council","Corporate","Corporate","Non Revenue",08/11/2017 00:00:00,30152584,4367,"Capital","Allworks Home Improvements Ltd","Grant Payment"
"Peterborough","http://opendatacommunities.org/id/unitary-authority/peterborough","Peterborough City Council","Corporate","Corporate","Non Revenue",08/11/2017 00:00:00,30152585,9075,"Capital","Casbon Building Services","Grant Payment"
"Peterborough","http://opendatacommunities.org/id/unitary-authority/peterborough","Peterborough City Council","Corporate","Corporate","Non Revenue",08/11/2017 00:00:00,30152586,9647.99,"Capital","Regent Maintenance Limited","Grant Payment"
"Peterborough","http://opendatacommunities.org/id/unitary-authority/peterborough","Peterborough City Council","Children's & Safeguarding","Child Health","Energy Costs",08/11/2017 00:00:00,30152622,672,"Revenue","British Gas Business","Electricity"
"Peterborough","http://opendatacommunities.org/id/unitary-authority/peterborough","Peterborough City Council","Children's & Safeguarding","Child Health","Energy Costs",08/11/2017 00:00:00,30152622,754.71,"Revenue","British Gas Business","Electricity"
"Peterborough","http://opendatacommunities.org/id/unitary-authority/peterborough","Peterborough City Council","City Servs & Communications","Regulatory Services","Services",08/11/2017 00:00:00,30152625,645.1,"Revenue","SURE24 Limited","Cctv"
"Peterborough","http://opendatacommunities.org/id/unitary-authority/peterborough","Peterborough City Council","Communities","Cohesion","Rents",08/11/2017 00:00:00,30152629,800,"Revenue","Hope Into Action","Rent"
"Peterborough","http://opendatacommunities.org/id/unitary-authority/peterborough","Peterborough City Council","Communities","Cohesion","Rents",08/11/2017 00:00:00,30152630,625,"Revenue","Record Property Solutions","Rent"
"Peterborough","http://opendatacommunities.org/id/unitary-authority/peterborough","Peterborough City Council","Communities","Cohesion","Rents",08/11/2017 00:00:00,30152632,800,"Revenue","Rightroom Lettings Ltd","Rent"
"Peterborough","http://opendatacommunities.org/id/unitary-authority/peterborough","Peterborough City Council","Communities","Cohesion","Rents",08/11/2017 00:00:00,30152633,575,"Revenue","Record Property Solutions","Rent"
"Peterborough","http://opendatacommunities.org/id/unitary-authority/peterborough","Peterborough City Council","Communities","Cohesion","Rents",08/11/2017 00:00:00,30152639,625,"Revenue","Rightroom Lettings Ltd","Rent"
"Peterborough","http://opendatacommunities.org/id/unitary-authority/peterborough","Peterborough City Council","City Servs & Communications","Markets, Tourism & Events","Energy Costs",08/11/2017 00:00:00,30152664,1860.27,"Revenue","British Gas Business","Electricity"
"Peterborough","http://opendatacommunities.org/id/unitary-authority/peterborough","Peterborough City Council","Vivacity/Cultural Services","Cultural Services","Energy Costs",08/11/2017 00:00:00,30152664,2101.06,"Revenue","British Gas Business","Electricity"
"Peterborough","http://opendatacommunities.org/id/unitary-authority/peterborough","Peterborough City Council","Vivacity/Cultural Services","Cultural Services","Energy Costs",08/11/2017 00:00:00,30152664,1129.32,"Revenue","British Gas Business","Electricity"
"Peterborough","http://opendatacommunities.org/id/unitary-authority/peterborough","Peterborough City Council","Education","Pupil Referral Unit","Energy Costs",08/11/2017 00:00:00,30152752,557.02,"Revenue","British Gas Business","Electricity"
"Peterborough","http://opendatacommunities.org/id/unitary-authority/peterborough","Peterborough City Council","Corporate Property","Office Accomodation","Water Services",08/11/2017 00:00:00,30152755,610.19,"Revenue","YMCA Cambridge & Peterborough Ltd","Water"
"Peterborough","http://opendatacommunities.org/id/unitary-authority/peterborough","Peterborough City Council","Corporate Property","Office Accomodation","Repair & Maintenance of Buildings",08/11/2017 00:00:00,30152756,11256.18,"Revenue","YMCA Cambridge & Peterborough Ltd","Service Charges - Premises"
"Peterborough","http://opendatacommunities.org/id/unitary-authority/peterborough","Peterborough City Council","Corporate Property","Office Accomodation","Cleaning & Domestic Supplies",08/11/2017 00:00:00,30152757,1579.48,"Revenue","YMCA Cambridge & Peterborough Ltd","Cleaning"
"Peterborough","http://opendatacommunities.org/id/unitary-authority/peterborough","Peterborough City Council","Corporate Property","Office Accomodation","Energy Costs",08/11/2017 00:00:00,30152758,1984.46,"Revenue","YMCA Cambridge & Peterborough Ltd","Electricity"
"Peterborough","http://opendatacommunities.org/id/unitary-authority/peterborough","Peterborough City Council","Corporate Property","Office Accomodation","Cleaning & Domestic Supplies",08/11/2017 00:00:00,30152760,1833.24,"Revenue","YMCA Cambridge & Peterborough Ltd","Cleaning"
"Peterborough","http://opendatacommunities.org/id/unitary-authority/peterborough","Peterborough City Council","Corporate Property","Office Accomodation","Energy Costs",08/11/2017 00:00:00,30152761,730.82,"Revenue","YMCA Cambridge & Peterborough Ltd","Electricity"
